Workbook

Sheet Memorial de Cálculo
G2: GABINETE DO SECRETÁRIO
G4: NÚCLEO DE INFRA-ESTRUTURA EM SAÚDE - NIS
G6: COORDENAÇÃO DE INFRA-ESTRUTURA EM SAÚDE
B9: OBRA: | G9: MUNICÍPIO:
B10: CONSTRUÇÃO DO MURO ENTRE A CAF E A CENTRAL DE RESÍDUOS DO HOSPITAL AREOLINO DE ABREU E CONSTRUÇÃO DE RESERVATÓRIO 500L NA CAF | G10: Teresina - PI
B12: ENDEREÇO: | G12: DATA BASE: SINAPI - 06/2021, ORSE - 04/2021 SEINFRA - 27.1
B13: R. Dezenove de Novembro, 1865
B15: MEMORIAL DE CÁLCULO
B16: ITEM | C16: APLICAÇÃO | D16: QUANTID | E16: COMPRIM | F16: LARGURA | G16: ALTURA | H16: PERÍMETRO | I16: AREA | J16: VOLUME | K16: TOTAL | L16: UND
B17: CONSTRUÇÃO DO MURO ENTRE A CAF E A CENTRAL DE RESÍDUO DO HOSPITAL AREOLINO DE ABREU
B18: 1.0 | C18: SERVIÇOS PRELIMINARES
B19: 1.1 | C19: Placa de obra em chapa aço galvanizado, instalada | K19: =SUM(I20) -> 4.50 | L19: m²
C20: Identificação da obra | F20: 3.00 | G20: 1.50 | I20: =ROUND(F20*G20,2) -> 4.50
B21: 1.2 | C21: LIMPEZA MANUAL DE VEGETAÇÃO EM TERRENO COM ENXADA.AF_05/2018 | K21: =I22 -> 90.00 | L21: m²
C22: Área extena | E22: 22.50 | F22: 4.00 | I22: =ROUND(E22*F22,2) -> 90.00
B24: 2.0 | C24: RETIRADAS E DEMOLIÇÕES
B25: 2.1 | C25: DEMOLIÇÃO DE PISO CIMENTADO SOBRE LASTRO DE CONCRETO | K25: =SUM(I26:I26) -> 6.75 | L25: m²
C26: Para o muro | E26: 22.50 | F26: 0.30 | I26: =ROUND(F26*E26,2) -> 6.75
B28: 3.0 | C28: MOVIMENTO DE TERRA
B29: 3.1 | C29: ESCAVAÇÃO MANUAL DE VALA COM PROFUNDIDADE MENOR OU IGUAL A 1,30 M. AF_02/2021 | K29: =SUM(J30:J32) -> 5.92 | L29: m³
C30: Para o muro | E30: 22.50 | F30: 0.30 | G30: 0.60 | J30: =ROUND(G30*F30*E30,2) -> 4.05
C31: Para o muro | E31: 4.00 | F31: 0.30 | G31: 0.60 | J31: =ROUND(G31*F31*E31,2) -> 0.72
C32: Pilar Muro | D32: 9.00 | E32: 0.40 | F32: 0.40 | G32: 0.80 | J32: =ROUND(D32*G32*F32*E32,2) -> 1.15
B33: 3.2 | C33: CARGA, MANOBRA E DESCARGA DE ENTULHO EM CAMINHÃO BASCULANTE 10 M³ - CARGA COM ESCAVADEIRA HIDRÁULICA (CAÇAMBA DE 0,80 M³ / 111 HP) E DESCARGA LIVRE (UNIDADE: M3). AF_07/2020 | K33: =SUM(J34:J35)*J36 -> 7.46 | L33: m³
C34: DEMOLIÇÃO DE PISO CIMENTADO SOBRE LASTRO DE CONCRETO | G34: 0.05 | I34: 6.75 | J34: =ROUND(G34*I34,2) -> 0.34
C35: ESCAVAÇÃO MANUAL DE VALA COM PROFUNDIDADE MENOR OU IGUAL A 1,30 M | J35: 5.88
C36: EMPOLAMENTO | J36: 1.2
B37: 3.3 | C37: Transporte com caminhão basculante de 10 m3, em via urbana em leito natural (unidade: m3xkm) | K37: =K40*J41 -> 74.60 | L37: m³/km
C38: DEMOLIÇÃO DE PISO CIMENTADO SOBRE LASTRO DE CONCRETO | G38: 0.05 | I38: 6.75 | J38: =ROUND(G38*I38,2) -> 0.34
C39: ESCAVAÇÃO MANUAL DE VALA COM PROFUNDIDADE MENOR OU IGUAL A 1,30 M | J39: 5.88
C40: EMPOLAMENTO | J40: 1.2 | K40: =ROUND((J38+J39)*J40,2) -> 7.46
C41: Distância | J41: 10.00
B43: 4.0 | C43: ESTRUTURA
B44: 4.1 | C44: Muro em alvenaria bloco cerâmico, e= 0,09m, c/ alv de pedra 0,35 x 0,60m, colunas (9x20cm) e cintamento (9x15cm) superior e inferior concreto armado fck = 15,0 Mpa cada 3,00m, chapisco e reboco | K44: =SUM(I45:I45) -> 90.10 | L44: m²
C45: Externo | E45: 22.50 | F45: 4.00 | G45: 3.40 | I45: =(E45+F45)*G45 -> 90.10
B47: 5.0 | C47: PINTURA
B48: 5.1 | C48: Pintura de acabamento com aplicação de 02 demãos de tinta mineral em pó (Hidracor ou similar) | K48: =SUM(I49:I50) -> 180.20 | L48: m²
C49: Muro | D49: 2.00 | E49: 22.50 | G49: 3.40 | I49: =G49*E49*D49 -> 153.00
C50: Muro | D50: 2.00 | E50: 4.00 | G50: 3.40 | I50: =G50*E50*D50 -> 27.20
B52: 6.0 | C52: PAVIMENTAÇÃO
B53: 6.1 | C53: ATERRO MANUAL DE VALAS COM AREIA PARA ATERRO E COMPACTAÇÃO MECANIZADA. | K53: =I54 -> 9.00 | L53: m³
C54: Área externa | E54: 22.50 | F54: 4.00 | G54: 0.10 | I54: =E54*F54*G54 -> 9.00
B55: 6.2 | C55: PISO CIMENTADO, TRAÇO 1:3 (CIMENTO E AREIA), ACABAMENTO LISO, ESPESSURA 2,0 CM, PREPARO MECÂNICO DA ARGAMASSA. AF_09/2020 | K55: =I56 -> 90.00 | L55: m²
C56: Área externa | E56: 22.50 | F56: 4.00 | I56: =E56*F56 -> 90.00
B58: 7.0 | C58: DIVERSOS
B59: 7.1 | C59: PORTA DE FERRO, DE ABRIR, TIPO GRADE COM CHAPA, COM GUARNIÇÕES. AF_12/2019 | K59: =SUM(I60:I60) -> 1.68 | L59: m²
C60: Área externa | E60: 0.80 | G60: 2.10 | I60: =E60*G60 -> 1.68
B61: 7.2 | C61: TUBO DE PVC BRANCO PARA REDE COLETORA DE ESGOTO CONDOMINIAL DE PAREDE MACIÇA, DN 100 MM, JUNTA ELÁSTICA - FORNECIMENTO E ASSENTAMENTO. AF_01/2021 | K61: =SUM(I62:I62) -> 0.80 | L61: m²
C62: Muro | D62: 4.00 | E62: 0.20 | I62: =E62*D62 -> 0.80
B63: 7.3 | C63: Limpeza geral | K63: =SUM(I64:I64) -> 90.00 | L63: m²
C64: Área externa | E64: 22.50 | F64: 4.00 | I64: =E64*F64 -> 90.00
B66: CONSTRUÇÃO DE RESERVATÓRIO DE 500 LITROS
B67: 1.0 | C67: RETIRADAS E DEMOLIÇÕES
B68: 1.1 | C68: Remoção de pilar em madeira - 0,20 x 0, 20 x 7,0 m | K68: =SUM(K69:K69) -> 2.00 | L68: unid
C69: Caixa d'água | D69: 2.00 | K69: =D69 -> 2.00
B71: 2.0 | C71: MOVIMENTO DE TERRA
B72: 2.1 | C72: ESCAVAÇÃO MANUAL DE VALA COM PROFUNDIDADE MENOR OU IGUAL A 1,30 M. AF_02/2021 | K72: =J73 -> 4.00 | L72: m³
C73: Caixa d'água | D73: 4.00 | E73: 1.00 | F73: 1.00 | G73: 1.00 | J73: =G73*F73*E73*D73 -> 4.00
B74: 2.2 | C74: CARGA, MANOBRA E DESCARGA DE ENTULHO EM CAMINHÃO BASCULANTE 10 M³ - CARGA COM ESCAVADEIRA HIDRÁULICA (CAÇAMBA DE 0,80 M³ / 111 HP) E DESCARGA LIVRE (UNIDADE: M3). AF_07/2020 | K74: =SUM(J75:J76)*J77 -> 5.15 | L74: m³
C75: Remoção de pilar em madeira | D75: 2.00 | E75: 0.20 | F75: 0.20 | G75: 3.60 | J75: =G75*F75*E75*D75 -> 0.29
C76: ESCAVAÇÃO MANUAL DE VALA COM PROFUNDIDADE MENOR OU IGUAL A 1,30 M. | J76: 4.00
C77: EMPOLAMENTO | J77: 1.2
B78: 2.3 | C78: Transporte com caminhão basculante de 10 m3, em via urbana em leito natural (unidade: m3xkm) | K78: =K81*J82 -> 51.50 | L78: m³/km
C79: Remoção de pilar em madeira | D79: 2.00 | E79: 0.20 | F79: 0.20 | G79: 3.60 | J79: =G79*F79*E79*D79 -> 0.29
C80: ESCAVAÇÃO MANUAL DE VALA COM PROFUNDIDADE MENOR OU IGUAL A 1,30 M. | J80: 4.00
C81: EMPOLAMENTO | J81: 1.2 | K81: =ROUND((J79+J80)*J81,2) -> 5.15
C82: Distância | J82: 10.00
B84: 3.0 | C84: INFRAESTRUTURA
B85: 3.1 | C85: CONCRETO CICLÓPICO FCK = 15MPA, 30% PEDRA DE MÃO EM VOLUME REAL, INCLUSIVE LANÇAMENTO. AF_05/2021 | K85: =J86 -> 4.00 | L85: m³
C86: Caixa d'água | D86: 4.00 | E86: 1.00 | F86: 1.00 | G86: 1.00 | J86: =G86*F86*E86*D86 -> 4.00
B88: 4.0 | C88: ESTRUTURA
B89: 4.1 | C89: (COMPOSIÇÃO REPRESENTATIVA) EXECUÇÃO DE ESTRUTURAS DE CONCRETO ARMADO, PARA EDIFICAÇÃO INSTITUCIONAL TÉRREA, FCK = 25 MPA. AF_01/2017 | K89: =SUM(J90:J93) -> 1.67 | L89: m²
C90: PILAR | D90: 4.00 | E90: 0.20 | F90: 0.20 | G90: 4.60 | J90: =G90*F90*E90*D90 -> 0.74
C91: LAJE | D91: 1.00 | E91: 1.50 | F91: 1.50 | G91: 0.20 | J91: =D91*E91*F91*G91 -> 0.45
C92: VIGA INTERMEDIÁRIA | D92: 4.00 | E92: 1.50 | F92: 0.20 | G92: 0.20 | J92: =D92*E92*F92*G92 -> 0.24
C93: VIGA SUPERIOR | D93: 4.00 | E93: 1.50 | F93: 0.20 | G93: 0.20 | J93: =D93*E93*F93*G93 -> 0.24
B95: 5.0 | C95: INSTALAÇÕES HIDROSSANITÁRIAS
B96: 5.1 | C96: CAIXA D´AGUA EM POLIETILENO, 500 LITROS, COM ACESSÓRIOS | K96: 1.00 | L96: unid
C97: Área externa | D97: 1.00
C102: Teresina (PI), 21 de Julho de 2021

Sheet Orçamento Sintético
F1: GABINETE DO SECRETÁRIO
F3: NÚCLEO DE INFRA-ESTRUTURA EM SAÚDE - NIS
F5: COORDENAÇÃO DE INFRA-ESTRUTURA EM SAÚDE
A8: OBRA: | F8: MUNICÍPIO:
A9: CONSTRUÇÃO DO MURO ENTRE A CAF E A CENTRAL DE RESÍDUOS DO HOSPITAL AREOLINO DE ABREU E CONSTRUÇÃO DE RESERVATÓRIO 500L NA CAF | F9: Teresina - PI
A11: ENDEREÇO: | F11: DATA BASE: SINAPI - 06/2021, ORSE - 04/2021 SEINFRA - 27.1
A12: R. Dezenove de Novembro, 1865
A13: Orçamento Sintética
A14: Item | B14: Código | C14: Banco | D14: Descrição | E14: Und | F14: Quant. | G14: Valor Unit | H14: Valor Unit com BDI (26.44%) | I14: Total | J14: Peso (%)
A15: 1 | D15: CONSTRUÇÃO DO MURO ENTRE A CAF E A CENTRAL DE RESÍDUOS DO HOSPITAL AREOLINO DE ABREU | I15: 33,661.62 | J15: 78.03 %
A16: 1.1 | D16: SERVIÇOS PRELIMINARES | I16: 2,199.87 | J16: 5.10 %
A17: 1.1.1 | B17: 51 | C17: ORSE | D17: Placa de obra em chapa aço galvanizado, instalada | E17: m² | F17: 4.5 | G17: 342.03 | H17: 432.46 | I17: 1,946.07 | J17: 4.51 %
A18: 1.1.2 | B18: 98524 | C18: SINAPI | D18: LIMPEZA MANUAL DE VEGETAÇÃO EM TERRENO COM ENXADA.AF_05/2018 | E18: m² | F18: 90 | G18: 2.23 | H18: 2.82 | I18: 253.80 | J18: 0.59 %
A19: 1.2 | D19: RETIRADAS E DEMOLIÇÕES | I19: 240.82 | J19: 0.56 %
A20: 1.2.1 | B20: C1066 | C20: SEINFRA | D20: DEMOLIÇÃO DE PISO CIMENTADO SOBRE LASTRO DE CONCRETO | E20: m² | F20: 8.31 | G20: 22.92 | H20: 28.98 | I20: 240.82 | J20: 0.56 %
A21: 1.3 | D21: MOVIMENTO DE TERRA | I21: 953.66 | J21: 2.21 %
A22: 1.3.1 | B22: 93358 | C22: SINAPI | D22: ESCAVAÇÃO MANUAL DE VALA COM PROFUNDIDADE MENOR OU IGUAL A 1,30 M. AF_02/2021 | E22: m³ | F22: 5.92 | G22: 54.95 | H22: 69.48 | I22: 411.32 | J22: 0.95 %
A23: 1.3.2 | B23: 100982 | C23: SINAPI | D23: CARGA, MANOBRA E DESCARGA DE ENTULHO EM CAMINHÃO BASCULANTE 10 M³ - CARGA COM ESCAVADEIRA HIDRÁULICA (CAÇAMBA DE 0,80 M³ / 111 HP) E DESCARGA LIVRE (UNIDADE: M3). AF_07/2020 | E23: m³ | F23: 7.46 | G23: 6.17 | H23: 7.80 | I23: 58.19 | J23: 0.13 %
A24: 1.3.3 | B24: 100938 | C24: SINAPI | D24: TRANSPORTE COM CAMINHÃO BASCULANTE DE 10 M³, EM VIA INTERNA (DENTRO DO CANTEIRO - UNIDADE: M3XKM). AF_07/2020 | E24: M3XKM | F24: 74.6 | G24: 5.13 | H24: 6.49 | I24: 484.15 | J24: 1.12 %
A25: 1.4 | D25: ESTRUTURA | I25: 18,556.10 | J25: 43.02 %
A26: 1.4.1 | B26: 2374 | C26: ORSE | D26: Muro em alvenaria bloco cerâmico, e= 0,09m, c/ alv de pedra 0,35 x 0,60m, colunas (9x20cm) e cintamento (9x15cm) superior e inferior concreto armado fck = 15,0 Mpa cada 3,00m, chapisco e reboco | E26: m² | F26: 90.1 | G26: 162.88 | H26: 205.95 | I26: 18,556.10 | J26: 43.02 %
A27: 1.5 | D27: PINTURA | I27: 2,196.64 | J27: 5.09 %
A28: 1.5.1 | B28: 2322 | C28: ORSE | D28: Pintura de acabamento com aplicação de 02 demãos de tinta mineral em pó (Hidracor ou similar) | E28: m² | F28: 180.2 | G28: 9.64 | H28: 12.19 | I28: 2,196.64 | J28: 5.09 %
A29: 1.6 | D29: PAVIMENTAÇÃO | I29: 8,473.14 | J29: 19.64 %
A30: 1.6.1 | B30: 94342 | C30: SINAPI | D30: ATERRO MANUAL DE VALAS COM AREIA PARA ATERRO E COMPACTAÇÃO MECANIZADA. AF_05/2016 | E30: m³ | F30: 9 | G30: 74.63 | H30: 94.36 | I30: 849.24 | J30: 1.97 %
A31: 1.6.2 | B31: 98679 | C31: SINAPI | D31: PISO CIMENTADO, TRAÇO 1:3 (CIMENTO E AREIA), ACABAMENTO LISO, ESPESSURA 2,0 CM, PREPARO MECÂNICO DA ARGAMASSA. AF_09/2020 | E31: m² | F31: 90 | G31: 27.51 | H31: 34.78 | I31: 3,130.20 | J31: 7.26 %
A32: 1.6.3 | B32: 101750 | C32: SINAPI | D32: PISO CIMENTADO, TRAÇO 1:3 (CIMENTO E AREIA), ACABAMENTO RÚSTICO, ESPESSURA 4,0 CM, PREPARO MECÂNICO DA ARGAMASSA. AF_09/2020 | E32: m² | F32: 90 | G32: 39.49 | H32: 49.93 | I32: 4,493.70 | J32: 10.42 %
A33: 1.7 | D33: DIVERSOS | I33: 1,041.39 | J33: 2.41 %
A34: 1.7.1 | B34: 100701 | C34: SINAPI | D34: PORTA DE FERRO, DE ABRIR, TIPO GRADE COM CHAPA, COM GUARNIÇÕES. AF_12/2019 | E34: m² | F34: 1.68 | G34: 387.04 | H34: 489.37 | I34: 822.14 | J34: 1.91 %
A35: 1.7.2 | B35: 102264 | C35: SINAPI | D35: TUBO DE PVC BRANCO PARA REDE COLETORA DE ESGOTO CONDOMINIAL DE PAREDE MACIÇA, DN 100 MM, JUNTA ELÁSTICA - FORNECIMENTO E ASSENTAMENTO. AF_01/2021 | E35: M | F35: 0.8 | G35: 18.34 | H35: 23.19 | I35: 18.55 | J35: 0.04 %
A36: 1.7.3 | B36: 2450 | C36: ORSE | D36: Limpeza geral | E36: m² | F36: 90 | G36: 1.76 | H36: 2.23 | I36: 200.70 | J36: 0.47 %
A37: 1.7.2 | B37: 102264 | C37: SINAPI | D37: TUBO DE PVC BRANCO PARA REDE COLETORA DE ESGOTO CONDOMINIAL DE PAREDE MACIÇA, DN 100 MM, JUNTA ELÁSTICA - FORNECIMENTO E ASSENTAMENTO. AF_01/2021 | E37: M | F37: 0.8 | G37: 18.34 | H37: 23.19 | I37: 18.55 | J37: 0.04 %
A38: 1.7.3 | B38: 2450 | C38: ORSE | D38: Limpeza geral | E38: m² | F38: 90 | G38: 1.76 | H38: 2.23 | I38: 200.70 | J38: 0.40 %
H40: TOTAL A | I40: =I15 -> 33,661.62
A42: 2 | D42: CONSTRUÇÃO DE RESERVATÓRIO 500L | I42: 9,475.71 | J42: 21.97 %
A43: 2.1 | D43: RETIRADAS E DEMOLIÇÕES | I43: 69.52 | J43: 0.16 %
A44: 2.1.1 | B44: 4802 | C44: ORSE | D44: Remoção de pilar em madeira - 0,20 x 0, 20 x 7,0 m | E44: un | F44: 2 | G44: 27.49 | H44: 34.76 | I44: 69.52 | J44: 0.16 %
A45: 2.2 | D45: MOVIMENTO DE TERRA | I45: 485.98 | J45: 1.13 %
A46: 2.2.1 | B46: 93358 | C46: SINAPI | D46: ESCAVAÇÃO MANUAL DE VALA COM PROFUNDIDADE MENOR OU IGUAL A 1,30 M. AF_02/2021 | E46: m³ | F46: 4 | G46: 54.95 | H46: 69.48 | I46: 277.92 | J46: 0.64 %
A47: 2.2.2 | B47: 100982 | C47: SINAPI | D47: CARGA, MANOBRA E DESCARGA DE ENTULHO EM CAMINHÃO BASCULANTE 10 M³ - CARGA COM ESCAVADEIRA HIDRÁULICA (CAÇAMBA DE 0,80 M³ / 111 HP) E DESCARGA LIVRE (UNIDADE: M3). AF_07/2020 | E47: m³ | F47: 5.15 | G47: 6.17 | H47: 7.80 | I47: 40.17 | J47: 0.09 %
A48: 2.2.3 | B48: 97912 | C48: SINAPI | D48: TRANSPORTE COM CAMINHÃO BASCULANTE DE 6 M³, EM VIA URBANA EM LEITO NATURAL (UNIDADE: M3XKM). AF_07/2020 | E48: M3XKM | F48: 51.5 | G48: 2.58 | H48: 3.26 | I48: 167.89 | J48: 0.39 %
A49: 2.3 | D49: INFRAESTRUTURA | I49: 2,222.48 | J49: 5.15 %
A50: 2.3.1 | B50: 102487 | C50: SINAPI | D50: CONCRETO CICLÓPICO FCK = 15MPA, 30% PEDRA DE MÃO EM VOLUME REAL, INCLUSIVE LANÇAMENTO. AF_05/2021 | E50: m³ | F50: 4 | G50: 439.43 | H50: 555.62 | I50: 2,222.48 | J50: 5.15 %
A51: 2.4 | D51: ESTRUTURA | I51: 5,856.61 | J51: 13.58 %
A52: 2.4.1 | B52: 95957 | C52: SINAPI | D52: (COMPOSIÇÃO REPRESENTATIVA) EXECUÇÃO DE ESTRUTURAS DE CONCRETO ARMADO, PARA EDIFICAÇÃO INSTITUCIONAL TÉRREA, FCK = 25 MPA. AF_01/2017 | E52: m³ | F52: 1.67 | G52: 2,773.61 | H52: 3,506.95 | I52: 5,856.61 | J52: 13.58 %
A53: 2.5 | D53: INSTALAÇÕES HIDRO SANITÁRIAS | I53: 841.12 | J53: 1.95 %
A54: 2.5.1 | B54: 88504 | C54: SINAPI | D54: CAIXA D´AGUA EM POLIETILENO, 500 LITROS, COM ACESSÓRIOS | E54: UN | F54: 1 | G54: 665.23 | H54: 841.12 | I54: 841.12 | J54: 1.95 %
E56: TOTAL B | G56: =I42 -> 9,475.71
F58: Total sem BDI | H58: 34,116.24
F59: Total do BDI (26.44%) | H59: 9,021.09
F60: Total Geral (A+B) | H60: 43,137.33
A63: Teresina (PI), 21 de Julho de 2021
A64: _______________________________________________________________

Sheet Cronograma
F2: GABINETE DO SECRETÁRIO
F4: NÚCLEO DE INFRA-ESTRUTURA EM SAÚDE - NIS
F6: COORDENAÇÃO DE INFRA-ESTRUTURA EM SAÚDE
B9: ='Memorial de Cálculo'!B9:F9 -> OBRA: | F9: Município:
B10: ='Memorial de Cálculo'!B10:F10 -> CONSTRUÇÃO DO MURO ENTRE A CAF E A CENTRAL DE RESÍDUOS DO HOSPITAL AREOLINO DE ABREU E CONSTRUÇÃO DE RESERVATÓRIO 500L NA CAF | F10: Teresina - PI
B12: ='Memorial de Cálculo'!B12:F12 -> ENDEREÇO: | F12: DATA BASE: SINAPI - 06/2021, ORSE - 04/2021 SEINFRA - 27.1
B13: ='Memorial de Cálculo'!B13:F13 -> R. Dezenove de Novembro, 1865
B15: CRONOGRAMA FÍSICO-FINANCEIRO
B17: ITEM | C17: DISCRIMINAÇÃO DOS SERVIÇOS | D17: % | E17: VALOR DO ITEM
F18: % | G18: 30 | H18: TOTAL
C20: CONSTRUÇÃO DO MURO ENTRE A CAF E A CENTRAL DE RESÍDUO DO HOSPITAL AREOLINO DE ABREU
B21: 1.00 | C21: ='Orçamento Sintético '!D16 -> SERVIÇOS PRELIMINARES | D21: ='Orçamento Sintético '!J16 -> 5.10% | E21: ='Orçamento Sintético '!I16 -> 2,199.87 | F21: 100.0 | G21: =E21 -> 2,199.87 | H21: =G21 -> 2,199.87
B22: 2.00 | C22: ='Orçamento Sintético '!D19 -> RETIRADAS E DEMOLIÇÕES | D22: ='Orçamento Sintético '!J19 -> 0.56% | E22: ='Orçamento Sintético '!I19 -> 240.82 | F22: 100.0 | G22: =E22 -> 240.82 | H22: =G22 -> 240.82
B23: 3.00 | C23: ='Orçamento Sintético '!D21 -> MOVIMENTO DE TERRA | D23: ='Orçamento Sintético '!J21 -> 2.21% | E23: ='Orçamento Sintético '!I21 -> 953.66 | F23: 100.0 | G23: =E23 -> 953.66 | H23: 953.66
B24: 4.00 | C24: ='Orçamento Sintético '!D25 -> ESTRUTURA | D24: ='Orçamento Sintético '!J25 -> 43.02% | E24: ='Orçamento Sintético '!I25 -> 18,556.10 | F24: 100.0 | G24: =E24 -> 18,556.10 | H24: 18,556.10
B25: 5.00 | C25: ='Orçamento Sintético '!D27 -> PINTURA | D25: ='Orçamento Sintético '!J27 -> 5.09% | E25: ='Orçamento Sintético '!I27 -> 2,196.64 | F25: 100.0 | G25: =E25 -> 2,196.64 | H25: 2,196.64
B26: 6.00 | C26: ='Orçamento Sintético '!D29 -> PAVIMENTAÇÃO | D26: ='Orçamento Sintético '!J29 -> 19.64% | E26: ='Orçamento Sintético '!I29 -> 8,473.14 | F26: 100.0 | G26: 8,473.14 | H26: 8,473.14
B27: 7.00 | C27: ='Orçamento Sintético '!D33 -> DIVERSOS | D27: ='Orçamento Sintético '!J33 -> 2.41% | E27: ='Orçamento Sintético '!I33 -> 1,041.39 | F27: 100.0 | G27: 1,041.39 | H27: 1,041.39
C28: CONSTRUÇÃO DE RESERVATÓRIO DE 500 LITROS | E28: - | F28: - | G28: - | H28: -
B29: 1.00 | C29: ='Orçamento Sintético '!D43 -> RETIRADAS E DEMOLIÇÕES | D29: ='Orçamento Sintético '!J43 -> 0.16% | E29: ='Orçamento Sintético '!I43 -> 69.52 | F29: 100.0 | G29: =E29 -> 69.52 | H29: 69.52
B30: 2.00 | C30: ='Orçamento Sintético '!D45 -> MOVIMENTO DE TERRA | D30: ='Orçamento Sintético '!J45 -> 1.13% | E30: ='Orçamento Sintético '!I45 -> 485.98 | F30: 100.0 | G30: =E30 -> 485.98 | H30: 485.98
B31: 3.00 | C31: ='Orçamento Sintético '!D49 -> INFRAESTRUTURA | D31: ='Orçamento Sintético '!J49 -> 5.15% | E31: ='Orçamento Sintético '!I49 -> 2,222.48 | F31: 100.0 | G31: 2,222.48 | H31: 2,222.48
B32: 4.00 | C32: ='Orçamento Sintético '!D51 -> ESTRUTURA | D32: ='Orçamento Sintético '!J51 -> 13.58% | E32: ='Orçamento Sintético '!I51 -> 5,856.61 | F32: 100.0 | G32: 5,856.61 | H32: 5,856.61
B33: 5.00 | C33: ='Orçamento Sintético '!D53 -> INSTALAÇÕES HIDRO SANITÁRIAS | D33: ='Orçamento Sintético '!J53 -> 1.95% | E33: ='Orçamento Sintético '!I53 -> 841.12 | F33: 100.0 | G33: =E33 -> 841.12 | H33: 841.12
C35: TOTAL SIMPLES | E35: =SUM(E21:E34) -> 43,137.33 | F35: =(G35/$E$36)*100 -> 100.00 | G35: =SUM(G21:G34) -> 43,137.33 | H35: =SUM(H21:H34) -> 43,137.33
C36: TOTAL ACUMULADO | E36: =SUM(E21:E34) -> 43,137.33 | F36: =F35 -> 100.00 | G36: =G35 -> 43,137.33 | H36: =H35 -> 43,137.33
C38: Teresina (PI), 21 de Julho de 2021

Sheet BDI
D3: GABINETE DO SECRETÁRIO
D5: NÚCLEO DE INFRA-ESTRUTURA EM SAÚDE - NIS
D7: COORDENAÇÃO DE INFRA-ESTRUTURA EM SAÚDE
B10: Obra: CONSTRUÇÃO DO MURO ENTRE A CAF E A CENTRAL DE RESÍDUOS DO HOSPITAL AREOLINO DE ABREU E CONSTRUÇÃO DE RESERVATÓRIO 500L NA CAF | D10: =[1]Resumo!D9 -> Município: Teresina- PI
B11: Endereço: R. Dezenove de Novembro, 1865 | D11: DATA BASE: SINAPI - 06/2021, ORSE - 04/2021 SEINFRA - 27.1
B13: COMPOSIÇÃO DO BDI
B15: ITEM | C15: ITEM COMPONENTE DO BDI | D15: BDI TCU - Acórdão 2622/2013 (%)
B16: 1 | C16: ADMINISTRAÇÃO CENTRAL (AC) | D16: 3.00%
B17: 2 | C17: SEGURO E GARANTIA (S+G) | D17: 0.80%
B18: 3 | C18: RISCO ( R) | D18: 0.97%
B19: 4 | C19: DESPESAS FINANCEIRAS (DF) | D19: 0.59%
B20: 5 | C20: LUCRO (L) | D20: 6.60%
B21: 6 | C21: TRIBUTOS (I) | D21: =SUM(D22:D25) -> 11.15%
C22: PIS | D22: 0.65%
C23: COFINS | D23: 3.00%
C24: ISS | D24: 3.00%
C25: INSS (DESONERAÇÃO) - CPRB | D25: 4.50%
B39: Aplicando na fórmula acima, temos:
C41: BDI(%)= | D41: =(((1+D16+D17+D18)*(1+D19)*(1+D20))/(1-SUM(D21)))-1 -> 26.44%
B45: Teresina (PI), 21 de Julho de 2021

Sheet Leis Sociais
D2: GOVERNO DO ESTADO DO PIAUÍ
D4: NÚCLEO DE INFRA-ESTRUTURA EM SAÚDE - NIS
D6: COORDENAÇÃO DE INFRA-ESTRUTURA EM SAÚDE
B9: OBRA | D9: Município:
B10: ='Memorial de Cálculo'!B10:F10 -> CONSTRUÇÃO DO MURO ENTRE A CAF E A CENTRAL DE RESÍDUOS DO HOSPITAL AREOLINO DE ABREU E CONSTRUÇÃO DE RESERVATÓRIO 500L NA CAF | D10: Teresina - PI
B12: ENDEREÇO | D12: DATA BASE: SINAPI - 06/2021, ORSE - 04/2021 SEINFRA - 27.1
B13: ='Memorial de Cálculo'!B13:F13 -> R. Dezenove de Novembro, 1865
B15: ENCARGOS SOCIAIS SOBRE A MÃO DE OBRA - COM DESONERAÇÃO
B17: CÓDIGO | C17: DESCRIÇÃO | D17: HORISTA % | E17: MENSALISTA %
B19: GRUPO A
B20: A1 | C20: INSS | D20: 0.00 | E20: 0.00
B21: A2 | C21: SESI | D21: 1.50 | E21: 1.50
B22: A3 | C22: SENAI | D22: 1.00 | E22: 1.00
B23: A4 | C23: INCRA | D23: 0.20 | E23: 0.20
B24: A5 | C24: SEBRAE | D24: 0.60 | E24: 0.60
B25: A6 | C25: SALÁRIO-EDUCAÇÃO | D25: 2.50 | E25: 2.50
B26: A7 | C26: SEGURO CONTRA ACIDENTES DE TRABALHO | D26: 3.00 | E26: 3.00
B27: A8 | C27: FGTS | D27: 8.00 | E27: 8.00
B28: A9 | C28: SECONCI | D28: 0.00 | E28: 0.00
B29: A | C29: TOTAL DOS ENCARGOS SOCIAIS | D29: =SUM(D20:D28) -> 16.80 | E29: =SUM(E20:E28) -> 16.80
B31: GRUPO B
B32: B1 | C32: REPOUSO SEMANAL REMUNERADO | D32: 17.83 | E32: 0.00
B33: B2 | C33: FERIADOS | D33: 3.95 | E33: 0.00
B34: B3 | C34: AUXILIO - ENFERMIDADE | D34: 0.92 | E34: 0.70
B35: B4 | C35: 13º SALÁRIO | D35: 10.94 | E35: 8.33
B36: B5 | C36: LICENÇA PATERNIDADE | D36: 0.07 | E36: 0.05
B37: B6 | C37: FALTAS JUSTIFICADAS | D37: 0.73 | E37: 0.56
B38: B7 | C38: DIAS DE CHUVA | D38: 1.18 | E38: 0.00
B39: B8 | C39: AUXILIO ACIDETE DE TRABALHO | D39: 0.11 | E39: 0.08
B40: B9 | C40: FÉRIAS GOZADAS | D40: 11.24 | E40: 8.56
B41: B10 | C41: SALÁRIO MATERNIDADE | D41: 0.03 | E41: 0.02
B42: B | C42: TOTAL DOS ENCARGOS SOCIAIS QUE RECEBEM INCIDÊNCIAS DE A | D42: =SUM(D32:D41) -> 47.00 | E42: =SUM(E32:E41) -> 18.30
B44: GRUPO C
B45: C1 | C45: AVISO PRÉVIO INDENIZADO | D45: 7.17 | E45: 5.46
B46: C2 | C46: AVISO PRÉVIO TRABALHADO | D46: 0.17 | E46: 0.13
B47: C3 | C47: FÉRIAS IDENIZADAS | D47: 3.22 | E47: 2.45
B48: C4 | C48: DEPÓSITO RESCISÃO SEM JUSTA CAUSA | D48: 5.08 | E48: 3.87
B49: C5 | C49: IDENIZAÇÃO ADICIONAL | D49: 0.60 | E49: 0.46
B50: C | C50: TOTAL DOS ENCARGOS SOCIAIS QUE NÃO RECEBEM INCIDÊNCIAS GLOBAIS DE A | D50: =SUM(D45:D49) -> 16.24 | E50: =SUM(E45:E49) -> 12.37
B52: GRUPO D
B53: D1 | C53: REINCIDÊNCIA DE GRUPO A SOBRE GRUPO B | D53: 7.90 | E53: 3.07
B54: D2 | C54: REINCIDÊNCIA DE GRUPO A SOBRE AVISO PRÉVIO TRABALHADO E REINCIDÊNCIA DOFGTSSOBRE AVISO PRÉVIO INDENIZADO | D54: 0.60 | E54: 0.46
B55: D | C55: TOTAL DAS TAXAS INCIDÊNCIAS E REINCIDÊNCIAS | D55: =SUM(D53:D54) -> 8.50 | E55: =SUM(E53:E54) -> 3.53
B57: TOTAL (A+B+C+D) | D57: =SUM(D55+D50+D42+D29) -> 88.54 | E57: =SUM(E55+E50+E42+E29) -> 51.00
C59: Teresina (PI), 21 de Julho de 2021

Sheet Sianpi S 09 (hidden)
A1: CODIGO DA COMPOSICAO | B1: DESCRICAO DA COMPOSICAO | C1: UNIDADE | D1: CUSTO TOTAL
A2: 97141 | B2: ASSENTAMENTO DE TUBO DE FERRO FUNDIDO PARA REDE DE ÁGUA, DN 80 MM, JUNTA ELÁSTICA, INSTALADO EM LOCAL COM NÍVEL ALTO DE INTERFERÊNCIAS (NÃO INCLUI FORNECIMENTO). AF_11/2017 | C2: M | D2: 5,80
A3: 97142 | B3: ASSENTAMENTO DE TUBO DE FERRO FUNDIDO PARA REDE DE ÁGUA, DN 100 MM, JUNTA ELÁSTICA, INSTALADO EM LOCAL COM NÍVEL ALTO DE INTERFERÊNCIAS (NÃO INCLUI FORNECIMENTO). AF_11/2017 | C3: M | D3: 6,49
A4: 97143 | B4: ASSENTAMENTO DE TUBO DE FERRO FUNDIDO PARA REDE DE ÁGUA, DN 150 MM, JUNTA ELÁSTICA, INSTALADO EM LOCAL COM NÍVEL ALTO DE INTERFERÊNCIAS (NÃO INCLUI FORNECIMENTO). AF_11/2017 | C4: M | D4: 8,16
A5: 97144 | B5: ASSENTAMENTO DE TUBO DE FERRO FUNDIDO PARA REDE DE ÁGUA, DN 200 MM, JUNTA ELÁSTICA, INSTALADO EM LOCAL COM NÍVEL ALTO DE INTERFERÊNCIAS (NÃO INCLUI FORNECIMENTO). AF_11/2017 | C5: M | D5: 9,81
A6: 97145 | B6: ASSENTAMENTO DE TUBO DE FERRO FUNDIDO PARA REDE DE ÁGUA, DN 250 MM, JUNTA ELÁSTICA, INSTALADO EM LOCAL COM NÍVEL ALTO DE INTERFERÊNCIAS (NÃO INCLUI FORNECIMENTO). AF_11/2017 | C6: M | D6: 11,50
A7: 97146 | B7: ASSENTAMENTO DE TUBO DE FERRO FUNDIDO PARA REDE DE ÁGUA, DN 300 MM, JUNTA ELÁSTICA, INSTALADO EM LOCAL COM NÍVEL ALTO DE INTERFERÊNCIAS (NÃO INCLUI FORNECIMENTO). AF_11/2017 | C7: M | D7: 13,16
A8: 97147 | B8: ASSENTAMENTO DE TUBO DE FERRO FUNDIDO PARA REDE DE ÁGUA, DN 350 MM, JUNTA ELÁSTICA, INSTALADO EM LOCAL COM NÍVEL ALTO DE INTERFERÊNCIAS (NÃO INCLUI FORNECIMENTO). AF_11/2017 | C8: M | D8: 14,85
A9: 97148 | B9: ASSENTAMENTO DE TUBO DE FERRO FUNDIDO PARA REDE DE ÁGUA, DN 400 MM, JUNTA ELÁSTICA, INSTALADO EM LOCAL COM NÍVEL ALTO DE INTERFERÊNCIAS (NÃO INCLUI FORNECIMENTO). AF_11/2017 | C9: M | D9: 16,54
A10: 97149 | B10: ASSENTAMENTO DE TUBO DE FERRO FUNDIDO PARA REDE DE ÁGUA, DN 450 MM, JUNTA ELÁSTICA, INSTALADO EM LOCAL COM NÍVEL ALTO DE INTERFERÊNCIAS (NÃO INCLUI FORNECIMENTO). AF_11/2017 | C10: M | D10: 18,23
A11: 97150 | B11: ASSENTAMENTO DE TUBO DE FERRO FUNDIDO PARA REDE DE ÁGUA, DN 500 MM, JUNTA ELÁSTICA, INSTALADO EM LOCAL COM NÍVEL ALTO DE INTERFERÊNCIAS (NÃO INCLUI FORNECIMENTO). AF_11/2017 | C11: M | D11: 21,85
A12: 97151 | B12: ASSENTAMENTO DE TUBO DE FERRO FUNDIDO PARA REDE DE ÁGUA, DN 600 MM, JUNTA ELÁSTICA, INSTALADO EM LOCAL COM NÍVEL ALTO DE INTERFERÊNCIAS (NÃO INCLUI FORNECIMENTO). AF_11/2017 | C12: M | D12: 25,51
A13: 97152 | B13: ASSENTAMENTO DE TUBO DE FERRO FUNDIDO PARA REDE DE ÁGUA, DN 700 MM, JUNTA ELÁSTICA, INSTALADO EM LOCAL COM NÍVEL ALTO DE INTERFERÊNCIAS (NÃO INCLUI FORNECIMENTO). AF_11/2017 | C13: M | D13: 29,02
A14: 97153 | B14: ASSENTAMENTO DE TUBO DE FERRO FUNDIDO PARA REDE DE ÁGUA, DN 800 MM, JUNTA ELÁSTICA, INSTALADO EM LOCAL COM NÍVEL ALTO DE INTERFERÊNCIAS (NÃO INCLUI FORNECIMENTO). AF_11/2017 | C14: M | D14: 32,62
A15: 97154 | B15: ASSENTAMENTO DE TUBO DE FERRO FUNDIDO PARA REDE DE ÁGUA, DN 900 MM, JUNTA ELÁSTICA, INSTALADO EM LOCAL COM NÍVEL ALTO DE INTERFERÊNCIAS (NÃO INCLUI FORNECIMENTO). AF_11/2017 | C15: M | D15: 36,24
A16: 97155 | B16: ASSENTAMENTO DE TUBO DE FERRO FUNDIDO PARA REDE DE ÁGUA, DN 1000 MM, JUNTA ELÁSTICA, INSTALADO EM LOCAL COM NÍVEL ALTO DE INTERFERÊNCIAS (NÃO INCLUI FORNECIMENTO). AF_11/2017 | C16: M | D16: 39,85
A17: 97156 | B17: ASSENTAMENTO DE TUBO DE FERRO FUNDIDO PARA REDE DE ÁGUA, DN 1200 MM, JUNTA ELÁSTICA, INSTALADO EM LOCAL COM NÍVEL ALTO DE INTERFERÊNCIAS (NÃO INCLUI FORNECIMENTO). AF_11/2017 | C17: M | D17: 47,38
A18: 97157 | B18: ASSENTAMENTO DE TUBO DE FERRO FUNDIDO PARA REDE DE ÁGUA, DN 80 MM, JUNTA ELÁSTICA, INSTALADO EM LOCAL COM NÍVEL BAIXO DE INTERFERÊNCIAS (NÃO INCLUI FORNECIMENTO). AF_11/2017 | C18: M | D18: 3,56
A19: 97158 | B19: ASSENTAMENTO DE TUBO DE FERRO FUNDIDO PARA REDE DE ÁGUA, DN 100 MM, JUNTA ELÁSTICA, INSTALADO EM LOCAL COM NÍVEL BAIXO DE INTERFERÊNCIAS (NÃO INCLUI FORNECIMENTO). AF_11/2017 | C19: M | D19: 3,99
A20: 97159 | B20: ASSENTAMENTO DE TUBO DE FERRO FUNDIDO PARA REDE DE ÁGUA, DN 150 MM, JUNTA ELÁSTICA, INSTALADO EM LOCAL COM NÍVEL BAIXO DE INTERFERÊNCIAS (NÃO INCLUI FORNECIMENTO). AF_11/2017 | C20: M | D20: 5,00
A21: 97160 | B21: ASSENTAMENTO DE TUBO DE FERRO FUNDIDO PARA REDE DE ÁGUA, DN 200 MM, JUNTA ELÁSTICA, INSTALADO EM LOCAL COM NÍVEL BAIXO DE INTERFERÊNCIAS (NÃO INCLUI FORNECIMENTO). AF_11/2017 | C21: M | D21: 6,02
A22: 97161 | B22: ASSENTAMENTO DE TUBO DE FERRO FUNDIDO PARA REDE DE ÁGUA, DN 250 MM, JUNTA ELÁSTICA, INSTALADO EM LOCAL COM NÍVEL BAIXO DE INTERFERÊNCIAS (NÃO INCLUI FORNECIMENTO). AF_11/2017 | C22: M | D22: 7,07
A23: 97162 | B23: ASSENTAMENTO DE TUBO DE FERRO FUNDIDO PARA REDE DE ÁGUA, DN 300 MM, JUNTA ELÁSTICA, INSTALADO EM LOCAL COM NÍVEL BAIXO DE INTERFERÊNCIAS (NÃO INCLUI FORNECIMENTO). AF_11/2017 | C23: M | D23: 8,09
A24: 97163 | B24: ASSENTAMENTO DE TUBO DE FERRO FUNDIDO PARA REDE DE ÁGUA, DN 350 MM, JUNTA ELÁSTICA, INSTALADO EM LOCAL COM NÍVEL BAIXO DE INTERFERÊNCIAS (NÃO INCLUI FORNECIMENTO). AF_11/2017 | C24: M | D24: 9,13
A25: 97164 | B25: ASSENTAMENTO DE TUBO DE FERRO FUNDIDO PARA REDE DE ÁGUA, DN 400 MM, JUNTA ELÁSTICA, INSTALADO EM LOCAL COM NÍVEL BAIXO DE INTERFERÊNCIAS (NÃO INCLUI FORNECIMENTO). AF_11/2017 | C25: M | D25: 10,17
A26: 97165 | B26: ASSENTAMENTO DE TUBO DE FERRO FUNDIDO PARA REDE DE ÁGUA, DN 450 MM, JUNTA ELÁSTICA, INSTALADO EM LOCAL COM NÍVEL BAIXO DE INTERFERÊNCIAS (NÃO INCLUI FORNECIMENTO). AF_11/2017 | C26: M | D26: 11,23
A27: 97166 | B27: ASSENTAMENTO DE TUBO DE FERRO FUNDIDO PARA REDE DE ÁGUA, DN 500 MM, JUNTA ELÁSTICA, INSTALADO EM LOCAL COM NÍVEL BAIXO DE INTERFERÊNCIAS (NÃO INCLUI FORNECIMENTO). AF_11/2017 | C27: M | D27: 13,48
A28: 97167 | B28: ASSENTAMENTO DE TUBO DE FERRO FUNDIDO PARA REDE DE ÁGUA, DN 600 MM, JUNTA ELÁSTICA, INSTALADO EM LOCAL COM NÍVEL BAIXO DE INTERFERÊNCIAS (NÃO INCLUI FORNECIMENTO). AF_11/2017 | C28: M | D28: 15,76
A29: 97168 | B29: ASSENTAMENTO DE TUBO DE FERRO FUNDIDO PARA REDE DE ÁGUA, DN 700 MM, JUNTA ELÁSTICA, INSTALADO EM LOCAL COM NÍVEL BAIXO DE INTERFERÊNCIAS (NÃO INCLUI FORNECIMENTO). AF_11/2017 | C29: M | D29: 17,88
A30: 97169 | B30: ASSENTAMENTO DE TUBO DE FERRO FUNDIDO PARA REDE DE ÁGUA, DN 800 MM, JUNTA ELÁSTICA, INSTALADO EM LOCAL COM NÍVEL BAIXO DE INTERFERÊNCIAS (NÃO INCLUI FORNECIMENTO). AF_11/2017 | C30: M | D30: 20,08
A31: 97170 | B31: ASSENTAMENTO DE TUBO DE FERRO FUNDIDO PARA REDE DE ÁGUA, DN 900 MM, JUNTA ELÁSTICA, INSTALADO EM LOCAL COM NÍVEL BAIXO DE INTERFERÊNCIAS (NÃO INCLUI FORNECIMENTO). AF_11/2017 | C31: M | D31: 22,31
A32: 97171 | B32: ASSENTAMENTO DE TUBO DE FERRO FUNDIDO PARA REDE DE ÁGUA, DN 1000 MM, JUNTA ELÁSTICA, INSTALADO EM LOCAL COM NÍVEL BAIXO DE INTERFERÊNCIAS (NÃO INCLUI FORNECIMENTO). AF_11/2017 | C32: M | D32: 24,56
A33: 97172 | B33: ASSENTAMENTO DE TUBO DE FERRO FUNDIDO PARA REDE DE ÁGUA, DN 1200 MM, JUNTA ELÁSTICA, INSTALADO EM LOCAL COM NÍVEL BAIXO DE INTERFERÊNCIAS (NÃO INCLUI FORNECIMENTO). AF_11/2017 | C33: M | D33: 29,32
A34: 97173 | B34: ASSENTAMENTO DE TUBO DE AÇO CARBONO PARA REDE DE ÁGUA, DN 600 MM (24’’), JUNTA SOLDADA, INSTALADO EM LOCAL COM NÍVEL ALTO DE INTERFERÊNCIAS (NÃO INCLUI FORNECIMENTO). AF_11/2017 | C34: M | D34: 23,77
A35: 97174 | B35: ASSENTAMENTO DE TUBO DE AÇO CARBONO PARA REDE DE ÁGUA, DN 700 MM (28’’), JUNTA SOLDADA, INSTALADO EM LOCAL COM NÍVEL ALTO DE INTERFERÊNCIAS (NÃO INCLUI FORNECIMENTO). AF_11/2017 | C35: M | D35: 27,48
A36: 97175 | B36: ASSENTAMENTO DE TUBO DE AÇO CARBONO PARA REDE DE ÁGUA, DN 800 MM (32’’), JUNTA SOLDADA, INSTALADO EM LOCAL COM NÍVEL ALTO DE INTERFERÊNCIAS (NÃO INCLUI FORNECIMENTO). AF_11/2017 | C36: M | D36: 31,22
A37: 97176 | B37: ASSENTAMENTO DE TUBO DE AÇO CARBONO PARA REDE DE ÁGUA, DN 900 MM (36’’), JUNTA SOLDADA, INSTALADO EM LOCAL COM NÍVEL ALTO DE INTERFERÊNCIAS (NÃO INCLUI FORNECIMENTO). AF_11/2017 | C37: M | D37: 34,94
A38: 97177 | B38: ASSENTAMENTO DE TUBO DE AÇO CARBONO PARA REDE DE ÁGUA, DN 1000 MM (40’’) OU DN 1100 MM (44’’), JUNTA SOLDADA, INSTALADO EM LOCAL COM NÍVEL ALTO DE INTERFERÊNCIAS (NÃO INCLUI FORNECIMENTO). AF_11/2017 | C38: M | D38: 42,38
A39: 97178 | B39: ASSENTAMENTO DE TUBO DE AÇO CARBONO PARA REDE DE ÁGUA, DN 1200 MM (48’’) OU DN 1300 MM (52’’), JUNTA SOLDADA, INSTALADO EM LOCAL COM NÍVEL ALTO DE INTERFERÊNCIAS (NÃO INCLUI FORNECIMENTO). AF_11/2017 | C39: M | D39: 49,83
A40: 97179 | B40: ASSENTAMENTO DE TUBO DE AÇO CARBONO PARA REDE DE ÁGUA, DN 1400 MM (56'') OU DN 1500 MM (60’’), JUNTA SOLDADA, INSTALADO EM LOCAL COM NÍVEL ALTO DE INTERFERÊNCIAS (NÃO INCLUI FORNECIMENTO). AF_11/2017 | C40: M | D40: 57,26
A41: 97180 | B41: ASSENTAMENTO DE TUBO DE AÇO CARBONO PARA REDE DE ÁGUA, DN 1600 MM (64’’) OU DN 1700 MM (68’’), JUNTA SOLDADA, INSTALADO EM LOCAL COM NÍVEL ALTO DE INTERFERÊNCIAS (NÃO INCLUI FORNECIMENTO). AF_11/2017 | C41: M | D41: 64,69
A42: 97181 | B42: ASSENTAMENTO DE TUBO DE AÇO CARBONO PARA REDE DE ÁGUA, DN 1800 MM (72’’) OU DN 1900 MM (76’’), JUNTA SOLDADA, INSTALADO EM LOCAL COM NÍVEL ALTO DE INTERFERÊNCIAS (NÃO INCLUI FORNECIMENTO). AF_11/2017 | C42: M | D42: 75,03
A43: 97182 | B43: ASSENTAMENTO DE TUBO DE AÇO CARBONO PARA REDE DE ÁGUA, DN 2000 MM (80’’) OU DN 2100 MM (84’’), JUNTA SOLDADA, INSTALADO EM LOCAL COM NÍVEL ALTO DE INTERFERÊNCIAS (NÃO INCLUI FORNECIMENTO). AF_11/2017 | C43: M | D43: 82,78
A44: 97183 | B44: ASSENTAMENTO DE TUBO DE AÇO CARBONO PARA REDE DE ÁGUA, DN 600 MM (24’’), JUNTA SOLDADA, INSTALADO EM LOCAL COM NÍVEL BAIXO DE INTERFERÊNCIAS (NÃO INCLUI FORNECIMENTO). AF_11/2017 | C44: M | D44: 19,44
A45: 97184 | B45: ASSENTAMENTO DE TUBO DE AÇO CARBONO PARA REDE DE ÁGUA, DN 700 MM (28’’), JUNTA SOLDADA, INSTALADO EM LOCAL COM NÍVEL BAIXO DE INTERFERÊNCIAS (NÃO INCLUI FORNECIMENTO). AF_11/2017 | C45: M | D45: 22,53
A46: 97185 | B46: ASSENTAMENTO DE TUBO DE AÇO CARBONO PARA REDE DE ÁGUA, DN 800 MM (32’’), JUNTA SOLDADA, INSTALADO EM LOCAL COM NÍVEL BAIXO DE INTERFERÊNCIAS (NÃO INCLUI FORNECIMENTO). AF_11/2017 | C46: M | D46: 25,62
A47: 97186 | B47: ASSENTAMENTO DE TUBO DE AÇO CARBONO PARA REDE DE ÁGUA, DN 900 MM (36’’), JUNTA SOLDADA, INSTALADO EM LOCAL COM NÍVEL BAIXO DE INTERFERÊNCIAS (NÃO INCLUI FORNECIMENTO). AF_11/2017 | C47: M | D47: 28,73
A48: 97187 | B48: ASSENTAMENTO DE TUBO DE AÇO CARBONO PARA REDE DE ÁGUA, DN 1000 MM (40 ) OU DN 1100 MM (44 ), JUNTA SOLDADA, INSTALADO EM LOCAL COM NÍVEL BAIXO DE INTERFERÊNCIAS (NÃO INCLUI FORNECIMENTO). AF_11/2017 | C48: M | D48: 34,92
A49: 97188 | B49: ASSENTAMENTO DE TUBO DE AÇO CARBONO PARA REDE DE ÁGUA, DN 1200 MM (48’’) OU DN 1300 MM (52’’), JUNTA SOLDADA, INSTALADO EM LOCAL COM NÍVEL BAIXO DE INTERFERÊNCIAS (NÃO INCLUI FORNECIMENTO). AF_11/2017 | C49: M | D49: 41,11
A50: 97189 | B50: ASSENTAMENTO DE TUBO DE AÇO CARBONO PARA REDE DE ÁGUA, DN 1400 MM (56'') OU DN 1500 MM (60’’), JUNTA SOLDADA, INSTALADO EM LOCAL COM NÍVEL BAIXO DE INTERFERÊNCIAS (NÃO INCLUI FORNECIMENTO). AF_11/2017 | C50: M | D50: 47,30
A51: 97190 | B51: ASSENTAMENTO DE TUBO DE AÇO CARBONO PARA REDE DE ÁGUA, DN 1600 MM (64’’) OU DN 1700 MM (68’’), JUNTA SOLDADA, INSTALADO EM LOCAL COM NÍVEL BAIXO DE INTERFERÊNCIAS (NÃO INCLUI FORNECIMENTO). AF_11/2017 | C51: M | D51: 53,48
A52: 97191 | B52: ASSENTAMENTO DE TUBO DE AÇO CARBONO PARA REDE DE ÁGUA, DN 1800 MM (72’’) OU DN 1900 MM (76’’), JUNTA SOLDADA, INSTALADO EM LOCAL COM NÍVEL BAIXO DE INTERFERÊNCIAS (NÃO INCLUI FORNECIMENTO). AF_11/2017 | C52: M | D52: 61,96
A53: 97192 | B53: ASSENTAMENTO DE TUBO DE AÇO CARBONO PARA REDE DE ÁGUA, DN 2000 MM (80’’) OU DN 2100 MM (84’’), JUNTA SOLDADA, INSTALADO EM LOCAL COM NÍVEL BAIXO DE INTERFERÊNCIAS (NÃO INCLUI FORNECIMENTO). AF_11/2017 | C53: M | D53: 68,39
A54: 90694 | B54: TUBO DE PVC PARA REDE COLETORA DE ESGOTO DE PAREDE MACIÇA, DN 100 MM, JUNTA ELÁSTICA, INSTALADO EM LOCAL COM NÍVEL BAIXO DE INTERFERÊNCIAS - FORNECIMENTO E ASSENTAMENTO. AF_06/2015 | C54: M | D54: 21,19
A55: 90695 | B55: TUBO DE PVC PARA REDE COLETORA DE ESGOTO DE PAREDE MACIÇA, DN 150 MM, JUNTA ELÁSTICA, INSTALADO EM LOCAL COM NÍVEL BAIXO DE INTERFERÊNCIAS - FORNECIMENTO E ASSENTAMENTO. AF_06/2015 | C55: M | D55: 43,66
A56: 90696 | B56: TUBO DE PVC PARA REDE COLETORA DE ESGOTO DE PAREDE MACIÇA, DN 200 MM, JUNTA ELÁSTICA, INSTALADO EM LOCAL COM NÍVEL BAIXO DE INTERFERÊNCIAS - FORNECIMENTO E ASSENTAMENTO. AF_06/2015 | C56: M | D56: 67,18
A57: 90697 | B57: TUBO DE PVC PARA REDE COLETORA DE ESGOTO DE PAREDE MACIÇA, DN 250 MM, JUNTA ELÁSTICA, INSTALADO EM LOCAL COM NÍVEL BAIXO DE INTERFERÊNCIAS - FORNECIMENTO E ASSENTAMENTO. AF_06/2015 | C57: M | D57: 112,25
A58: 90698 | B58: TUBO DE PVC PARA REDE COLETORA DE ESGOTO DE PAREDE MACIÇA, DN 300 MM, JUNTA ELÁSTICA, INSTALADO EM LOCAL COM NÍVEL BAIXO DE INTERFERÊNCIAS - FORNECIMENTO E ASSENTAMENTO. AF_06/2015 | C58: M | D58: 180,20
A59: 90699 | B59: TUBO DE PVC PARA REDE COLETORA DE ESGOTO DE PAREDE MACIÇA, DN 350 MM, JUNTA ELÁSTICA, INSTALADO EM LOCAL COM NÍVEL BAIXO DE INTERFERÊNCIAS - FORNECIMENTO E ASSENTAMENTO. AF_06/2015 | C59: M | D59: 222,96
A60: 90700 | B60: TUBO DE PVC PARA REDE COLETORA DE ESGOTO DE PAREDE MACIÇA, DN 400 MM, JUNTA ELÁSTICA, INSTALADO EM LOCAL COM NÍVEL BAIXO DE INTERFERÊNCIAS - FORNECIMENTO E ASSENTAMENTO. AF_06/2015 | C60: M | D60: 295,00
A61: 90701 | B61: TUBO DE PVC CORRUGADO DE DUPLA PAREDE PARA REDE COLETORA DE ESGOTO, DN 150 MM, JUNTA ELÁSTICA, INSTALADO EM LOCAL COM NÍVEL BAIXO DE INTERFERÊNCIAS - FORNECIMENTO E ASSENTAMENTO. AF_06/2015 | C61: M | D61: 37,57
A62: 90702 | B62: TUBO DE PVC CORRUGADO DE DUPLA PAREDE PARA REDE COLETORA DE ESGOTO, DN 200 MM, JUNTA ELÁSTICA, INSTALADO EM LOCAL COM NÍVEL BAIXO DE INTERFERÊNCIAS - FORNECIMENTO E ASSENTAMENTO. AF_06/2015 | C62: M | D62: 56,53
A63: 90703 | B63: TUBO DE PVC CORRUGADO DE DUPLA PAREDE PARA REDE COLETORA DE ESGOTO, DN 250 MM, JUNTA ELÁSTICA, INSTALADO EM LOCAL COM NÍVEL BAIXO DE INTERFERÊNCIAS - FORNECIMENTO E ASSENTAMENTO. AF_06/2015 | C63: M | D63: 92,96
A64: 90704 | B64: TUBO DE PVC CORRUGADO DE DUPLA PAREDE PARA REDE COLETORA DE ESGOTO, DN 300 MM, JUNTA ELÁSTICA, INSTALADO EM LOCAL COM NÍVEL BAIXO DE INTERFERÊNCIAS - FORNECIMENTO E ASSENTAMENTO. AF_06/2015 | C64: M | D64: 145,14
A65: 90705 | B65: TUBO DE PVC CORRUGADO DE DUPLA PAREDE PARA REDE COLETORA DE ESGOTO, DN 350 MM, JUNTA ELÁSTICA, INSTALADO EM LOCAL COM NÍVEL BAIXO DE INTERFERÊNCIAS - FORNECIMENTO E ASSENTAMENTO. AF_06/2015 | C65: M | D65: 212,51
A66: 90706 | B66: TUBO DE PVC CORRUGADO DE DUPLA PAREDE PARA REDE COLETORA DE ESGOTO, DN 400 MM, JUNTA ELÁSTICA, INSTALADO EM LOCAL COM NÍVEL BAIXO DE INTERFERÊNCIAS - FORNECIMENTO E ASSENTAMENTO. AF_06/2015 | C66: M | D66: 259,23
A67: 90708 | B67: TUBO DE PEAD CORRUGADO DE DUPLA PAREDE PARA REDE COLETORA DE ESGOTO, DN 600 MM, JUNTA ELÁSTICA INTEGRADA, INSTALADO EM LOCAL COM NÍVEL BAIXO DE INTERFERÊNCIAS - FORNECIMENTO E ASSENTAMENTO. AF_06/2015 | C67: M | D67: 413,47
A68: 90709 | B68: TUBO DE PVC PARA REDE COLETORA DE ESGOTO DE PAREDE MACIÇA, DN 100 MM, JUNTA ELÁSTICA, INSTALADO EM LOCAL COM NÍVEL ALTO DE INTERFERÊNCIAS - FORNECIMENTO E ASSENTAMENTO. AF_06/2015 | C68: M | D68: 22,72
A69: 90710 | B69: TUBO DE PVC PARA REDE COLETORA DE ESGOTO DE PAREDE MACIÇA, DN 150 MM, JUNTA ELÁSTICA, INSTALADO EM LOCAL COM NÍVEL ALTO DE INTERFERÊNCIAS - FORNECIMENTO E ASSENTAMENTO. AF_06/2015 | C69: M | D69: 45,21
A70: 90711 | B70: TUBO DE PVC PARA REDE COLETORA DE ESGOTO DE PAREDE MACIÇA, DN 200 MM, JUNTA ELÁSTICA, INSTALADO EM LOCAL COM NÍVEL ALTO DE INTERFERÊNCIAS - FORNECIMENTO E ASSENTAMENTO. AF_06/2015 | C70: M | D70: 68,72
A71: 90712 | B71: TUBO DE PVC PARA REDE COLETORA DE ESGOTO DE PAREDE MACIÇA, DN 250 MM, JUNTA ELÁSTICA, INSTALADO EM LOCAL COM NÍVEL ALTO DE INTERFERÊNCIAS - FORNECIMENTO E ASSENTAMENTO. AF_06/2015 | C71: M | D71: 113,79
A72: 90713 | B72: TUBO DE PVC PARA REDE COLETORA DE ESGOTO DE PAREDE MACIÇA, DN 300 MM, JUNTA ELÁSTICA, INSTALADO EM LOCAL COM NÍVEL ALTO DE INTERFERÊNCIAS - FORNECIMENTO E ASSENTAMENTO. AF_06/2015 | C72: M | D72: 181,73
A73: 90714 | B73: TUBO DE PVC PARA REDE COLETORA DE ESGOTO DE PAREDE MACIÇA, DN 350 MM, JUNTA ELÁSTICA, INSTALADO EM LOCAL COM NÍVEL ALTO DE INTERFERÊNCIAS - FORNECIMENTO E ASSENTAMENTO. AF_06/2015 | C73: M | D73: 224,49
A74: 90715 | B74: TUBO DE PVC PARA REDE COLETORA DE ESGOTO DE PAREDE MACIÇA, DN 400 MM, JUNTA ELÁSTICA, INSTALADO EM LOCAL COM NÍVEL ALTO DE INTERFERÊNCIAS - FORNECIMENTO E ASSENTAMENTO. AF_06/2015 | C74: M | D74: 298,47
A75: 90716 | B75: TUBO DE PVC CORRUGADO DE DUPLA PAREDE PARA REDE COLETORA DE ESGOTO, DN 150 MM, JUNTA ELÁSTICA, INSTALADO EM LOCAL COM NÍVEL ALTO DE INTERFERÊNCIAS - FORNECIMENTO E ASSENTAMENTO. AF_06/2015 | C75: M | D75: 39,10
A76: 90717 | B76: TUBO DE PVC CORRUGADO DE DUPLA PAREDE PARA REDE COLETORA DE ESGOTO, DN 200 MM, JUNTA ELÁSTICA, INSTALADO EM LOCAL COM NÍVEL ALTO DE INTERFERÊNCIAS - FORNECIMENTO E ASSENTAMENTO. AF_06/2015 | C76: M | D76: 58,06
A77: 90718 | B77: TUBO DE PVC CORRUGADO DE DUPLA PAREDE PARA REDE COLETORA DE ESGOTO, DN 250 MM, JUNTA ELÁSTICA, INSTALADO EM LOCAL COM NÍVEL ALTO DE INTERFERÊNCIAS - FORNECIMENTO E ASSENTAMENTO. AF_06/2015 | C77: M | D77: 94,49
A78: 90719 | B78: TUBO DE PVC CORRUGADO DE DUPLA PAREDE PARA REDE COLETORA DE ESGOTO, DN 300 MM, JUNTA ELÁSTICA, INSTALADO EM LOCAL COM NÍVEL ALTO DE INTERFERÊNCIAS - FORNECIMENTO E ASSENTAMENTO. AF_06/2015 | C78: M | D78: 146,68
A79: 90720 | B79: TUBO DE PVC CORRUGADO DE DUPLA PAREDE PARA REDE COLETORA DE ESGOTO, DN 350 MM, JUNTA ELÁSTICA, INSTALADO EM LOCAL COM NÍVEL ALTO DE INTERFERÊNCIAS - FORNECIMENTO E ASSENTAMENTO. AF_06/2015 | C79: M | D79: 214,05
A80: 90721 | B80: TUBO DE PVC CORRUGADO DE DUPLA PAREDE PARA REDE COLETORA DE ESGOTO, DN 400 MM, EM JUNTA ELÁSTICA, INSTALADO EM LOCAL COM NÍVEL ALTO DE INTERFERÊNCIAS - FORNECIMENTO E ASSENTAMENTO. AF_06/2015 | C80: M | D80: 262,70
A81: 90723 | B81: TUBO DE PEAD CORRUGADO DE DUPLA PAREDE PARA REDE COLETORA DE ESGOTO, DN 600 MM, JUNTA ELÁSTICA INTEGRADA, INSTALADO EM LOCAL COM NÍVEL ALTO DE INTERFERÊNCIAS - FORNECIMENTO E ASSENTAMENTO. AF_06/2015 | C81: M | D81: 415,57
A82: 90724 | B82: JUNTA ARGAMASSADA ENTRE TUBO DN 100 MM E O POÇO DE VISITA/ CAIXA DE CONCRETO OU ALVENARIA EM REDES DE ESGOTO. AF_06/2015 | C82: UN | D82: 17,90
A83: 90725 | B83: JUNTA ARGAMASSADA ENTRE TUBO DN 150 MM E O POÇO DE VISITA/ CAIXA DE CONCRETO OU ALVENARIA EM REDES DE ESGOTO. AF_06/2015 | C83: UN | D83: 22,12
A84: 90726 | B84: JUNTA ARGAMASSADA ENTRE TUBO DN 200 MM E O POÇO/ CAIXA DE CONCRETO OU ALVENARIA EM REDES DE ESGOTO. AF_06/2015 | C84: UN | D84: 26,33
A85: 90727 | B85: JUNTA ARGAMASSADA ENTRE TUBO DN 250 MM E O POÇO DE VISITA/ CAIXA DE CONCRETO OU ALVENARIA EM REDES DE ESGOTO. AF_06/2015 | C85: UN | D85: 30,55
A86: 90728 | B86: JUNTA ARGAMASSADA ENTRE TUBO DN 300 MM E O POÇO DE VISITA/ CAIXA DE CONCRETO OU ALVENARIA EM REDES DE ESGOTO. AF_06/2015 | C86: UN | D86: 34,75
A87: 90729 | B87: JUNTA ARGAMASSADA ENTRE TUBO DN 350 MM E O POÇO DE VISITA/ CAIXA DE CONCRETO OU ALVENARIA EM REDES DE ESGOTO. AF_06/2015 | C87: UN | D87: 38,97
A88: 90730 | B88: JUNTA ARGAMASSADA ENTRE TUBO DN 400 MM E O POÇO DE VISITA/ CAIXA DE CONCRETO OU ALVENARIA EM REDES DE ESGOTO. AF_06/2015 | C88: UN | D88: 43,23
A89: 90731 | B89: JUNTA ARGAMASSADA ENTRE TUBO DN 450 MM E O POÇO DE VISITA/ CAIXA DE CONCRETO OU ALVENARIA EM REDES DE ESGOTO. AF_06/2015 | C89: UN | D89: 47,44
A90: 90732 | B90: JUNTA ARGAMASSADA ENTRE TUBO DN 600 MM E O POÇO DE VISITA/ CAIXA DE CONCRETO OU ALVENARIA EM REDES DE ESGOTO. AF_06/2015 | C90: UN | D90: 60,08
A91: 90733 | B91: ASSENTAMENTO DE TUBO DE PVC PARA REDE COLETORA DE ESGOTO DE PAREDE MACIÇA, DN 100 MM, JUNTA ELÁSTICA, INSTALADO EM LOCAL COM NÍVEL BAIXO DE INTERFERÊNCIAS (NÃO INCLUI FORNECIMENTO). AF_06/2015 | C91: M | D91: 1,93
A92: 90734 | B92: ASSENTAMENTO DE TUBO DE PVC PARA REDE COLETORA DE ESGOTO DE PAREDE MACIÇA, DN 150 MM, JUNTA ELÁSTICA, INSTALADO EM LOCAL COM NÍVEL BAIXO DE INTERFERÊNCIAS (NÃO INCLUI FORNECIMENTO). AF_06/2015 | C92: M | D92: 2,35
A93: 90735 | B93: ASSENTAMENTO DE TUBO DE PVC PARA REDE COLETORA DE ESGOTO DE PAREDE MACIÇA, DN 200 MM, JUNTA ELÁSTICA, INSTALADO EM LOCAL COM NÍVEL BAIXO DE INTERFERÊNCIAS (NÃO INCLUI FORNECIMENTO). AF_06/2015 | C93: M | D93: 2,79
A94: 90736 | B94: ASSENTAMENTO DE TUBO DE PVC PARA REDE COLETORA DE ESGOTO DE PAREDE MACIÇA, DN 250 MM, JUNTA ELÁSTICA, INSTALADO EM LOCAL COM NÍVEL BAIXO DE INTERFERÊNCIAS (NÃO INCLUI FORNECIMENTO). AF_06/2015 | C94: M | D94: 3,22
A95: 90737 | B95: ASSENTAMENTO DE TUBO DE PVC PARA REDE COLETORA DE ESGOTO DE PAREDE MACIÇA, DN 300 MM, JUNTA ELÁSTICA, INSTALADO EM LOCAL COM NÍVEL BAIXO DE INTERFERÊNCIAS (NÃO INCLUI FORNECIMENTO). AF_06/2015 | C95: M | D95: 3,66
A96: 90738 | B96: ASSENTAMENTO DE TUBO DE PVC PARA REDE COLETORA DE ESGOTO DE PAREDE MACIÇA, DN 350 MM, JUNTA ELÁSTICA, INSTALADO EM LOCAL COM NÍVEL BAIXO DE INTERFERÊNCIAS (NÃO INCLUI FORNECIMENTO). AF_06/2015 | C96: M | D96: 4,09
A97: 90739 | B97: ASSENTAMENTO DE TUBO DE PVC PARA REDE COLETORA DE ESGOTO DE PAREDE MACIÇA, DN 400 MM, JUNTA ELÁSTICA, INSTALADO EM LOCAL COM NÍVEL BAIXO DE INTERFERÊNCIAS (NÃO INCLUI FORNECIMENTO). AF_06/2015 | C97: M | D97: 10,22
A98: 90740 | B98: ASSENTAMENTO DE TUBO DE PVC CORRUGADO DE DUPLA PAREDE PARA REDE COLETORA DE ESGOTO, DN 150 MM, JUNTA ELÁSTICA, INSTALADO EM LOCAL COM NÍVEL BAIXO DE INTERFERÊNCIAS (NÃO INCLUI FORNECIMENTO). AF_06/2015 | C98: M | D98: 4,31
A99: 90741 | B99: ASSENTAMENTO DE TUBO DE PVC CORRUGADO DE DUPLA PAREDE PARA REDE COLETORA DE ESGOTO, DN 200 MM, JUNTA ELÁSTICA, INSTALADO EM LOCAL COM NÍVEL BAIXO DE INTERFERÊNCIAS (NÃO INCLUI FORNECIMENTO). AF_06/2015 | C99: M | D99: 4,74
A100: 90742 | B100: ASSENTAMENTO DE TUBO DE PVC CORRUGADO DE DUPLA PAREDE PARA REDE COLETORA DE ESGOTO, DN 250 MM, JUNTA ELÁSTICA, INSTALADO EM LOCAL COM NÍVEL BAIXO DE INTERFERÊNCIAS (NÃO INCLUI FORNECIMENTO). AF_06/2015 | C100: M | D100: 5,18
A101: 90743 | B101: ASSENTAMENTO DE TUBO DE PVC CORRUGADO DE DUPLA PAREDE PARA REDE COLETORA DE ESGOTO, DN 300 MM, JUNTA ELÁSTICA, INSTALADO EM LOCAL COM NÍVEL BAIXO DE INTERFERÊNCIAS (NÃO INCLUI FORNECIMENTO). AF_06/2015 | C101: M | D101: 5,60
A102: 90744 | B102: ASSENTAMENTO DE TUBO DE PVC CORRUGADO DE DUPLA PAREDE PARA REDE COLETORA DE ESGOTO, DN 350 MM, JUNTA ELÁSTICA, INSTALADO EM LOCAL COM NÍVEL BAIXO DE INTERFERÊNCIAS (NÃO INCLUI FORNECIMENTO). AF_06/2015 | C102: M | D102: 6,03
A103: 90745 | B103: ASSENTAMENTO DE TUBO DE PVC CORRUGADO DE DUPLA PAREDE PARA REDE COLETORA DE ESGOTO, DN 400 MM, JUNTA ELÁSTICA, INSTALADO EM LOCAL COM NÍVEL BAIXO DE INTERFERÊNCIAS (NÃO INCLUI FORNECIMENTO). AF_06/2015 | C103: M | D103: 14,62
A104: 90746 | B104: ASSENTAMENTO DE TUBO DE PEAD CORRUGADO DE DUPLA PAREDE PARA REDE COLETORA DE ESGOTO, DN 450 MM, JUNTA ELÁSTICA INTEGRADA, INSTALADO EM LOCAL COM NÍVEL BAIXO DE INTERFERÊNCIAS (NÃO INCLUI FORNECIMENTO). AF_06/2015 | C104: M | D104: 2,62
A105: 90747 | B105: ASSENTAMENTO DE TUBO DE PEAD CORRUGADO DE DUPLA PAREDE PARA REDE COLETORA DE ESGOTO, DN 600 MM, JUNTA ELÁSTICA INTEGRADA, INSTALADO EM LOCAL COM NÍVEL BAIXO DE INTERFERÊNCIAS (NÃO INCLUI FORNECIMENTO). AF_06/2015 | C105: M | D105: 11,04
A106: 90748 | B106: ASSENTAMENTO DE TUBO DE PVC PARA REDE COLETORA DE ESGOTO DE PAREDE MACIÇA, DN 100 MM, JUNTA ELÁSTICA, INSTALADO EM LOCAL COM NÍVEL ALTO DE INTERFERÊNCIAS (NÃO INCLUI FORNECIMENTO). AF_06/2015 | C106: M | D106: 3,46
A107: 90749 | B107: ASSENTAMENTO DE TUBO DE PVC PARA REDE COLETORA DE ESGOTO DE PAREDE MACIÇA, DN 150 MM, JUNTA ELÁSTICA, INSTALADO EM LOCAL COM NÍVEL ALTO DE INTERFERÊNCIAS (NÃO INCLUI FORNECIMENTO). AF_06/2015 | C107: M | D107: 3,90
A108: 90750 | B108: ASSENTAMENTO DE TUBO DE PVC PARA REDE COLETORA DE ESGOTO DE PAREDE MACIÇA, DN 200 MM, JUNTA ELÁSTICA, INSTALADO EM LOCAL COM NÍVEL ALTO DE INTERFERÊNCIAS (NÃO INCLUI FORNECIMENTO). AF_06/2015 | C108: M | D108: 4,33
A109: 90751 | B109: ASSENTAMENTO DE TUBO DE PVC PARA REDE COLETORA DE ESGOTO DE PAREDE MACIÇA, DN 250 MM, JUNTA ELÁSTICA, INSTALADO EM LOCAL COM NÍVEL ALTO DE INTERFERÊNCIAS (NÃO INCLUI FORNECIMENTO). AF_06/2015 | C109: M | D109: 4,76
A110: 90752 | B110: ASSENTAMENTO DE TUBO DE PVC PARA REDE COLETORA DE ESGOTO DE PAREDE MACIÇA, DN 300 MM, JUNTA ELÁSTICA, INSTALADO EM LOCAL COM NÍVEL ALTO DE INTERFERÊNCIAS (NÃO INCLUI FORNECIMENTO). AF_06/2015 | C110: M | D110: 5,19
A111: 90753 | B111: ASSENTAMENTO DE TUBO DE PVC PARA REDE COLETORA DE ESGOTO DE PAREDE MACIÇA, DN 350 MM, JUNTA ELÁSTICA, INSTALADO EM LOCAL COM NÍVEL ALTO DE INTERFERÊNCIAS (NÃO INCLUI FORNECIMENTO). AF_06/2015 | C111: M | D111: 5,62
A112: 90754 | B112: ASSENTAMENTO DE TUBO DE PVC PARA REDE COLETORA DE ESGOTO DE PAREDE MACIÇA, DN 400 MM, JUNTA ELÁSTICA, INSTALADO EM LOCAL COM NÍVEL ALTO DE INTERFERÊNCIAS (NÃO INCLUI FORNECIMENTO). AF_06/2015 | C112: M | D112: 13,69
A113: 90755 | B113: ASSENTAMENTO DE TUBO DE PVC CORRUGADO DE DUPLA PAREDE PARA REDE COLETORA DE ESGOTO, DN 150 MM, JUNTA ELÁSTICA, INSTALADO EM LOCAL COM NÍVEL ALTO DE INTERFERÊNCIAS (NÃO INCLUI FORNECIMENTO). AF_06/2015 | C113: M | D113: 5,84
A114: 90756 | B114: ASSENTAMENTO DE TUBO DE PVC CORRUGADO DE DUPLA PAREDE PARA REDE COLETORA DE ESGOTO, DN 200 MM, JUNTA ELÁSTICA, INSTALADO EM LOCAL COM NÍVEL ALTO DE INTERFERÊNCIAS (NÃO INCLUI FORNECIMENTO). AF_06/2015 | C114: M | D114: 6,27
A115: 90757 | B115: ASSENTAMENTO DE TUBO DE PVC CORRUGADO DE DUPLA PAREDE PARA REDE COLETORA DE ESGOTO, DN 250 MM, JUNTA ELÁSTICA, INSTALADO EM LOCAL COM NÍVEL ALTO DE INTERFERÊNCIAS (NÃO INCLUI FORNECIMENTO). AF_06/2015 | C115: M | D115: 6,71
A116: 90758 | B116: ASSENTAMENTO DE TUBO DE PVC CORRUGADO DE DUPLA PAREDE PARA REDE COLETORA DE ESGOTO, DN 300 MM, JUNTA ELÁSTICA, INSTALADO EM LOCAL COM NÍVEL ALTO DE INTERFERÊNCIAS (NÃO INCLUI FORNECIMENTO). AF_06/2015 | C116: M | D116: 7,14
A117: 90759 | B117: ASSENTAMENTO DE TUBO DE PVC CORRUGADO DE DUPLA PAREDE PARA REDE COLETORA DE ESGOTO, DN 350 MM, JUNTA ELÁSTICA, INSTALADO EM LOCAL COM NÍVEL ALTO DE INTERFERÊNCIAS (NÃO INCLUI FORNECIMENTO). AF_06/2015 | C117: M | D117: 7,57
A118: 90760 | B118: ASSENTAMENTO DE TUBO DE PVC CORRUGADO DE DUPLA PAREDE PARA REDE COLETORA DE ESGOTO, DN 400 MM, EM JUNTA ELÁSTICA, INSTALADO EM LOCAL COM NÍVEL ALTO DE INTERFERÊNCIAS (NÃO INCLUI FORNECIMENTO). AF_06/2015 | C118: M | D118: 18,09
A119: 90761 | B119: ASSENTAMENTO DE TUBO DE PEAD CORRUGADO DE DUPLA PAREDE PARA REDE COLETORA DE ESGOTO, DN 450 MM, JUNTA ELÁSTICA INTEGRADA, INSTALADO EM LOCAL COM NÍVEL ALTO DE INTERFERÊNCIAS (NÃO INCLUI FORNECIMENTO). AF_06/2015 | C119: M | D119: 3,22
A120: 90762 | B120: ASSENTAMENTO DE TUBO DE PEAD CORRUGADO DE DUPLA PAREDE PARA REDE COLETORA DE ESGOTO, DN 600 MM, JUNTA ELÁSTICA INTEGRADA, INSTALADO EM LOCAL COM NÍVEL ALTO DE INTERFERÊNCIAS (NÃO INCLUI FORNECIMENTO). AF_06/2015 | C120: M | D120: 13,14
A121: 94869 | B121: TUBO DE PEAD CORRUGADO DE DUPLA PAREDE PARA REDE COLETORA DE ESGOTO, DN 250 MM, JUNTA ELÁSTICA INTEGRADA, INSTALADO EM LOCAL COM NÍVEL BAIXO DE INTERFERÊNCIAS - FORNECIMENTO E ASSENTAMENTO. AF_06/2016 | C121: M | D121: 70,93
A122: 94870 | B122: ASSENTAMENTO DE TUBO DE PEAD CORRUGADO DE DUPLA PAREDE PARA REDE COLETORA DE ESGOTO, DN 250 MM, JUNTA ELÁSTICA INTEGRADA, INSTALADO EM LOCAL COM NÍVEL BAIXO DE INTERFERÊNCIAS (NÃO INCLUI FORNECIMENTO). AF_06/2016 | C122: M | D122: 0,63
A123: 94871 | B123: TUBO DE PEAD CORRUGADO DE DUPLA PAREDE PARA REDE COLETORA DE ESGOTO, DN 300 MM, JUNTA ELÁSTICA INTEGRADA, INSTALADO EM LOCAL COM NÍVEL BAIXO DE INTERFERÊNCIAS - FORNECIMENTO E ASSENTAMENTO. AF_06/2016 | C123: M | D123: 104,92
A124: 94872 | B124: ASSENTAMENTO DE TUBO DE PEAD CORRUGADO DE DUPLA PAREDE PARA REDE COLETORA DE ESGOTO, DN 300 MM, JUNTA ELÁSTICA INTEGRADA, INSTALADO EM LOCAL COM NÍVEL BAIXO DE INTERFERÊNCIAS (NÃO INCLUI FORNECIMENTO). AF_06/2016 | C124: M | D124: 1,12
A125: 94875 | B125: TUBO DE PEAD CORRUGADO DE DUPLA PAREDE PARA REDE COLETORA DE ESGOTO, DN 750 MM, JUNTA ELÁSTICA INTEGRADA, INSTALADO EM LOCAL COM NÍVEL BAIXO DE INTERFERÊNCIAS - FORNECIMENTO E ASSENTAMENTO. AF_06/2016 | C125: M | D125: 613,58
A126: 94876 | B126: ASSENTAMENTO DE TUBO DE PEAD CORRUGADO DE DUPLA PAREDE PARA REDE COLETORA DE ESGOTO, DN 750 MM, JUNTA ELÁSTICA INTEGRADA, INSTALADO EM LOCAL COM NÍVEL BAIXO DE INTERFERÊNCIAS (NÃO INCLUI FORNECIMENTO). AF_06/2016 | C126: M | D126: 16,71
A127: 94878 | B127: ASSENTAMENTO DE TUBO DE PEAD CORRUGADO DE DUPLA PAREDE PARA REDE COLETORA DE ESGOTO, DN 900 MM, JUNTA ELÁSTICA INTEGRADA, INSTALADO EM LOCAL COM NÍVEL BAIXO DE INTERFERÊNCIAS (NÃO INCLUI FORNECIMENTO). AF_06/2016 | C127: M | D127: 19,60
A128: 94879 | B128: TUBO DE PEAD CORRUGADO DE DUPLA PAREDE PARA REDE COLETORA DE ESGOTO, DN 1000 MM, JUNTA ELÁSTICA INTEGRADA, INSTALADO EM LOCAL COM NÍVEL BAIXO DE INTERFERÊNCIAS - FORNECIMENTO E ASSENTAMENTO. AF_06/2016 | C128: M | D128: 929,37
A129: 94880 | B129: ASSENTAMENTO DE TUBO DE PEAD CORRUGADO DE DUPLA PAREDE PARA REDE COLETORA DE ESGOTO, DN 1000 MM, JUNTA ELÁSTICA INTEGRADA, INSTALADO EM LOCAL COM NÍVEL BAIXO DE INTERFERÊNCIAS (NÃO INCLUI FORNECIMENTO). AF_06/2016 | C129: M | D129: 24,01
A130: 94881 | B130: TUBO DE PEAD CORRUGADO DE DUPLA PAREDE PARA REDE COLETORA DE ESGOTO, DN 1200 MM, JUNTA ELÁSTICA INTEGRADA, INSTALADO EM LOCAL COM NÍVEL BAIXO DE INTERFERÊNCIAS - FORNECIMENTO E ASSENTAMENTO. AF_06/2016 | C130: M | D130: 1.323,46
A131: 94882 | B131: ASSENTAMENTO DE TUBO DE PEAD CORRUGADO DE DUPLA PAREDE PARA REDE COLETORA DE ESGOTO, DN 1200 MM, JUNTA ELÁSTICA INTEGRADA, INSTALADO EM LOCAL COM NÍVEL BAIXO DE INTERFERÊNCIAS (NÃO INCLUI FORNECIMENTO). AF_06/2016 | C131: M | D131: 28,49
A132: 94884 | B132: ASSENTAMENTO DE TUBO DE PEAD CORRUGADO DE DUPLA PAREDE PARA REDE COLETORA DE ESGOTO, DN 1500 MM, JUNTA ELÁSTICA INTEGRADA, INSTALADO EM LOCAL COM NÍVEL BAIXO DE INTERFERÊNCIAS (NÃO INCLUI FORNECIMENTO). AF_06/2016 | C132: M | D132: 37,56
A133: 94885 | B133: TUBO DE PEAD CORRUGADO DE DUPLA PAREDE PARA REDE COLETORA DE ESGOTO, DN 250 MM, JUNTA ELÁSTICA INTEGRADA, INSTALADO EM LOCAL COM NÍVEL ALTO DE INTERFERÊNCIAS - FORNECIMENTO E ASSENTAMENTO. AF_06/2016 | C133: M | D133: 71,12
A134: 94886 | B134: ASSENTAMENTO DE TUBO DE PEAD CORRUGADO DE DUPLA PAREDE PARA REDE COLETORA DE ESGOTO, DN 250 MM, JUNTA ELÁSTICA INTEGRADA, INSTALADO EM LOCAL COM NÍVEL ALTO DE INTERFERÊNCIAS (NÃO INCLUI FORNECIMENTO). AF_06/2016 | C134: M | D134: 0,82
A135: 94887 | B135: TUBO DE PEAD CORRUGADO DE DUPLA PAREDE PARA REDE COLETORA DE ESGOTO, DN 300 MM, JUNTA ELÁSTICA INTEGRADA, INSTALADO EM LOCAL COM NÍVEL ALTO DE INTERFERÊNCIAS - FORNECIMENTO E ASSENTAMENTO. AF_06/2016 | C135: M | D135: 105,23
A136: 94888 | B136: ASSENTAMENTO DE TUBO DE PEAD CORRUGADO DE DUPLA PAREDE PARA REDE COLETORA DE ESGOTO, DN 300 MM, JUNTA ELÁSTICA INTEGRADA, INSTALADO EM LOCAL COM NÍVEL ALTO DE INTERFERÊNCIAS (NÃO INCLUI FORNECIMENTO). AF_06/2016 | C136: M | D136: 1,43
A137: 94891 | B137: TUBO DE PEAD CORRUGADO DE DUPLA PAREDE PARA REDE COLETORA DE ESGOTO, DN 750 MM, JUNTA ELÁSTICA INTEGRADA, INSTALADO EM LOCAL COM NÍVEL ALTO DE INTERFERÊNCIAS - FORNECIMENTO E ASSENTAMENTO. AF_06/2016 | C137: M | D137: 616,27
A138: 94892 | B138: ASSENTAMENTO DE TUBO DE PEAD CORRUGADO DE DUPLA PAREDE PARA REDE COLETORA DE ESGOTO, DN 750 MM, JUNTA ELÁSTICA INTEGRADA, INSTALADO EM LOCAL COM NÍVEL ALTO DE INTERFERÊNCIAS (NÃO INCLUI FORNECIMENTO). AF_06/2016 | C138: M | D138: 19,40
A139: 94894 | B139: ASSENTAMENTO DE TUBO DE PEAD CORRUGADO DE DUPLA PAREDE PARA REDE COLETORA DE ESGOTO, DN 900 MM, JUNTA ELÁSTICA INTEGRADA, INSTALADO EM LOCAL COM NÍVEL ALTO DE INTERFERÊNCIAS (NÃO INCLUI FORNECIMENTO). AF_06/2016 | C139: M | D139: 22,53
A140: 94895 | B140: TUBO DE PEAD CORRUGADO DE DUPLA PAREDE PARA REDE COLETORA DE ESGOTO, DN 1000 MM, JUNTA ELÁSTICA INTEGRADA, INSTALADO EM LOCAL COM NÍVEL ALTO DE INTERFERÊNCIAS - FORNECIMENTO E ASSENTAMENTO. AF_06/2016 | C140: M | D140: 932,59
A141: 94896 | B141: ASSENTAMENTO DE TUBO DE PEAD CORRUGADO DE DUPLA PAREDE PARA REDE COLETORA DE ESGOTO, DN 1000 MM, JUNTA ELÁSTICA INTEGRADA, INSTALADO EM LOCAL COM NÍVEL ALTO DE INTERFERÊNCIAS (NÃO INCLUI FORNECIMENTO). AF_06/2016 | C141: M | D141: 27,23
A142: 94897 | B142: TUBO DE PEAD CORRUGADO DE DUPLA PAREDE PARA REDE COLETORA DE ESGOTO, DN 1200 MM, JUNTA ELÁSTICA INTEGRADA, INSTALADO EM LOCAL COM NÍVEL ALTO DE INTERFERÊNCIAS - FORNECIMENTO E ASSENTAMENTO. AF_06/2016 | C142: M | D142: 1.326,90
A143: 94898 | B143: ASSENTAMENTO DE TUBO DE PEAD CORRUGADO DE DUPLA PAREDE PARA REDE COLETORA DE ESGOTO, DN 1200 MM, JUNTA ELÁSTICA INTEGRADA, INSTALADO EM LOCAL COM NÍVEL ALTO DE INTERFERÊNCIAS (NÃO INCLUI FORNECIMENTO). AF_06/2016 | C143: M | D143: 31,93
A144: 94900 | B144: ASSENTAMENTO DE TUBO DE PEAD CORRUGADO DE DUPLA PAREDE PARA REDE COLETORA DE ESGOTO, DN 1500 MM, JUNTA ELÁSTICA INTEGRADA, INSTALADO EM LOCAL COM NÍVEL ALTO DE INTERFERÊNCIAS (NÃO INCLUI FORNECIMENTO). AF_06/2016 | C144: M | D144: 41,33
A145: 97121 | B145: ASSENTAMENTO DE TUBO DE PVC PBA PARA REDE DE ÁGUA, DN 50 MM, JUNTA ELÁSTICA INTEGRADA, INSTALADO EM LOCAL COM NÍVEL ALTO DE INTERFERÊNCIAS (NÃO INCLUI FORNECIMENTO). AF_11/2017 | C145: M | D145: 1,43
A146: 97122 | B146: ASSENTAMENTO DE TUBO DE PVC PBA PARA REDE DE ÁGUA, DN 75 MM, JUNTA ELÁSTICA INTEGRADA, INSTALADO EM LOCAL COM NÍVEL ALTO DE INTERFERÊNCIAS (NÃO INCLUI FORNECIMENTO). AF_11/2017 | C146: M | D146: 2,00
A147: 97123 | B147: ASSENTAMENTO DE TUBO DE PVC PBA PARA REDE DE ÁGUA, DN 100 MM, JUNTA ELÁSTICA INTEGRADA, INSTALADO EM LOCAL COM NÍVEL ALTO DE INTERFERÊNCIAS (NÃO INCLUI FORNECIMENTO). AF_11/2017 | C147: M | D147: 2,53
A148: 97124 | B148: ASSENTAMENTO DE TUBO DE PVC PBA PARA REDE DE ÁGUA, DN 50 MM, JUNTA ELÁSTICA INTEGRADA, INSTALADO EM LOCAL COM NÍVEL BAIXO DE INTERFERÊNCIAS (NÃO INCLUI FORNECIMENTO). AF_11/2017 | C148: M | D148: 0,63
A149: 97125 | B149: ASSENTAMENTO DE TUBO DE PVC PBA PARA REDE DE ÁGUA, DN 75 MM, JUNTA ELÁSTICA INTEGRADA, INSTALADO EM LOCAL COM NÍVEL BAIXO DE INTERFERÊNCIAS (NÃO INCLUI FORNECIMENTO). AF_11/2017 | C149: M | D149: 0,90
A150: 97126 | B150: ASSENTAMENTO DE TUBO DE PVC PBA PARA REDE DE ÁGUA, DN 100 MM, JUNTA ELÁSTICA INTEGRADA, INSTALADO EM LOCAL COM NÍVEL BAIXO DE INTERFERÊNCIAS (NÃO INCLUI FORNECIMENTO). AF_11/2017 | C150: M | D150: 1,13
A151: 92833 | B151: TUBO DE CONCRETO PARA REDES COLETORAS DE ESGOTO SANITÁRIO, DIÂMETRO DE 300 MM, JUNTA ELÁSTICA, INSTALADO EM LOCAL COM BAIXO NÍVEL DE INTERFERÊNCIAS - FORNECIMENTO E ASSENTAMENTO. AF_12/2015 | C151: M | D151: 97,96
A152: 92834 | B152: ASSENTAMENTO DE TUBO DE CONCRETO PARA REDES COLETORAS DE ESGOTO SANITÁRIO, DIÂMETRO DE 300 MM, JUNTA ELÁSTICA, INSTALADO EM LOCAL COM BAIXO NÍVEL DE INTERFERÊNCIAS (NÃO INCLUI FORNECIMENTO). AF_12/2015 | C152: M | D152: 5,85
A153: 92835 | B153: TUBO DE CONCRETO PARA REDES COLETORAS DE ESGOTO SANITÁRIO, DIÂMETRO DE 400 MM, JUNTA ELÁSTICA, INSTALADO EM LOCAL COM BAIXO NÍVEL DE INTERFERÊNCIAS - FORNECIMENTO E ASSENTAMENTO. AF_12/2015 | C153: M | D153: 128,13
A154: 92836 | B154: ASSENTAMENTO DE TUBO DE CONCRETO PARA REDES COLETORAS DE ESGOTO SANITÁRIO, DIÂMETRO DE 400 MM, JUNTA ELÁSTICA, INSTALADO EM LOCAL COM BAIXO NÍVEL DE INTERFERÊNCIAS (NÃO INCLUI FORNECIMENTO). AF_12/2015 | C154: M | D154: 7,49
A155: 92837 | B155: TUBO DE CONCRETO PARA REDES COLETORAS DE ESGOTO SANITÁRIO, DIÂMETRO DE 500 MM, JUNTA ELÁSTICA, INSTALADO EM LOCAL COM BAIXO NÍVEL DE INTERFERÊNCIAS - FORNECIMENTO E ASSENTAMENTO. AF_12/2015 | C155: M | D155: 161,44
A156: 92838 | B156: ASSENTAMENTO DE TUBO DE CONCRETO PARA REDES COLETORAS DE ESGOTO SANITÁRIO, DIÂMETRO DE 500 MM, JUNTA ELÁSTICA, INSTALADO EM LOCAL COM BAIXO NÍVEL DE INTERFERÊNCIAS (NÃO INCLUI FORNECIMENTO). AF_12/2015 | C156: M | D156: 8,99
A157: 92839 | B157: TUBO DE CONCRETO PARA REDES COLETORAS DE ESGOTO SANITÁRIO, DIÂMETRO DE 600 MM, JUNTA ELÁSTICA, INSTALADO EM LOCAL COM BAIXO NÍVEL DE INTERFERÊNCIAS - FORNECIMENTO E ASSENTAMENTO. AF_12/2015 | C157: M | D157: 210,85
A158: 92840 | B158: ASSENTAMENTO DE TUBO DE CONCRETO PARA REDES COLETORAS DE ESGOTO SANITÁRIO, DIÂMETRO DE 600 MM, JUNTA ELÁSTICA, INSTALADO EM LOCAL COM BAIXO NÍVEL DE INTERFERÊNCIAS (NÃO INCLUI FORNECIMENTO). AF_12/2015 | C158: M | D158: 10,64
A159: 92841 | B159: TUBO DE CONCRETO PARA REDES COLETORAS DE ESGOTO SANITÁRIO, DIÂMETRO DE 700 MM, JUNTA ELÁSTICA, INSTALADO EM LOCAL COM BAIXO NÍVEL DE INTERFERÊNCIAS - FORNECIMENTO E ASSENTAMENTO. AF_12/2015 | C159: M | D159: 238,08
A160: 92842 | B160: ASSENTAMENTO DE TUBO DE CONCRETO PARA REDES COLETORAS DE ESGOTO SANITÁRIO, DIÂMETRO DE 700 MM, JUNTA ELÁSTICA, INSTALADO EM LOCAL COM BAIXO NÍVEL DE INTERFERÊNCIAS (NÃO INCLUI FORNECIMENTO). AF_12/2015 | C160: M | D160: 12,17
A161: 92844 | B161: ASSENTAMENTO DE TUBO DE CONCRETO PARA REDES COLETORAS DE ESGOTO SANITÁRIO, DIÂMETRO DE 800 MM, JUNTA ELÁSTICA, INSTALADO EM LOCAL COM BAIXO NÍVEL DE INTERFERÊNCIAS (NÃO INCLUI FORNECIMENTO). AF_12/2015 | C161: M | D161: 13,83
A162: 92846 | B162: ASSENTAMENTO DE TUBO DE CONCRETO PARA REDES COLETORAS DE ESGOTO SANITÁRIO, DIÂMETRO DE 900 MM, JUNTA ELÁSTICA, INSTALADO EM LOCAL COM BAIXO NÍVEL DE INTERFERÊNCIAS (NÃO INCLUI FORNECIMENTO). AF_12/2015 | C162: M | D162: 15,32
A163: 92847 | B163: TUBO DE CONCRETO PARA REDES COLETORAS DE ESGOTO SANITÁRIO, DIÂMETRO DE 1000 MM, JUNTA ELÁSTICA, INSTALADO EM LOCAL COM BAIXO NÍVEL DE INTERFERÊNCIAS - FORNECIMENTO E ASSENTAMENTO. AF_12/2015 | C163: M | D163: 411,21
A164: 92848 | B164: ASSENTAMENTO DE TUBO DE CONCRETO PARA REDES COLETORAS DE ESGOTO SANITÁRIO, DIÂMETRO DE 1000 MM, JUNTA ELÁSTICA, INSTALADO EM LOCAL COM BAIXO NÍVEL DE INTERFERÊNCIAS (NÃO INCLUI FORNECIMENTO). AF_12/2015 | C164: M | D164: 17,01
A165: 92849 | B165: TUBO DE CONCRETO PARA REDES COLETORAS DE ESGOTO SANITÁRIO, DIÂMETRO DE 300 MM, JUNTA ELÁSTICA, INSTALADO EM LOCAL COM ALTO NÍVEL DE INTERFERÊNCIAS - FORNECIMENTO E ASSENTAMENTO. AF_12/2015 | C165: M | D165: 103,27
A166: 92850 | B166: ASSENTAMENTO DE TUBO DE CONCRETO PARA REDES COLETORAS DE ESGOTO SANITÁRIO, DIÂMETRO DE 300 MM, JUNTA ELÁSTICA, INSTALADO EM LOCAL COM ALTO NÍVEL DE INTERFERÊNCIAS (NÃO INCLUI FORNECIMENTO). AF_12/2015 | C166: M | D166: 11,10
A167: 92851 | B167: TUBO DE CONCRETO PARA REDES COLETORAS DE ESGOTO SANITÁRIO, DIÂMETRO DE 400 MM, JUNTA ELÁSTICA, INSTALADO EM LOCAL COM ALTO NÍVEL DE INTERFERÊNCIAS - FORNECIMENTO E ASSENTAMENTO. AF_12/2015 | C167: M | D167: 134,74
A168: 92852 | B168: ASSENTAMENTO DE TUBO DE CONCRETO PARA REDES COLETORAS DE ESGOTO SANITÁRIO, DIÂMETRO DE 400 MM, JUNTA ELÁSTICA, INSTALADO EM LOCAL COM ALTO NÍVEL DE INTERFERÊNCIAS (NÃO INCLUI FORNECIMENTO). AF_12/2015 | C168: M | D168: 14,02
A169: 92853 | B169: TUBO DE CONCRETO PARA REDES COLETORAS DE ESGOTO SANITÁRIO, DIÂMETRO DE 500 MM, JUNTA ELÁSTICA, INSTALADO EM LOCAL COM ALTO NÍVEL DE INTERFERÊNCIAS - FORNECIMENTO E ASSENTAMENTO. AF_12/2015 | C169: M | D169: 169,62
A170: 92854 | B170: ASSENTAMENTO DE TUBO DE CONCRETO PARA REDES COLETORAS DE ESGOTO SANITÁRIO, DIÂMETRO DE 500 MM, JUNTA ELÁSTICA, INSTALADO EM LOCAL COM ALTO NÍVEL DE INTERFERÊNCIAS (NÃO INCLUI FORNECIMENTO). AF_12/2015 | C170: M | D170: 17,06
A171: 92855 | B171: TUBO DE CONCRETO PARA REDES COLETORAS DE ESGOTO SANITÁRIO, DIÂMETRO DE 600 MM, JUNTA ELÁSTICA, INSTALADO EM LOCAL COM ALTO NÍVEL DE INTERFERÊNCIAS - FORNECIMENTO E ASSENTAMENTO. AF_12/2015 | C171: M | D171: 220,45
A172: 92856 | B172: ASSENTAMENTO DE TUBO DE CONCRETO PARA REDES COLETORAS DE ESGOTO SANITÁRIO, DIÂMETRO DE 600 MM, JUNTA ELÁSTICA, INSTALADO EM LOCAL COM ALTO NÍVEL DE INTERFERÊNCIAS (NÃO INCLUI FORNECIMENTO). AF_12/2015 | C172: M | D172: 20,12
A173: 92857 | B173: TUBO DE CONCRETO PARA REDES COLETORAS DE ESGOTO SANITÁRIO, DIÂMETRO DE 700 MM, JUNTA ELÁSTICA, INSTALADO EM LOCAL COM ALTO NÍVEL DE INTERFERÊNCIAS - FORNECIMENTO E ASSENTAMENTO. AF_12/2015 | C173: M | D173: 249,08
A174: 92858 | B174: ASSENTAMENTO DE TUBO DE CONCRETO PARA REDES COLETORAS DE ESGOTO SANITÁRIO, DIÂMETRO DE 700 MM, JUNTA ELÁSTICA, INSTALADO EM LOCAL COM ALTO NÍVEL DE INTERFERÊNCIAS (NÃO INCLUI FORNECIMENTO). AF_12/2015 | C174: M | D174: 23,03
A175: 92860 | B175: ASSENTAMENTO DE TUBO DE CONCRETO PARA REDES COLETORAS DE ESGOTO SANITÁRIO, DIÂMETRO DE 800 MM, JUNTA ELÁSTICA, INSTALADO EM LOCAL COM ALTO NÍVEL DE INTERFERÊNCIAS (NÃO INCLUI FORNECIMENTO). AF_12/2015 | C175: M | D175: 26,14
A176: 92862 | B176: ASSENTAMENTO DE TUBO DE CONCRETO PARA REDES COLETORAS DE ESGOTO SANITÁRIO, DIÂMETRO DE 900 MM, JUNTA ELÁSTICA, INSTALADO EM LOCAL COM ALTO NÍVEL DE INTERFERÊNCIAS (NÃO INCLUI FORNECIMENTO). AF_12/2015 | C176: M | D176: 29,18
A177: 92863 | B177: TUBO DE CONCRETO PARA REDES COLETORAS DE ESGOTO SANITÁRIO, DIÂMETRO DE 1000 MM, JUNTA ELÁSTICA, INSTALADO EM LOCAL COM ALTO NÍVEL DE INTERFERÊNCIAS - FORNECIMENTO E ASSENTAMENTO. AF_12/2015 | C177: M | D177: 426,63
A178: 92864 | B178: ASSENTAMENTO DE TUBO DE CONCRETO PARA REDES COLETORAS DE ESGOTO SANITÁRIO, DIÂMETRO DE 1000 MM, JUNTA ELÁSTICA, INSTALADO EM LOCAL COM ALTO NÍVEL DE INTERFERÊNCIAS (NÃO INCLUI FORNECIMENTO). AF_12/2015 | C178: M | D178: 32,23
A179: 92210 | B179: TUBO DE CONCRETO PARA REDES COLETORAS DE ÁGUAS PLUVIAIS, DIÂMETRO DE 400 MM, JUNTA RÍGIDA, INSTALADO EM LOCAL COM BAIXO NÍVEL DE INTERFERÊNCIAS - FORNECIMENTO E ASSENTAMENTO. AF_12/2015 | C179: M | D179: 82,23
A180: 92211 | B180: TUBO DE CONCRETO PARA REDES COLETORAS DE ÁGUAS PLUVIAIS, DIÂMETRO DE 500 MM, JUNTA RÍGIDA, INSTALADO EM LOCAL COM BAIXO NÍVEL DE INTERFERÊNCIAS - FORNECIMENTO E ASSENTAMENTO. AF_12/2015 | C180: M | D180: 105,05
A181: 92212 | B181: TUBO DE CONCRETO PARA REDES COLETORAS DE ÁGUAS PLUVIAIS, DIÂMETRO DE 600 MM, JUNTA RÍGIDA, INSTALADO EM LOCAL COM BAIXO NÍVEL DE INTERFERÊNCIAS - FORNECIMENTO E ASSENTAMENTO. AF_12/2015 | C181: M | D181: 133,56
A182: 92213 | B182: TUBO DE CONCRETO PARA REDES COLETORAS DE ÁGUAS PLUVIAIS, DIÂMETRO DE 700 MM, JUNTA RÍGIDA, INSTALADO EM LOCAL COM BAIXO NÍVEL DE INTERFERÊNCIAS - FORNECIMENTO E ASSENTAMENTO. AF_12/2015 | C182: M | D182: 175,38
A183: 92214 | B183: TUBO DE CONCRETO PARA REDES COLETORAS DE ÁGUAS PLUVIAIS, DIÂMETRO DE 800 MM, JUNTA RÍGIDA, INSTALADO EM LOCAL COM BAIXO NÍVEL DE INTERFERÊNCIAS - FORNECIMENTO E ASSENTAMENTO. AF_12/2015 | C183: M | D183: 200,31
A184: 92215 | B184: TUBO DE CONCRETO PARA REDES COLETORAS DE ÁGUAS PLUVIAIS, DIÂMETRO DE 900 MM, JUNTA RÍGIDA, INSTALADO EM LOCAL COM BAIXO NÍVEL DE INTERFERÊNCIAS - FORNECIMENTO E ASSENTAMENTO. AF_12/2015 | C184: M | D184: 241,29
A185: 92216 | B185: TUBO DE CONCRETO PARA REDES COLETORAS DE ÁGUAS PLUVIAIS, DIÂMETRO DE 1000 MM, JUNTA RÍGIDA, INSTALADO EM LOCAL COM BAIXO NÍVEL DE INTERFERÊNCIAS - FORNECIMENTO E ASSENTAMENTO. AF_12/2015 | C185: M | D185: 270,69
A186: 92219 | B186: TUBO DE CONCRETO PARA REDES COLETORAS DE ÁGUAS PLUVIAIS, DIÂMETRO DE 400 MM, JUNTA RÍGIDA, INSTALADO EM LOCAL COM ALTO NÍVEL DE INTERFERÊNCIAS - FORNECIMENTO E ASSENTAMENTO. AF_12/2015 | C186: M | D186: 88,76
A187: 92220 | B187: TUBO DE CONCRETO PARA REDES COLETORAS DE ÁGUAS PLUVIAIS, DIÂMETRO DE 500 MM, JUNTA RÍGIDA, INSTALADO EM LOCAL COM ALTO NÍVEL DE INTERFERÊNCIAS - FORNECIMENTO E ASSENTAMENTO. AF_12/2015 | C187: M | D187: 113,14
A188: 92221 | B188: TUBO DE CONCRETO PARA REDES COLETORAS DE ÁGUAS PLUVIAIS, DIÂMETRO DE 600 MM, JUNTA RÍGIDA, INSTALADO EM LOCAL COM ALTO NÍVEL DE INTERFERÊNCIAS - FORNECIMENTO E ASSENTAMENTO. AF_12/2015 | C188: M | D188: 143,02
A189: 92222 | B189: TUBO DE CONCRETO PARA REDES COLETORAS DE ÁGUAS PLUVIAIS, DIÂMETRO DE 700 MM, JUNTA RÍGIDA, INSTALADO EM LOCAL COM ALTO NÍVEL DE INTERFERÊNCIAS - FORNECIMENTO E ASSENTAMENTO. AF_12/2015 | C189: M | D189: 186,39
A190: 92223 | B190: TUBO DE CONCRETO PARA REDES COLETORAS DE ÁGUAS PLUVIAIS, DIÂMETRO DE 800 MM, JUNTA RÍGIDA, INSTALADO EM LOCAL COM ALTO NÍVEL DE INTERFERÊNCIAS - FORNECIMENTO E ASSENTAMENTO. AF_12/2015 | C190: M | D190: 212,62
A191: 92224 | B191: TUBO DE CONCRETO PARA REDES COLETORAS DE ÁGUAS PLUVIAIS, DIÂMETRO DE 900 MM, JUNTA RÍGIDA, INSTALADO EM LOCAL COM ALTO NÍVEL DE INTERFERÊNCIAS - FORNECIMENTO E ASSENTAMENTO. AF_12/2015 | C191: M | D191: 254,97
A192: 92226 | B192: TUBO DE CONCRETO PARA REDES COLETORAS DE ÁGUAS PLUVIAIS, DIÂMETRO DE 1000 MM, JUNTA RÍGIDA, INSTALADO EM LOCAL COM ALTO NÍVEL DE INTERFERÊNCIAS - FORNECIMENTO E ASSENTAMENTO. AF_12/2015 | C192: M | D192: 285,97
A193: 92808 | B193: ASSENTAMENTO DE TUBO DE CONCRETO PARA REDES COLETORAS DE ÁGUAS PLUVIAIS, DIÂMETRO DE 300 MM, JUNTA RÍGIDA, INSTALADO EM LOCAL COM BAIXO NÍVEL DE INTERFERÊNCIAS (NÃO INCLUI FORNECIMENTO). AF_12/2015 | C193: M | D193: 26,42
A194: 92809 | B194: ASSENTAMENTO DE TUBO DE CONCRETO PARA REDES COLETORAS DE ÁGUAS PLUVIAIS, DIÂMETRO DE 400 MM, JUNTA RÍGIDA, INSTALADO EM LOCAL COM BAIXO NÍVEL DE INTERFERÊNCIAS (NÃO INCLUI FORNECIMENTO). AF_12/2015 | C194: M | D194: 33,89
A195: 92810 | B195: ASSENTAMENTO DE TUBO DE CONCRETO PARA REDES COLETORAS DE ÁGUAS PLUVIAIS, DIÂMETRO DE 500 MM, JUNTA RÍGIDA, INSTALADO EM LOCAL COM BAIXO NÍVEL DE INTERFERÊNCIAS (NÃO INCLUI FORNECIMENTO). AF_12/2015 | C195: M | D195: 41,22
A196: 92811 | B196: ASSENTAMENTO DE TUBO DE CONCRETO PARA REDES COLETORAS DE ÁGUAS PLUVIAIS, DIÂMETRO DE 600 MM, JUNTA RÍGIDA, INSTALADO EM LOCAL COM BAIXO NÍVEL DE INTERFERÊNCIAS (NÃO INCLUI FORNECIMENTO). AF_12/2015 | C196: M | D196: 49,10
A197: 92812 | B197: ASSENTAMENTO DE TUBO DE CONCRETO PARA REDES COLETORAS DE ÁGUAS PLUVIAIS, DIÂMETRO DE 700 MM, JUNTA RÍGIDA, INSTALADO EM LOCAL COM BAIXO NÍVEL DE INTERFERÊNCIAS (NÃO INCLUI FORNECIMENTO). AF_12/2015 | C197: M | D197: 56,83
A198: 92813 | B198: ASSENTAMENTO DE TUBO DE CONCRETO PARA REDES COLETORAS DE ÁGUAS PLUVIAIS, DIÂMETRO DE 800 MM, JUNTA RÍGIDA, INSTALADO EM LOCAL COM BAIXO NÍVEL DE INTERFERÊNCIAS (NÃO INCLUI FORNECIMENTO). AF_12/2015 | C198: M | D198: 65,88
A199: 92814 | B199: ASSENTAMENTO DE TUBO DE CONCRETO PARA REDES COLETORAS DE ÁGUAS PLUVIAIS, DIÂMETRO DE 900 MM, JUNTA RÍGIDA, INSTALADO EM LOCAL COM BAIXO NÍVEL DE INTERFERÊNCIAS (NÃO INCLUI FORNECIMENTO). AF_12/2015 | C199: M | D199: 75,32
A200: 92815 | B200: ASSENTAMENTO DE TUBO DE CONCRETO PARA REDES COLETORAS DE ÁGUAS PLUVIAIS, DIÂMETRO DE 1000 MM, JUNTA RÍGIDA, INSTALADO EM LOCAL COM BAIXO NÍVEL DE INTERFERÊNCIAS (NÃO INCLUI FORNECIMENTO). AF_12/2015 | C200: M | D200: 86,17
... 6245 more rows

Sheet Sinapi I 09 (hidden)
A1: CODIGO | B1: DESCRICAO DO INSUMO | C1: UNIDADE | D1: PRECO
A2: 36214 | B2: !EM PROCESSO DE DESATIVACAO! BARRA DE APOIO ANGULAR, 60 CM, EM ACO INOX POLIDO, DIAMETRO MINIMO 3 CM | C2: UN | D2: 223.58
A3: 36212 | B3: !EM PROCESSO DE DESATIVACAO! BARRA DE APOIO LAVATORIO DE CANTO, EM ACO INOX POLIDO, DIAMETRO MINIMO 3 CM. | C3: UN | D3: 376.23
A4: 36211 | B4: !EM PROCESSO DE DESATIVACAO! BARRA DE APOIO LAVATORIO, EM ACO INOX POLIDO, *40 X 50* CM, DIAMETRO MINIMO 3 CM | C4: UN | D4: 353.87
A5: 2404 | B5: !EM PROCESSO DE DESATIVACAO! DIVISORIA COLMEIA CEGA COM MONTANTE E RODAPE DE ALUMINIO ANODIZADO SIMPLES (SEM COLOCACAO) | C5: M2 | D5: 80.15
A6: 2720 | B6: !EM PROCESSO DE DESATIVACAO! ESCAVADEIRA DRAGA DE ARRASTE, CAP. 3/4 JC 140HP (INCL MANUTENCAO/OPERACAO) | C6: H | D6: 308.04
A7: 2719 | B7: !EM PROCESSO DE DESATIVACAO! ESCAVADEIRA HIDRAULICA SOBRE ESTEIRAS DE 99 HP, PESO OPERACIONAL DE *16* T E CAPACIDADE DE 0,85 A 1,00 M3 (LOCACAO COM OPERADOR, COMBUSTIVEL E MANUTENCAO) | C7: H | D7: 261
A8: 3378 | B8: !EM PROCESSO DE DESATIVACAO! HASTE DE ATERRAMENTO EM ACO COM 3,00 M DE COMPRIMENTO E DN = 3/4", REVESTIDA COM BAIXA CAMADA DE COBRE, SEM CONECTOR | C8: UN | D8: 48.87
A9: 3380 | B9: !EM PROCESSO DE DESATIVACAO! HASTE DE ATERRAMENTO EM ACO COM 3,00 M DE COMPRIMENTO E DN = 5/8", REVESTIDA COM BAIXA CAMADA DE COBRE, COM CONECTOR TIPO GRAMPO | C9: UN | D9: 34.21
A10: 3379 | B10: !EM PROCESSO DE DESATIVACAO! HASTE DE ATERRAMENTO EM ACO COM 3,00 M DE COMPRIMENTO E DN = 5/8", REVESTIDA COM BAIXA CAMADA DE COBRE, SEM CONECTOR | C10: UN | D10: 33.03
A11: 13382 | B11: !EM PROCESSO DE DESATIVACAO! LUMINARIA FECHADA P/ ILUMINACAO PUBLICA, TIPO ABL 50/F OU EQUIV, P/ LAMPADA A VAPOR DE MERCURIO 400W | C11: UN | D11: 215.2
A12: 20198 | B12: !EM PROCESSO DE DESATIVACAO! MADEIRA DE 1A. QUALIDADE (MADEIRA BRANCA), SERRADA E NAO APARELHADA, PARA FORMAS DE CONCRETO ARMADO | C12: M3 | D12: 1,216.67
A13: 4126 | B13: !EM PROCESSO DE DESATIVACAO! TERMINAL DE PORCELANA (MUFLA) UNIPOLAR, USO EXTERNO, TENSAO 3,6/6 KV, PARA CABO DE 10/16 MM2, COM ISOLAMENTO EPR | C13: UN | D13: 209.97
A14: 10615 | B14: !EM PROCESSO DE DESATIVACAO! VEICULO DE PASSEIO COM MOTOR 1.0 FLEX, POTENCIA 72/85 CV, 5 PORTAS, COR SOLIDA, BASICO | C14: UN | D14: 40,990.00
A15: 21136 | B15: !EM PROCESSO DESATIVACAO! ELETRODUTO EM ACO GALVANIZADO ELETROLITICO, LEVE, DIAMETRO 1", PAREDE DE 0,90 MM | C15: M | D15: 12.77
A16: 21128 | B16: !EM PROCESSO DESATIVACAO! ELETRODUTO EM ACO GALVANIZADO ELETROLITICO, LEVE, DIAMETRO 3/4", PAREDE DE 0,90 MM | C16: M | D16: 9.88
A17: 21130 | B17: !EM PROCESSO DESATIVACAO! ELETRODUTO EM ACO GALVANIZADO ELETROLITICO, SEMI-PESADO, DIAMETRO 1 1/2", PAREDE DE 1,20 MM | C17: M | D17: 24.95
A18: 21135 | B18: !EM PROCESSO DESATIVACAO! ELETRODUTO EM ACO GALVANIZADO ELETROLITICO, SEMI-PESADO, DIAMETRO 1 1/4", PAREDE DE 1,20 MM | C18: M | D18: 24.56
A19: 38605 | B19: ABERTURA PARA ENCAIXE DE CUBA OU LAVATORIO EM BANCADA DE MARMORE/ GRANITO OU OUTRO TIPO DE PEDRA NATURAL | C19: UN | D19: 103.06
A20: 11270 | B20: ABRACADEIRA DE LATAO PARA FIXACAO DE CABO PARA-RAIO, DIMENSOES 32 X 24 X 24 MM | C20: UN | D20: 1.36
A21: 412 | B21: ABRACADEIRA DE NYLON PARA AMARRACAO DE CABOS, COMPRIMENTO DE *230* X *7,6* MM | C21: UN | D21: 1.02
A22: 414 | B22: ABRACADEIRA DE NYLON PARA AMARRACAO DE CABOS, COMPRIMENTO DE 100 X 2,5 MM | C22: UN | D22: 0.06
A23: 410 | B23: ABRACADEIRA DE NYLON PARA AMARRACAO DE CABOS, COMPRIMENTO DE 150 X *3,6* MM | C23: UN | D23: 0.15
A24: 411 | B24: ABRACADEIRA DE NYLON PARA AMARRACAO DE CABOS, COMPRIMENTO DE 200 X *4,6* MM | C24: UN | D24: 0.2
A25: 408 | B25: ABRACADEIRA DE NYLON PARA AMARRACAO DE CABOS, COMPRIMENTO DE 390 X *4,6* MM | C25: UN | D25: 0.99
A26: 39131 | B26: ABRACADEIRA EM ACO PARA AMARRACAO DE ELETRODUTOS, TIPO D, COM 1 1/2" E CUNHA DE FIXACAO | C26: UN | D26: 2.68
A27: 394 | B27: ABRACADEIRA EM ACO PARA AMARRACAO DE ELETRODUTOS, TIPO D, COM 1 1/2" E PARAFUSO DE FIXACAO | C27: UN | D27: 2.72
A28: 39130 | B28: ABRACADEIRA EM ACO PARA AMARRACAO DE ELETRODUTOS, TIPO D, COM 1 1/4" E CUNHA DE FIXACAO | C28: UN | D28: 2.45
A29: 395 | B29: ABRACADEIRA EM ACO PARA AMARRACAO DE ELETRODUTOS, TIPO D, COM 1 1/4" E PARAFUSO DE FIXACAO | C29: UN | D29: 2.62
A30: 39127 | B30: ABRACADEIRA EM ACO PARA AMARRACAO DE ELETRODUTOS, TIPO D, COM 1/2" E CUNHA DE FIXACAO | C30: UN | D30: 1.29
A31: 392 | B31: ABRACADEIRA EM ACO PARA AMARRACAO DE ELETRODUTOS, TIPO D, COM 1/2" E PARAFUSO DE FIXACAO | C31: UN | D31: 1.32
A32: 39129 | B32: ABRACADEIRA EM ACO PARA AMARRACAO DE ELETRODUTOS, TIPO D, COM 1" E CUNHA DE FIXACAO | C32: UN | D32: 1.51
A33: 393 | B33: ABRACADEIRA EM ACO PARA AMARRACAO DE ELETRODUTOS, TIPO D, COM 1" E PARAFUSO DE FIXACAO | C33: UN | D33: 1.58
A34: 39133 | B34: ABRACADEIRA EM ACO PARA AMARRACAO DE ELETRODUTOS, TIPO D, COM 2 1/2" E CUNHA DE FIXACAO | C34: UN | D34: 3.52
A35: 397 | B35: ABRACADEIRA EM ACO PARA AMARRACAO DE ELETRODUTOS, TIPO D, COM 2 1/2" E PARAFUSO DE FIXACAO | C35: UN | D35: 3.89
A36: 39132 | B36: ABRACADEIRA EM ACO PARA AMARRACAO DE ELETRODUTOS, TIPO D, COM 2" E CUNHA DE FIXACAO | C36: UN | D36: 2.82
A37: 396 | B37: ABRACADEIRA EM ACO PARA AMARRACAO DE ELETRODUTOS, TIPO D, COM 2" E PARAFUSO DE FIXACAO | C37: UN | D37: 3.02
A38: 39135 | B38: ABRACADEIRA EM ACO PARA AMARRACAO DE ELETRODUTOS, TIPO D, COM 3 1/2" E CUNHA DE FIXACAO | C38: UN | D38: 5.64
A39: 39128 | B39: ABRACADEIRA EM ACO PARA AMARRACAO DE ELETRODUTOS, TIPO D, COM 3/4" E CUNHA DE FIXACAO | C39: UN | D39: 1.41
A40: 400 | B40: ABRACADEIRA EM ACO PARA AMARRACAO DE ELETRODUTOS, TIPO D, COM 3/4" E PARAFUSO DE FIXACAO | C40: UN | D40: 1.37
A41: 39125 | B41: ABRACADEIRA EM ACO PARA AMARRACAO DE ELETRODUTOS, TIPO D, COM 3/8" E PARAFUSO DE FIXACAO | C41: UN | D41: 1.41
A42: 39134 | B42: ABRACADEIRA EM ACO PARA AMARRACAO DE ELETRODUTOS, TIPO D, COM 3" E CUNHA DE FIXACAO | C42: UN | D42: 4.7
A43: 398 | B43: ABRACADEIRA EM ACO PARA AMARRACAO DE ELETRODUTOS, TIPO D, COM 3" E PARAFUSO DE FIXACAO | C43: UN | D43: 4.33
A44: 39126 | B44: ABRACADEIRA EM ACO PARA AMARRACAO DE ELETRODUTOS, TIPO D, COM 4" E CUNHA DE FIXACAO | C44: UN | D44: 6.35
A45: 399 | B45: ABRACADEIRA EM ACO PARA AMARRACAO DE ELETRODUTOS, TIPO D, COM 4" E PARAFUSO DE FIXACAO | C45: UN | D45: 5.59
A46: 39158 | B46: ABRACADEIRA EM ACO PARA AMARRACAO DE ELETRODUTOS, TIPO ECONOMICA (GOTA), COM 8" | C46: UN | D46: 15.02
A47: 39141 | B47: ABRACADEIRA EM ACO PARA AMARRACAO DE ELETRODUTOS, TIPO U SIMPLES, COM 1 1/2" | C47: UN | D47: 1.09
A48: 39140 | B48: ABRACADEIRA EM ACO PARA AMARRACAO DE ELETRODUTOS, TIPO U SIMPLES, COM 1 1/4" | C48: UN | D48: 0.99
A49: 39137 | B49: ABRACADEIRA EM ACO PARA AMARRACAO DE ELETRODUTOS, TIPO U SIMPLES, COM 1/2" | C49: UN | D49: 0.57
A50: 39139 | B50: ABRACADEIRA EM ACO PARA AMARRACAO DE ELETRODUTOS, TIPO U SIMPLES, COM 1" | C50: UN | D50: 0.82
A51: 39143 | B51: ABRACADEIRA EM ACO PARA AMARRACAO DE ELETRODUTOS, TIPO U SIMPLES, COM 2 1/2" | C51: UN | D51: 2.25
A52: 39142 | B52: ABRACADEIRA EM ACO PARA AMARRACAO DE ELETRODUTOS, TIPO U SIMPLES, COM 2" | C52: UN | D52: 1.61
A53: 39138 | B53: ABRACADEIRA EM ACO PARA AMARRACAO DE ELETRODUTOS, TIPO U SIMPLES, COM 3/4" | C53: UN | D53: 0.6
A54: 39136 | B54: ABRACADEIRA EM ACO PARA AMARRACAO DE ELETRODUTOS, TIPO U SIMPLES, COM 3/8" | C54: UN | D54: 0.4
A55: 39144 | B55: ABRACADEIRA EM ACO PARA AMARRACAO DE ELETRODUTOS, TIPO U SIMPLES, COM 3" | C55: UN | D55: 2.62
A56: 39145 | B56: ABRACADEIRA EM ACO PARA AMARRACAO DE ELETRODUTOS, TIPO U SIMPLES, COM 4" | C56: UN | D56: 4.31
A57: 12615 | B57: ABRACADEIRA PVC, PARA CALHA PLUVIAL, DIAMETRO ENTRE 80 E 100 MM, PARA DRENAGEM PREDIAL | C57: UN | D57: 4.03
A58: 11927 | B58: ABRACADEIRA, GALVANIZADA/ZINCADA, ROSCA SEM FIM, PARAFUSO INOX, LARGURA FITA *12,6 A *14 MM, D = 2" A 2 1/2" | C58: UN | D58: 4.08
A59: 11928 | B59: ABRACADEIRA, GALVANIZADA/ZINCADA, ROSCA SEM FIM, PARAFUSO INOX, LARGURA FITA *12,6 A *14 MM, D = 3" A 3 3/4" | C59: UN | D59: 4.67
A60: 11929 | B60: ABRACADEIRA, GALVANIZADA/ZINCADA, ROSCA SEM FIM, PARAFUSO INOX, LARGURA FITA *12,6 A *14 MM, D = 4" A 4 3/4" | C60: UN | D60: 7.23
A61: 36801 | B61: ACABAMENTO CROMADO PARA REGISTRO PEQUENO, 1/2 " OU 3/4 " | C61: UN | D61: 20.1
A62: 36246 | B62: ACABAMENTO SIMPLES/CONVENCIONAL PARA FORRO PVC, TIPO "U" OU "C", COR BRANCA, COMPRIMENTO 6 M | C62: M | D62: 2.54
A63: 37600 | B63: ACESSORIO DE LIGACAO NAO ELETRICO PARA CARGAS EXPLOSIVAS, TUBO DE 6 M | C63: UN | D63: 43.98
A64: 37599 | B64: ACESSORIO INICIADOR NAO ELETRICO, TUBO DE 6 M, TEMPO DE RETARDO DE *160* MS | C64: UN | D64: 40.93
A65: 1 | B65: ACETILENO (RECARGA PARA CILINDRO DE CONJUNTO OXICORTE GRANDE) | C65: KG | D65: 50
A66: 3 | B66: ACIDO MURIATICO, DILUICAO 10% A 12% PARA USO EM LIMPEZA | C66: L | D66: 3.44
A67: 26 | B67: ACO CA-25, 10,0 MM, VERGALHAO | C67: KG | D67: 4.18
A68: 20 | B68: ACO CA-25, 12,5 MM, VERGALHAO | C68: KG | D68: 4.21
A69: 21 | B69: ACO CA-25, 16,0 MM, VERGALHAO | C69: KG | D69: 4.21
A70: 24 | B70: ACO CA-25, 20,0 MM, VERGALHAO | C70: KG | D70: 4.21
A71: 25 | B71: ACO CA-25, 25,0 MM, VERGALHAO | C71: KG | D71: 4.21
A72: 34341 | B72: ACO CA-25, 32,0 MM, VERGALHAO | C72: KG | D72: 3.96
A73: 22 | B73: ACO CA-25, 6,3 MM, VERGALHAO | C73: KG | D73: 4.51
A74: 23 | B74: ACO CA-25, 8,0 MM, VERGALHAO | C74: KG | D74: 4.46
A75: 34439 | B75: ACO CA-50, 10,0 MM, DOBRADO E CORTADO | C75: KG | D75: 4.8
A76: 34 | B76: ACO CA-50, 10,0 MM, VERGALHAO | C76: KG | D76: 4.27
A77: 34441 | B77: ACO CA-50, 12,5 MM, DOBRADO E CORTADO | C77: KG | D77: 4.55
A78: 31 | B78: ACO CA-50, 12,5 MM, VERGALHAO | C78: KG | D78: 4.06
A79: 34443 | B79: ACO CA-50, 16 MM, DOBRADO E CORTADO | C79: KG | D79: 4.55
A80: 27 | B80: ACO CA-50, 16,0 MM, VERGALHAO | C80: KG | D80: 4.06
A81: 34446 | B81: ACO CA-50, 20 MM, DOBRADO E CORTADO | C81: KG | D81: 4.55
A82: 29 | B82: ACO CA-50, 20,0 MM, VERGALHAO | C82: KG | D82: 3.79
A83: 28 | B83: ACO CA-50, 25,0 MM, VERGALHAO | C83: KG | D83: 4.39
A84: 34449 | B84: ACO CA-50, 6,3 MM, DOBRADO E CORTADO | C84: KG | D84: 5.01
A85: 32 | B85: ACO CA-50, 6,3 MM, VERGALHAO | C85: KG | D85: 4.47
A86: 33 | B86: ACO CA-50, 8,0 MM, VERGALHAO | C86: KG | D86: 5.02
A87: 34343 | B87: ACO CA-60, VERGALHAO, 9,5 MM | C87: KG | D87: 4.82
A88: 34452 | B88: ACO CA-60, 4,2 MM, DOBRADO E CORTADO | C88: KG | D88: 4.44
A89: 36 | B89: ACO CA-60, 4,2 MM, VERGALHAO | C89: KG | D89: 4.23
A90: 34456 | B90: ACO CA-60, 5,0 MM, DOBRADO E CORTADO | C90: KG | D90: 4.44
A91: 39 | B91: ACO CA-60, 5,0 MM, VERGALHAO | C91: KG | D91: 4.23
A92: 34457 | B92: ACO CA-60, 6,0 MM, DOBRADO E CORTADO | C92: KG | D92: 4.76
A93: 40 | B93: ACO CA-60, 6,0 MM, VERGALHAO | C93: KG | D93: 4.32
A94: 34460 | B94: ACO CA-60, 7,0 MM, DOBRADO E CORTADO | C94: KG | D94: 4.86
A95: 42 | B95: ACO CA-60, 7,0 MM, VERGALHAO | C95: KG | D95: 4.39
A96: 38 | B96: ACO CA-60, 8,0 MM, VERGALHAO | C96: KG | D96: 4.89
A97: 34344 | B97: ACO-FIO PARA PROTENSAO, CP-150 RB L, 8 MM | C97: KG | D97: 6.64
A98: 20063 | B98: ACOPLAMENTO DE CONDUTOR PLUVIAL, EM PVC, DIAMETRO ENTRE 80 E 100 MM, PARA DRENAGEM PREDIAL | C98: UN | D98: 4.01
A99: 40410 | B99: ACOPLAMENTO RIGIDO EM FERRO FUNDIDO PARA SISTEMA DE TUBULACAO RANHURADA, DN 50 MM (2") | C99: UN | D99: 14.99
A100: 40411 | B100: ACOPLAMENTO RIGIDO EM FERRO FUNDIDO PARA SISTEMA DE TUBULACAO RANHURADA, DN 65 MM (2 1/2") | C100: UN | D100: 16.26
A101: 40412 | B101: ACOPLAMENTO RIGIDO EM FERRO FUNDIDO PARA SISTEMA DE TUBULACAO RANHURADA, DN 80 MM (3") | C101: UN | D101: 18.25
A102: 38838 | B102: ADAPTADOR DE COBRE PARA TUBULACAO PEX, DN 16 X 15 MM | C102: UN | D102: 7.05
A103: 38839 | B103: ADAPTADOR DE COBRE PARA TUBULACAO PEX, DN 20 X 22 MM | C103: UN | D103: 8.3
A104: 55 | B104: ADAPTADOR DE COMPRESSAO EM POLIPROPILENO (PP), PARA TUBO EM PEAD, 20 MM X 1/2", PARA LIGACAO PREDIAL DE AGUA (NTS 179) | C104: UN | D104: 3
A105: 61 | B105: ADAPTADOR DE COMPRESSAO EM POLIPROPILENO (PP), PARA TUBO EM PEAD, 20 MM X 3/4", PARA LIGACAO PREDIAL DE AGUA (NTS 179) | C105: UN | D105: 2.83
A106: 62 | B106: ADAPTADOR DE COMPRESSAO EM POLIPROPILENO (PP), PARA TUBO EM PEAD, 32 MM X 1", PARA LIGACAO PREDIAL DE AGUA (NTS 179) | C106: UN | D106: 5.88
A107: 77 | B107: ADAPTADOR PVC PARA SIFAO METALICO, SOLDAVEL, COM ANEL BORRACHA (JE), 40 MM X 1 1/2" | C107: UN | D107: 3.92
A108: 76 | B108: ADAPTADOR PVC PARA SIFAO, ROSCAVEL, 40 MM X 1 1/4" | C108: UN | D108: 0.76
A109: 67 | B109: ADAPTADOR PVC ROSCAVEL, COM FLANGES E ANEL DE VEDACAO, 1/2", PARA CAIXA D' AGUA | C109: UN | D109: 8.54
A110: 71 | B110: ADAPTADOR PVC ROSCAVEL, COM FLANGES E ANEL DE VEDACAO, 1", PARA CAIXA D' AGUA | C110: UN | D110: 15.01
A111: 73 | B111: ADAPTADOR PVC ROSCAVEL, COM FLANGES E ANEL DE VEDACAO, 3/4", PARA CAIXA D' AGUA | C111: UN | D111: 10.8
A112: 103 | B112: ADAPTADOR PVC SOLDAVEL CURTO COM BOLSA E ROSCA, 110 MM X 4", PARA AGUA FRIA | C112: UN | D112: 37.34
A113: 107 | B113: ADAPTADOR PVC SOLDAVEL CURTO COM BOLSA E ROSCA, 20 MM X 1/2", PARA AGUA FRIA | C113: UN | D113: 0.71
A114: 65 | B114: ADAPTADOR PVC SOLDAVEL CURTO COM BOLSA E ROSCA, 25 MM X 3/4", PARA AGUA FRIA | C114: UN | D114: 0.8
A115: 108 | B115: ADAPTADOR PVC SOLDAVEL CURTO COM BOLSA E ROSCA, 32 MM X 1", PARA AGUA FRIA | C115: UN | D115: 1.58
A116: 110 | B116: ADAPTADOR PVC SOLDAVEL CURTO COM BOLSA E ROSCA, 40 MM X 1 1/2", PARA AGUA FRIA | C116: UN | D116: 3.74
A117: 109 | B117: ADAPTADOR PVC SOLDAVEL CURTO COM BOLSA E ROSCA, 40 MM X 1 1/4", PARA AGUA FRIA | C117: UN | D117: 2.85
A118: 111 | B118: ADAPTADOR PVC SOLDAVEL CURTO COM BOLSA E ROSCA, 50 MM X 1 1/4", PARA AGUA FRIA | C118: UN | D118: 6.49
A119: 112 | B119: ADAPTADOR PVC SOLDAVEL CURTO COM BOLSA E ROSCA, 50 MM X1 1/2", PARA AGUA FRIA | C119: UN | D119: 3.51
A120: 113 | B120: ADAPTADOR PVC SOLDAVEL CURTO COM BOLSA E ROSCA, 60 MM X 2", PARA AGUA FRIA | C120: UN | D120: 8.94
A121: 104 | B121: ADAPTADOR PVC SOLDAVEL CURTO COM BOLSA E ROSCA, 75 MM X 2 1/2", PARA AGUA FRIA | C121: UN | D121: 15.42
A122: 102 | B122: ADAPTADOR PVC SOLDAVEL CURTO COM BOLSA E ROSCA, 85 MM X 3", PARA AGUA FRIA | C122: UN | D122: 23.18
A123: 95 | B123: ADAPTADOR PVC SOLDAVEL, COM FLANGE E ANEL DE VEDACAO, 20 MM X 1/2", PARA CAIXA D'AGUA | C123: UN | D123: 9.8
A124: 96 | B124: ADAPTADOR PVC SOLDAVEL, COM FLANGE E ANEL DE VEDACAO, 25 MM X 3/4", PARA CAIXA D'AGUA | C124: UN | D124: 12.68
A125: 97 | B125: ADAPTADOR PVC SOLDAVEL, COM FLANGE E ANEL DE VEDACAO, 32 MM X 1", PARA CAIXA D'AGUA | C125: UN | D125: 15.97
A126: 98 | B126: ADAPTADOR PVC SOLDAVEL, COM FLANGE E ANEL DE VEDACAO, 40 MM X 1 1/4", PARA CAIXA D'AGUA | C126: UN | D126: 25.9
A127: 99 | B127: ADAPTADOR PVC SOLDAVEL, COM FLANGE E ANEL DE VEDACAO, 50 MM X 1 1/2", PARA CAIXA D'AGUA | C127: UN | D127: 29.87
A128: 100 | B128: ADAPTADOR PVC SOLDAVEL, COM FLANGES E ANEL DE VEDACAO, 60 MM X 2", PARA CAIXA D' AGUA | C128: UN | D128: 36.32
A129: 75 | B129: ADAPTADOR PVC SOLDAVEL, COM FLANGES LIVRES, 110 MM X 4", PARA CAIXA D' AGUA | C129: UN | D129: 272.45
A130: 114 | B130: ADAPTADOR PVC SOLDAVEL, COM FLANGES LIVRES, 25 MM X 3/4", PARA CAIXA D' AGUA | C130: UN | D130: 10.75
A131: 68 | B131: ADAPTADOR PVC SOLDAVEL, COM FLANGES LIVRES, 32 MM X 1", PARA CAIXA D' AGUA | C131: UN | D131: 14.41
A132: 86 | B132: ADAPTADOR PVC SOLDAVEL, COM FLANGES LIVRES, 40 MM X 1 1/4", PARA CAIXA D' AGUA | C132: UN | D132: 21.35
A133: 66 | B133: ADAPTADOR PVC SOLDAVEL, COM FLANGES LIVRES, 50 MM X 1 1/2", PARA CAIXA D' AGUA | C133: UN | D133: 24.49
A134: 69 | B134: ADAPTADOR PVC SOLDAVEL, COM FLANGES LIVRES, 60 MM X 2", PARA CAIXA D' AGUA | C134: UN | D134: 36.32
A135: 83 | B135: ADAPTADOR PVC SOLDAVEL, COM FLANGES LIVRES, 75 MM X 2 1/2", PARA CAIXA D' AGUA | C135: UN | D135: 141.33
A136: 74 | B136: ADAPTADOR PVC SOLDAVEL, COM FLANGES LIVRES, 85 MM X 3", PARA CAIXA D' AGUA | C136: UN | D136: 190.38
A137: 106 | B137: ADAPTADOR PVC SOLDAVEL, LONGO, COM FLANGE LIVRE, 110 MM X 4", PARA CAIXA D' AGUA | C137: UN | D137: 389.2
A138: 87 | B138: ADAPTADOR PVC SOLDAVEL, LONGO, COM FLANGE LIVRE, 25 MM X 3/4", PARA CAIXA D' AGUA | C138: UN | D138: 16.11
A139: 88 | B139: ADAPTADOR PVC SOLDAVEL, LONGO, COM FLANGE LIVRE, 32 MM X 1", PARA CAIXA D' AGUA | C139: UN | D139: 19.38
A140: 89 | B140: ADAPTADOR PVC SOLDAVEL, LONGO, COM FLANGE LIVRE, 40 MM X 1 1/4", PARA CAIXA D' AGUA | C140: UN | D140: 28.6
A141: 90 | B141: ADAPTADOR PVC SOLDAVEL, LONGO, COM FLANGE LIVRE, 50 MM X 1 1/2", PARA CAIXA D' AGUA | C141: UN | D141: 32.8
A142: 81 | B142: ADAPTADOR PVC SOLDAVEL, LONGO, COM FLANGE LIVRE, 60 MM X 2", PARA CAIXA D' AGUA | C142: UN | D142: 48.68
A143: 82 | B143: ADAPTADOR PVC SOLDAVEL, LONGO, COM FLANGE LIVRE, 75 MM X 2 1/2", PARA CAIXA D' AGUA | C143: UN | D143: 189.44
A144: 105 | B144: ADAPTADOR PVC SOLDAVEL, LONGO, COM FLANGE LIVRE, 85 MM X 3", PARA CAIXA D' AGUA | C144: UN | D144: 255.18
A145: 60 | B145: ADAPTADOR PVC, COM REGISTRO, PARA PEAD, 20 MM X 3/4", PARA LIGACAO PREDIAL DE AGUA | C145: UN | D145: 3.89
A146: 72 | B146: ADAPTADOR PVC, ROSCAVEL, COM FLANGES E ANEL DE VEDACAO, 1 1/2", PARA CAIXA D'AGUA | C146: UN | D146: 25.26
A147: 70 | B147: ADAPTADOR PVC, ROSCAVEL, COM FLANGES E ANEL DE VEDACAO, 1 1/4", PARA CAIXA D' AGUA | C147: UN | D147: 25.6
A148: 85 | B148: ADAPTADOR PVC, ROSCAVEL, COM FLANGES E ANEL DE VEDACAO, 2", PARA CAIXA D' AGUA | C148: UN | D148: 36.8
A149: 84 | B149: ADAPTADOR PVC, ROSCAVEL, PARA VALVULA PIA OU LAVATORIO, 40 MM | C149: UN | D149: 1.4
A150: 37997 | B150: ADAPTADOR, CPVC, SOLDAVEL, 15 MM, PARA AGUA QUENTE | C150: UN | D150: 3.94
A151: 37998 | B151: ADAPTADOR, CPVC, SOLDAVEL, 22 MM, PARA AGUA QUENTE | C151: UN | D151: 4.09
A152: 10899 | B152: ADAPTADOR, EM LATAO, ENGATE RAPIDO 2 1/2" X ROSCA INTERNA 5 FIOS 2 1/2", PARA INSTALACAO PREDIAL DE COMBATE A INCENDIO | C152: UN | D152: 70.09
A153: 10900 | B153: ADAPTADOR, EM LATAO, ENGATE RAPIDO1 1/2" X ROSCA INTERNA 5 FIOS 2 1/2", PARA INSTALACAO PREDIAL DE COMBATE A INCENDIO | C153: UN | D153: 54.85
A154: 46 | B154: ADAPTADOR, PVC PBA, BOLSA/ROSCA, JE, DN 75 / DE 85 MM | C154: UN | D154: 20
A155: 51 | B155: ADAPTADOR, PVC PBA, A BOLSA DEFOFO, JE, DN 100 / DE 110 MM | C155: UN | D155: 45.43
A156: 12863 | B156: ADAPTADOR, PVC PBA, A BOLSA DEFOFO, JE, DN 50 / DE 60 MM | C156: UN | D156: 13.07
A157: 50 | B157: ADAPTADOR, PVC PBA, A BOLSA DEFOFO, JE, DN 75 / DE 85 MM | C157: UN | D157: 28.78
A158: 47 | B158: ADAPTADOR, PVC PBA, BOLSA/ROSCA, JE, DN 100 / DE 110 MM | C158: UN | D158: 23.91
A159: 48 | B159: ADAPTADOR, PVC PBA, BOLSA/ROSCA, JE, DN 50 / DE 60 MM | C159: UN | D159: 9.33
A160: 52 | B160: ADAPTADOR, PVC PBA, PONTA/ROSCA, JE, DN 50 / DE 60 MM | C160: UN | D160: 4.65
A161: 43 | B161: ADAPTADOR, PVC PBA, PONTA/ROSCA, JE, DN 75 / DE 85 MM | C161: UN | D161: 12.26
A162: 4791 | B162: ADESIVO ACRILICO/COLA DE CONTATO | C162: KG | D162: 16.39
A163: 157 | B163: ADESIVO ESTRUTURAL A BASE DE RESINA EPOXI PARA INJECAO EM TRINCAS, BICOMPONENTE, BAIXA VISCOSIDADE | C163: KG | D163: 99.86
A164: 156 | B164: ADESIVO ESTRUTURAL A BASE DE RESINA EPOXI, BICOMPONENTE, FLUIDO | C164: KG | D164: 44.57
A165: 131 | B165: ADESIVO ESTRUTURAL A BASE DE RESINA EPOXI, BICOMPONENTE, PASTOSO (TIXOTROPICO) | C165: KG | D165: 42.79
A166: 39719 | B166: ADESIVO LIQUIDO A BASE DE RESINAS PARA COLAGEM DE ESPUMA DE ISOLAMENTO TERMICO FLEXIVEL | C166: L | D166: 62.1
A167: 21114 | B167: ADESIVO PARA TUBOS CPVC, *75* G | C167: UN | D167: 13.3
A168: 119 | B168: ADESIVO PLASTICO PARA PVC, BISNAGA COM 75 GR | C168: UN | D168: 5.25
A169: 20080 | B169: ADESIVO PLASTICO PARA PVC, FRASCO COM 175 GR | C169: UN | D169: 15.05
A170: 122 | B170: ADESIVO PLASTICO PARA PVC, FRASCO COM 850 GR | C170: UN | D170: 47.42
A171: 3410 | B171: ADESIVO/COLA PARA EPS (ISOPOR) E OUTROS MATERIAIS | C171: KG | D171: 23.01
A172: 124 | B172: ADITIVO ACELERADOR DE PEGA E ENDURECIMENTO PARA ARGAMASSAS E CONCRETOS | C172: L | D172: 11.12
A173: 7334 | B173: ADITIVO ADESIVO LIQUIDO PARA ARGAMASSAS DE REVESTIMENTOS CIMENTICIOS | C173: L | D173: 9.67
A174: 7325 | B174: ADITIVO IMPERMEABILIZANTE DE PEGA NORMAL PARA ARGAMASSAS E CONCRETOS SEM ARMACAO | C174: KG | D174: 5.14
A175: 123 | B175: ADITIVO IMPERMEABILIZANTE DE PEGA NORMAL PARA ARGAMASSAS E CONCRETOS SEM ARMACAO | C175: L | D175: 4.94
A176: 127 | B176: ADITIVO IMPERMEABILIZANTE DE PEGA ULTRARRAPIDA | C176: L | D176: 11.6
A177: 133 | B177: ADITIVO LIQUIDO INCORPORADOR DE AR PARA CONCRETO E ARGAMASSA | C177: L | D177: 4.98
A178: 37538 | B178: ADITIVO PLASTIFICANTE E ESTABILIZADOR PARA ARGAMASSAS DE ASSENTAMENTO E REBOCO | C178: 18L | D178: 123.68
A179: 132 | B179: ADITIVO PLASTIFICANTE RETARDADOR DE PEGA E REDUTOR DE AGUA PARA CONCRETO | C179: L | D179: 5.48
A180: 13408 | B180: ADITIVO SUPERPLASTIFICANTE DE PEGA NORMAL PARA CONCRETO (TAMBOR 200 KG) | C180: 200KG | D180: 1,948.42
A181: 37476 | B181: ADUELA/GALERIA DE CONCRETO ARMADO, SECAO RETANGULAR 1.50 X 1.50 M (L X A), C = 1.00 M, E = 20 CM | C181: UN | D181: 1,266.11
A182: 37478 | B182: ADUELA/GALERIA DE CONCRETO ARMADO, SECAO RETANGULAR 2.00 X 2.00 M (L X A), C = 1.00 M, E = 20 CM | C182: UN | D182: 1,791.21
A183: 37477 | B183: ADUELA/GALERIA DE CONCRETO ARMADO, SECAO RETANGULAR 2.50 X 2.50 M (L X A), C = 1.00 M, E = 20 CM | C183: UN | D183: 2,191.80
A184: 37479 | B184: ADUELA/GALERIA DE CONCRETO ARMADO, SECAO RETANGULAR 3.00 X 3.00 M (L X A), C = 1.00 M, E = 20 CM | C184: UN | D184: 2,740.60
A185: 4319 | B185: AFASTADOR PARA TELHA DE FIBROCIMENTO CANALETE 90 OU KALHETAO | C185: UN | D185: 0.83
A186: 40553 | B186: AGREGADO RECICLADO (RCD), CLASSE A, CINZA, TIPO RACHAO RECICLADO | C186: M3 | D186: 36.25
A187: 13003 | B187: AGUA SANITARIA | C187: L | D187: 1.7
A188: 6114 | B188: AJUDANTE DE ARMADOR | C188: H | D188: 8.25
A189: 40912 | B189: AJUDANTE DE ARMADOR (MENSALISTA) | C189: MES | D189: 1,455.27
A190: 247 | B190: AJUDANTE DE ELETRICISTA | C190: H | D190: 8.31
A191: 40919 | B191: AJUDANTE DE ELETRICISTA (MENSALISTA) | C191: MES | D191: 1,467.53
A192: 25958 | B192: AJUDANTE DE ESTRUTURAS METALICAS | C192: H | D192: 9.48
A193: 40984 | B193: AJUDANTE DE ESTRUTURAS METALICAS (MENSALISTA) | C193: MES | D193: 1,672.71
A194: 248 | B194: AJUDANTE DE OPERACAO EM GERAL | C194: H | D194: 8.54
A195: 41086 | B195: AJUDANTE DE OPERACAO EM GERAL (MENSALISTA) | C195: MES | D195: 1,505.87
A196: 34466 | B196: AJUDANTE DE PINTOR | C196: H | D196: 8.54
A197: 41083 | B197: AJUDANTE DE PINTOR (MENSALISTA) | C197: MES | D197: 1,505.87
A198: 252 | B198: AJUDANTE DE SERRALHEIRO | C198: H | D198: 8.84
A199: 40909 | B199: AJUDANTE DE SERRALHEIRO (MENSALISTA) | C199: MES | D199: 1,560.93
A200: 242 | B200: AJUDANTE ESPECIALIZADO | C200: H | D200: 10.89
... 5149 more rows

Sheet ORSE (hidden)
A1: CODIGO DA COMPOSICAO | B1: DESCRICAO DA COMPOSICAO | C1: UNIDADE | D1: CUSTO TOTAL
A2: 12178 | B2: Porta de ferro 0,90x1,50 m de abrir, tipo lisa com chapa, com guarnicoes | C2: m2 | D2: 848.52
A3: 11396 | B3: Cobogo cimento tipo "veneziana", dim: 40 x 40 x 9cm | C3: m2 | D3: 81.41
A4: 1580 | B4: Terminal a compressao em cobre estanhado para cabo 95 mm2, 1 furo e 1 compressao, para parafuso de fixacao m12 | C4: un | D4: 3.65
A5: 8007 | B5: Terminal de compressão para cabo de 4 mm2 - fornecimento e instalação | C5: un | D5: 1.29
A6: 11922 | B6: Fita adesiva marca 3M, largura 22mm, ref. VHB - rolo com 20m | C6: un | D6: 11.97
A7: 91929 | B7: Cabo de cobre flexível isolado, 4 mm², anti-chama 0,6/1,0 kv, para circuitos terminais - fornecimento e instalação. af_12/2016 | C7: m | D7: 4.04
A8: 4014 | B8: Fita isolante (rolo 20m) 3/4" - Fornecimento | C8: un | D8: 7.57
A9: 11565 | B9: Disjuntor termomagnetico tripolar 35 A, padrão DIN (Europeu - linha branca), 10KA, curva C | C9: un | D9: 198.29
A10: 8416 | B10: Disjuntor termomagnetico monopolar 15 A, padrão NEMA (Americano - linha preta) | C10: un | D10: 16.17
A11: 07874 | B11: Disjuntor termomagnetico tripolar 150 A, padrão NEMA (Americano - linha preta) | C11: un | D11: 355.3
A12: 3398 | B12: Ponto de tomada 2p+t, ABNT, 10 A, de uso geral, em pisos, com eletroduto de pvc flexível sanfonado embutido Ø 3/4", inclusive aterramento | C12: pt | D12: 154.02
A13: 4023 | B13: Tomada dupla 2P + T, universal, 4x2" | C13: un | D13: 22.81
A14: 8822 | B14: Interruptor 02 seções simples, de embutir, com placa, conjugado com tomada 2p+t, ABNT, 10A, inclusive caixa pvc 4x2 | C14: un | D14: 29.35
A15: 3729 | B15: Interruptor 01 seção simples, de embutir, com placa, conjugado com tomada 2p+t, ABNT, 10A, inclusive caixa pvc 4x2 | C15: un | D15: 20.95
A16: 4014 | B16: Fita isolante (rolo 20m) 3/4" - Fornecimento | C16: un | D16: 7.57
A17: 2476 | B17: Rasgos em alvenaria para passagem de tubulação diâm 1/2" a 1" | C17: m | D17: 4.64
A18: 12226 | B18: Quadro de distribuição de embutir, em chapa de aço, para até 24 disjuntores, com barramento, padrão DIN, exclusive disjuntores | C18: un | D18: 354.74
A19: 12103 | B19: Luminária tubular com lâmpada led de 2 x 9/10 w / bivolt | C19: un | D19: 141.53
A20: 10005 | B20: Luminária de embutir com aletas em aluminio, para lâmpada fluorescente compacta, 2 x 26w, ref. C-2338, da Lustres Projeto ou similar | C20: un | D20: 180.7
A21: 00690 | B21: Ponto de caixa seca p/ lógica, c/ eletroduto pvc rígido embutido Ø 3/4" | C21: un | D21: 162.76
A22: 07792 | B22: Tomada dupla para lógica RJ45, 4"x4", embutir, completa | C22: pt | D22: 98.56
A23: 00675 | B23: Ponto de telefone, com eletroduto de ferro galvanizado aparente Ø 3/4" | C23: un | D23: 206.06
A24: 10759 | B24: Bancada em granito cinza andorinha, inclusu cantoneiras de aluínio anodizado natural | C24: m² | D24: 251.23
A25: 07361 | B25: Bate maca de 1000x150mm em chapa de aço inox 304, e=1,3mm, acabamento polido, dotado de 4 furos e parafusos inox auto-atarrachante | C25: m | D25: 54.46
A26: 08492 | B26: Barra de apoio, reta, fixa, em aço inox, l=80cm, d=1 1/2" | C26: un | D26: 154.86
A27: 07760 | B27: Barra articulada para sanitários de deficientes físicos, DECA 2315 EBR, ou similar | C27: un | D27: 684.76
A28: 12121 | B28: Barra de apoio, reta, fixa, em aço inox, l=60cm, d=1 1/2" | C28: un | D28: 134.76
A29: 12122 | B29: Barra de apoio, reta, fixa, em aço inox, l=40cm, d=1 1/2" | C29: un | D29: 109.76
A30: 08974 | B30: Banco articulado para banho com pés de apoio 700x450mm (p/deficientes) | C30: un | D30: 779.35
A31: 00017 | B31: Demolição de reboco | C31: m2 | D31: 6.05
A32: 07725 | B32: Remoção de pintura látex (raspagem e/ou lixamento e/ou escovação) | C32: m2 | D32: 4.85
A33: 00018 | B33: Demolição de piso cerâmico ou ladrilho | C33: m2 | D33: 9.57
A34: 00013 | B34: Demolição de concreto manualmente | C34: m3 | D34: 178.39
A35: 00031 | B35: Remoção de esquadria de madeira, com ou sem batente | C35: m2 | D35: 10.94
A36: 08204 | B36: Porta em madeira de lei, de correr, lisa, semi-ôca 0,90x2,10m, inclusive batentes e ferragens | C36: un | D36: 725.97
A37: 08200 | B37: Porta em madeira compensada (canela), lisa, semi-oca, 1,20x2,10m, duas folhas, com visor 0,50x0,50m, inclusive batentes de 24cm e ferragens, exceto vidros | C37: un | D37: 897.4
A38: 11901 | B38: Porta em madeira compensada (canela), lisa, semi-ôca, 1.40 x 2.10 m, duas folhas, inclusive batentes e ferragens | C38: un | D38: 675.24
A39: 08374 | B39: Porta em madeira compensada (canela), lisa, semi-ôca, 2,00x2,10m, duas folhas, com visor 40x50cm, inclusive batentes e ferragem, exclusive vidros | C39: un | D39: =ROUND(921.26*(2/1.6),2) -> 1151.58
A40: 09571 | B40: Tela mosquiteiro galvanizada, malha 14, fio 30 | C40: m2 | D40: 73.55
A41: 08968 | B41: Visor em aluminio com vidro temperado 6mm | C41: m2 | D41: 240
A42: 01683 | B42: Ponto de esgoto com tubo de pvc rígido soldável de Ø 100 mm (vaso sanitário) | C42: pt | D42: 69.92
A43: 01679 | B43: Ponto de esgoto com tubo de pvc rígido soldável de Ø 40 mm (lavatórios, mictórios, ralos sifonados, etc...) | C43: pt | D43: 46.6
A44: 01678 | B44: Ponto de esgoto com tubo de pvc rígido soldável de Ø 50 mm (pias, caixa sinfonadas) | C44: pt | D44: 67.66
A45: 04457 | B45: Ducha em aço cromada, Oriente, ref 1901 C-53 ou similar | C45: un | D45: 113.15
A46: 03424 | B46: Chuveiro em aço anti-vandalismo | C46: un | D46: 118.46
A47: 02097 | B47: Pia de cozinha com bancada em aço inox, dim 1,00x0,60m, c/ 01 cuba, sifão cromado, válvula cromada e torneira cromada, concretada e assentada | C47: un | D47: 604.35
A48: 02074 | B48: Pia de cozinha com bancada em aço inox, dim 1,25x0,60m, c/ 01 cuba, sifão cromado, válvula cromada e torneira cromada, concretada e assentada | C48: un | D48: =ROUND(663.12*(1.25/1.2),2) -> 690.75
A49: 02107 | B49: Pia de cozinha com bancada em aço inox, dim 2,10x0,60m, c/ 01 cuba, sifão cromado, válvula cromada e torneira cromada, concretada e assentada | C49: un | D49: =ROUND(823.53*(2.1/2),2) -> 864.71
A50: 02055 | B50: Tanque em aço inox, incluso torneira cromada | C50: un | D50: =ROUND(823.53*(2.1/2),2) -> 864.71
A51: 13137 | B51: Cuba de aço inox 304 ou Funil Expurgo Hospitalar 285x410mm Sem mesa para embutir - Hidronox ou similar | C51: un | D51: 671.04
A52: 10740 | B52: Fechadura eletromagnética 200kgf com sensor de porta aberta em inox FECHBEM Eletroima+KT755 ou similar | C52: um | D52: 344.38
A53: 04185 | B53: Caixa de alumínio 40 x 40 x 12 cm, fornecimento | C53: un | D53: 237.5
A54: 02555 | B54: Placa 20x35 em chapa esmaltada para identificação de logradouros | C54: un | D54: 51.88
A55: 11213 | B55: Régua p/gás medicinal,em alumínio,dimensões: 850x220x70mm,com: 01 ponto p/ oxigênio, 01 ponto p/ ar comprimido, 01 ponto p/ vácuo, 08 tomadas elétricas, 01 ponto p/ chamada de enfermagem (s/ o equipamento), mod.Square Line,VTC Vitatec ou similar | C55: un | D55: 952.01
A56: 9430 | B56: Fluxo para solda prata 250 g | C56: kg | D56: 108.5
A57: 02555 | B57: Placa 20x35 em chapa esmaltada para identificação de logradouros | C57: un | D57: 51.88
A58: 10991 | B58: Revestimento cerâmico para piso ou parede, 46 x 46 cm, pei 5, Incenor, comum branco, anti-derrapante, retificado, ref.62650 ou similar, aplicada c/ argamassa ind. ac-ii, rejunte acrílico, exceto regularização de base/emboço | C58: m2 | D58: 38.18
A59: 09719 | B59: Testeira em granito cinza andorinha, h=10cm, esp=2cm, aplicado com argamassa industrializada AC-I | C59: m | D59: 103.71
A60: 07784 | B60: Rodopia em granito cinza andorinha, h = 10 cm, e= 2cm, aplicado com argamassa industrializada ac-i, com acabamento aboleado | C60: m | D60: 37.96
A61: 12122 | B61: Barra de apoio, reta, fixa, em aço inox, l=40cm, d=1 1/2", Jackwal ou similar | C61: un | D61: 109.76
A62: 09541 | B62: Fornecimento e instalação de exaustor eólico | C62: un | D62: 339.68
A63: 04287 | B63: Dispenser alcool gel | C63: un | D63: 44.48
A64: 08539 | B64: Escada marinheiro, com degraus em barra redonda de 3/4", guarda-corpo em barra chata de 1 1/2" x 1/4" e patamar(1,05 x 0,95m) em chapa expandida de 1/4" | C64: m | D64: 274.75

Sheet SEINFRA (hidden)
A4: CÓDIGO | B4: DESCRIÇÃO | C4: UNIDADE | D4: PREÇO UNITÁRIO
A5: SERVICOS PRELIMINARES | D5: 68,536.89
A6: CADASTRO | D6: 168.08
A7: C0580 | B7: CADASTRO DE ADUTORA | C7: M | D7: 1.00
A8: C0581 | B8: CADASTRO DE LIGAÇÃO | C8: UN | D8: 2.14
A9: C0582 | B9: CADASTRO DE OBRAS LOCALIZADAS | C9: M2 | D9: 29.45
A10: C0583 | B10: CADASTRO DE REDE DE ÁGUA (MEIO MAGNÉTICO) | C10: M | D10: 0.89
A11: C0584 | B11: CADASTRO DE REDE DE ESGOTO/EMISSÁRIO/DRENAGEM (MEIO MAGNÉTICO) | C11: M | D11: 1.27
A12: C3959 | B12: CADASTRO E AVALIAÇÃO DE IMÓVEIS | C12: UT | D12: 26.93
A13: C3427 | B13: CADASTRO OPERACIONAL DE CLIENTE CAPITAL - PADRÃO | C13: IMÓVEL | D13: 6.85
A14: C3428 | B14: CADASTRO OPERACIONAL DE CLIENTE INTERIOR - PADRÃO | C14: IMÓVEL | D14: 6.04
A15: C4579 | B15: CENSO DE CAMPO - CAPITAL | C15: IMÓVEL | D15: 5.06
A16: C4580 | B16: CENSO DE CAMPO - INTERIOR | C16: IMÓVEL | D16: 6.07
A17: C4581 | B17: SERVIÇO DE OBTENÇÃO / ATUALIZAÇÃO DE PLANTA EM CAMPO MEIO DIGITAL | C17: QUADRA | D17: 48.17
A18: C4582 | B18: SERVIÇO DE OBTENÇÃO / ATUALIZAÇÃO DE QUADRAS (OVERLAYS) | C18: QUADRA | D18: 34.24
A19: SONDAGENS | D19: 4,019.21
A20: C2820 | B20: EXECUÇÃO DE SONDAGEM ELÉTRICA VERTICAL AB/2 ATÉ 150m - SEV | C20: UN | D20: 348.27
A21: C2818 | B21: EXECUÇÃO DE SONDAGEM ELÉTRICA VERTICAL AB/2 >150m a 500m-SEV | C21: UN | D21: 443.34
A22: C2819 | B22: EXECUÇÃO DE SONDAGEM ELÉTRICA VERTICAL AB/2 >500m - SEV | C22: UN | D22: 566.36
A23: C2833 | B23: FOTOGEOLOGIA | C23: UN | D23: 270.79
A24: C0053 | B24: LEVANTAMENTO BATIMÉTRICO | C24: M2 | D24: 0.44
A25: C2937 | B25: RELATÓRIO FINAL DE SONDAGEM | C25: UN | D25: 812.37
A26: C0333 | B26: SERVIÇOS DE SONDAGEM GEOTÉCNICA MISTA EM ROCHA | C26: M | D26: 981.33
A27: C0143 | B27: SERVIÇOS DE SONDAGEM GEOTÉCNICA MISTA EM SOLOS | C27: M | D27: 235.12
A28: C2290 | B28: SONDAGEM À PERCUSSÃO P/RECONHECIMENTO DO SUBSOLO | C28: M | D28: 54.52
A29: C3955 | B29: SONDAGEM ROTATIVA P/ RECONHECIMENTO DO SUBSOLO | C29: M | D29: 306.67
A30: PROJETOS | D30: 149.33
A31: C3507 | B31: ELABORAÇÃO DE PROJETO DE CÁLCULO ESTRUTURAL (RESERVATÓRIO ELEVADO) | C31: M2xARF | D31: 28.80
A32: C3508 | B32: ELABORAÇÃO DE PROJETO DE CÁLCULO ESTRUTURAL (RESERVATÓRIO APOIADO, ELEVATÓRIA E CAIXA DE AREIA) | C32: M2xARF | D32: 12.81
A34: C4617 | B34: ELABORAÇÃO DE PROJETOS BÁSICOS DE ENGENHARIA | C34: UT | D34: 26.93
A35: C4584 | B35: ELABORAÇÃO DE PROJETOS EXECUTIVOS DE ENGENHARIA | C35: UT | D35: 26.93
A36: C3956 | B36: ELABORAÇÃO DE RELATÓRIO DE ESTUDO DE IMPACTO AMBIENTAL | C36: UT | D36: 26.93
A37: C1083 | B37: ELABORAÇÃO DE RELATÓRIO "AS BUILT" | C37: UT | D37: 26.93
A38: PREPARAÇÃO DO TERRENO | D38: 222.02
A39: C0927 | B39: CORTE DE CAPOEIRA FINA A FOICE | C39: M2 | D39: 0.71
A40: C2102 | B40: RASPAGEM E LIMPEZA DO TERRENO | C40: M2 | D40: 2.28
A41: C2204 | B41: RETIRADA DE ÁRVORES | C41: UN | D41: 219.03
A42: CONSTRUÇÃO DO CANTEIRO DA OBRA | D42: 60,316.23
A43: C0002 | B43: ABRIGO PROVISÓRIO C/1 PAVIMENTO P/ALOJAMENTO E DEPÓSITO | C43: M2 | D43: 585.87
A44: C0003 | B44: ABRIGO PROVISÓRIO C/2 PAVIMENTOS P/ALOJAMENTO E DEPÓSITO | C44: M2 | D44: 544.46
A45: C0043 | B45: ALOJAMENTO | C45: M2 | D45: 181.08
A46: C0369 | B46: BARRACÃO ABERTO | C46: M2 | D46: 93.45
A47: C0370 | B47: BARRACÃO PARA ESCRITÓRIO TIPO A1 | C47: UN | D47: 3,766.22
A48: C0371 | B48: BARRACÃO PARA ESCRITÓRIO TIPO A2 | C48: UN | D48: 6,325.17
A49: C0372 | B49: BARRACÃO PARA ESCRITÓRIO TIPO A3 | C49: UN | D49: 9,893.31
A50: C0373 | B50: BARRACÃO PARA ESCRITÓRIO TIPO A4 | C50: UN | D50: 13,537.39
A51: C0374 | B51: BARRACÃO PARA ESCRITÓRIO TIPO A5 | C51: UN | D51: 18,437.04
A52: C2831 | B52: FOSSA SUMIDOURO PARA BARRACÃO | C52: UN | D52: 1,459.01
A53: C2851 | B53: INSTALAÇÕES PROVISÓRIAS DE ÁGUA | C53: UN | D53: 901.58
A54: C2849 | B54: INSTALAÇÕES PROVISÓRIAS DE ESGOTO | C54: UN | D54: 206.00
A55: C2850 | B55: INSTALAÇÕES PROVISÓRIAS DE LUZ , FORÇA,TELEFONE E LÓGICA | C55: UN | D55: 1,510.90
A56: C1622 | B56: LIGAÇÃO PROVISÓRIA DE ÁGUA E SANITÁRIO | C56: UN | D56: 1,778.22
A57: C1794 | B57: MOBILIZAÇÃO E DESMOBILIZAÇÃO DE EQUIPAMENTOS EM CAMINHÃO EQUIPADO C/ GUINDASTE | C57: KM | D57: 3.92
A59: C3375 | B59: MOBILIZAÇÃO E DESMOBILIZAÇÃO DE EQUIPAMENTOS EM CAVALO MECÂNICO C/ PRANCHA DE 3 EIXOS | C59: KM | D59: 5.36
A61: C4541 | B61: PLACA PADRÃO DE OBRA, TIPO BANNER | C61: M2 | D61: 231.43
A62: C1937 | B62: PLACAS PADRÃO DE OBRA | C62: M2 | D62: 128.31
A63: C2936 | B63: REFEITÓRIOS | C63: M2 | D63: 197.64
A64: C2946 | B64: SANITÁRIOS E CHUVEIROS | C64: M2 | D64: 149.29
A65: C2316 | B65: TAPUME DE CHAPA DE MADEIRA COMPENSADA E= 6mm C/ABERTURA E PORTÃO | C65: M2 | D65: 79.46
A66: C3974 | B66: TAPUME DE ESTRUTURA DE MADEIRA C/ FECHAMENTO EM CHAPA DE AÇO GALVANIZADO DE 0,3 mm e ALTURA DE 2 M | C66: M2 | D66: 140.47
A68: C2317 | B68: TAPUME DE TÁBUAS DE 3.ª C/ABERTURA E PORTÃO | C68: M2 | D68: 86.58
A69: C2318 | B69: TAPUME DE TÁBUAS DE 3.ª SOBREPOSTAS | C69: M2 | D69: 74.09
A70: LOCAÇÃO DA OBRA | D70: 566.95
A71: C1630 | B71: LOCAÇÃO DA OBRA - EXECUÇÃO DE GABARITO | C71: M2 | D71: 4.12
A72: C2872 | B72: LOCAÇÃO DA OBRA COM AUXÍLIO TOPOGRÁFICO (ÁREA >5000 M2) | C72: HA | D72: 554.49
A73: C2873 | B73: LOCAÇÃO DA OBRA COM AUXÍLIO TOPOGRÁFICO (ÁREA ATÉ 5000 M2) | C73: M2 | D73: 0.29
A74: C2874 | B74: LOCAÇÃO DE REDE DE ÁGUA | C74: M | D74: 0.17
A75: C0774 | B75: LOCAÇÃO DE OBRAS EM MAR | C75: M2 | D75: 0.44
A76: C0775 | B76: LOCAÇÃO DE JAZIDAS EM MAR | C76: M2 | D76: 0.51
A77: C2875 | B77: LOCAÇÃO E NIVELAMENTO DE ADUTORA | C77: M | D77: 1.69
A78: C2876 | B78: LOCAÇÃO E NIVELAMENTO DE REDE DE ESGOTO/EMISSÁRIO/DRENAGEM | C78: M | D78: 2.30
A79: C3528 | B79: MUTIRÃO MISTO - LOCAÇÃO DA OBRA - EXECUÇÃO DE GABARITO | C79: M2 | D79: 2.93
A80: DEMOLIÇÕES E RETIRADAS | D80: 2,784.70
A81: C2992 | B81: DEMOLIÇÃO DE ALVENARIA DE PEDRA COM REMOÇÃO LATERAL | C81: M3 | D81: 93.41
A82: C1042 | B82: DEMOLIÇÃO DE ALVENARIA DE TIJOLOS C/ REAPROVEITAMENTO | C82: M3 | D82: 62.84
A83: C1043 | B83: DEMOLIÇÃO DE ALVENARIA DE TIJOLOS S/ REAPROVEITAMENTO | C83: M3 | D83: 31.42
A84: C1044 | B84: DEMOLIÇÃO DE CALHAS | C84: M | D84: 11.82
A85: C1045 | B85: DEMOLIÇÃO DE COBERTURA C/TELHAS CERÂMICAS | C85: M2 | D85: 6.28
A86: C1046 | B86: DEMOLIÇÃO DE COBERTURA C/TELHAS ONDULADAS DE FIBROCIMENTO | C86: M2 | D86: 2.62
A87: C1047 | B87: DEMOLIÇÃO DE COBOGÓS | C87: M2 | D87: 17.73
A88: C1048 | B88: DEMOLIÇÃO DE CONCRETO ARMADO C/MARTELETE PNEUMÁTICO | C88: M3 | D88: 359.37
A89: C1049 | B89: DEMOLIÇÃO DE CONCRETO SIMPLES | C89: M3 | D89: 136.14
A90: C1058 | B90: DEMOLIÇÃO DE DEGRAUS DE PEDRA | C90: M | D90: 16.76
A91: C1050 | B91: DEMOLIÇÃO DE DIVISÓRIA LEVE | C91: M2 | D91: 15.86
A92: C1051 | B92: DEMOLIÇÃO DE DIVISÓRIA OUTRAS (PRÉ MOLDADO) | C92: M2 | D92: 20.65
A93: C1052 | B93: DEMOLIÇÃO DE ESTRUTURA DE MADEIRA P/TELHADOS | C93: M2 | D93: 15.36
A94: C1053 | B94: DEMOLIÇÃO DE ESTRUTURA METÁLICA | C94: M2 | D94: 17.73
A95: C1054 | B95: DEMOLIÇÃO DE FORRO DE PVC | C95: M2 | D95: 7.85
A96: C1055 | B96: DEMOLIÇÃO DE FORRO DE TÁBUAS DE PINHO | C96: M2 | D96: 3.55
A97: C1056 | B97: DEMOLIÇÃO DE FORRO DE GESSO | C97: M2 | D97: 2.08
A98: C1057 | B98: DEMOLIÇÃO DE FORRO PACOTE | C98: M2 | D98: 5.24
A99: C2993 | B99: DEMOLIÇÃO DE FORRO DE LAMBRI | C99: M2 | D99: 3.55
A100: C1061 | B100: DEMOLIÇÃO DE LOUÇA SANITÁRIA | C100: UN | D100: 10.86
A101: C1062 | B101: DEMOLIÇÃO DE PAVIMENTAÇÃO ASFÁLTICA C/MARTELETE PNEUMÁTICO | C101: M2 | D101: 14.48
A102: C1063 | B102: DEMOLIÇÃO DE PÉRGOLAS OU BRISES | C102: M3 | D102: 136.14
A103: C1064 | B103: DEMOLIÇÃO DE PISO CERÂMICO | C103: M2 | D103: 7.33
A104: C1065 | B104: DEMOLIÇÃO DE PISO CERÂMICO SOBRE LASTRO DE CONCRETO | C104: M2 | D104: 14.66
A105: C1066 | B105: DEMOLIÇÃO DE PISO CIMENTADO SOBRE LASTRO DE CONCRETO | C105: M2 | D105: 13.61
A106: C2716 | B106: DEMOLIÇÃO DE PISO DE LADRILHO | C106: M2 | D106: 9.13
A107: C1067 | B107: DEMOLIÇÃO DE PISO DE TÁBUAS DE PEROBA | C107: M2 | D107: 10.64
A108: C1068 | B108: DEMOLIÇÃO DE PISO E VIGAS DE MADEIRA | C108: M2 | D108: 14.18
A109: C1069 | B109: DEMOLIÇÃO DE PISO INDUSTRIAL | C109: M2 | D109: 28.07
A110: C1070 | B110: DEMOLIÇÃO DE REVESTIMENTO C/ARGAMASSA | C110: M2 | D110: 5.24
A111: C1071 | B111: DEMOLIÇÃO DE REVESTIMENTO C/AZULEJOS | C111: M2 | D111: 26.18
A112: C1074 | B112: DEMOLIÇÃO DE REVESTIMENTO C/CERÂMICAS | C112: M2 | D112: 26.18
A113: C1072 | B113: DEMOLIÇÃO DE REVESTIMENTO C/LAMBRIS | C113: M2 | D113: 26.18
A114: C1073 | B114: DEMOLIÇÃO DE REVESTIMENTO C/ PEDRAS NATURAIS | C114: M2 | D114: 30.35
A115: C1075 | B115: DEMOLIÇÃO DE SARJETA OU SARJETÃO DE CONCRETO | C115: M2 | D115: 8.38
A116: C1076 | B116: DEMOLIÇÃO DE SOLEIRAS, PEITORIS E DEGRAUS | C116: M | D116: 13.61
A117: C1077 | B117: DEMOLIÇÃO DE VIGAS DE FERRO | C117: KG | D117: 0.16
A118: C3064 | B118: DEMOLIÇÃO E REMOÇÃO DE PAVIMENTO EM PARALELEPIPEDO E POLIÉDRICO | C118: M2 | D118: 4.56
A119: C3063 | B119: DEMOLIÇÃO E REMOÇÃO DE PAREDES DE TAIPA | C119: M2 | D119: 15.21
A120: C2717 | B120: DEMOLIÇÃO MANUAL DE CONCRETO ARMADO | C120: M3 | D120: 251.34
A121: C3103 | B121: REMOÇÃO DE BUEIROS EXISTENTES | C121: M | D121: 73.01
A122: C3104 | B122: REMOÇÃO DE CERCAS | C122: M | D122: 0.23
A123: C2197 | B123: REMOÇÃO DE PINTURA ANTIGA A CAL | C123: M2 | D123: 1.83
A124: C2198 | B124: REMOÇÃO DE PINTURA ANTIGA À TEMPERA | C124: M2 | D124: 2.74
A125: C3038 | B125: RETIRADA DE CAIXA DE AR CONDICIONADO | C125: UN | D125: 45.18
A126: C3039 | B126: RETIRADA DE CARPETE S/REAPROVEITAMENTO | C126: M2 | D126: 2.28
A127: C3376 | B127: RETIRADA DE COLETOR EM CONCRETO ATÉ 400mm | C127: M | D127: 26.62
A128: C2206 | B128: RETIRADA DE ESQUADRIAS METÁLICAS | C128: M2 | D128: 5.24
A129: C3040 | B129: RETIRADA DE GRADE DE FERRO | C129: M2 | D129: 4.52
A130: C2207 | B130: RETIRADA DE GUIAS PRÉ FABRICADAS DE CONCRETO | C130: M | D130: 5.24
A131: C3373 | B131: RETIRADA DE MEIO FIO DE PEDRA GRANÍTICA | C131: M | D131: 5.24
A132: C2938 | B132: RETIRADA DE PAVIMENTAÇÃO ASFÁLTICA COM BASE EM PEDRA | C132: M2 | D132: 18.62
A133: C2939 | B133: RETIRADA DE PAVIMENTAÇÃO EM BLOCO DE CONCRETO | C133: M2 | D133: 5.93
A134: C3041 | B134: RETIRADA DE PAVIMENTAÇÃO EM BLOKRET C/ REMOÇÃO LATERAL | C134: M2 | D134: 6.28
A135: C2940 | B135: RETIRADA DE PAVIMENTAÇÃO EM PARALELEPÍPEDO OU PEDRA TOSCA | C135: M2 | D135: 5.48
A136: C2941 | B136: RETIRADA DE PAVIMENTAÇÃO EM PASSEIO CIMENTADO | C136: M2 | D136: 9.13
A137: C2942 | B137: RETIRADA DE PAVIMENTAÇÃO EM PEDRA PORTUGUESA | C137: M2 | D137: 4.56
A138: C2209 | B138: RETIRADA DE PISO PAVIFLEX | C138: M2 | D138: 5.91
A139: C2210 | B139: RETIRADA DE PORTAS E JANELAS, INCLUSIVE BATENTES | C139: M2 | D139: 8.38
A140: C3047 | B140: RETIRADA DE TUBO PVC ENTERRADO DN=50mm | C140: M | D140: 4.49
A141: C3048 | B141: RETIRADA DE TUBO PVC ENTERRADO DN=75mm | C141: M | D141: 5.54
A142: C3049 | B142: RETIRADA DE TUBO PVC ENTERRADO DN=85mm | C142: M | D142: 6.06
A143: C3042 | B143: RETIRADA DE TUBO PVC ENTERRADO DN=100mm | C143: M | D143: 6.58
A144: C3043 | B144: RETIRADA DE TUBO PVC ENTERRADO DN=150mm | C144: M | D144: 8.98
A145: C3044 | B145: RETIRADA DE TUBO PVC ENTERRADO DN=200mm | C145: M | D145: 12.42
A146: C3045 | B146: RETIRADA DE TUBO PVC ENTERRADO DN=250mm | C146: M | D146: 14.51
A147: C3046 | B147: RETIRADA DE TUBO PVC ENTERRADO DN=300mm | C147: M | D147: 19.00
A148: C3054 | B148: RETIRADA DE TUBOS DE CONCRETO D=30cm | C148: M | D148: 17.99
A149: C3055 | B149: RETIRADA DE TUBOS DE CONCRETO D=40cm | C149: M | D149: 22.89
A150: C3056 | B150: RETIRADA DE TUBOS DE CONCRETO D=50cm | C150: M | D150: 29.98
A151: C3057 | B151: RETIRADA DE TUBOS DE CONCRETO D=60cm | C151: M | D151: 38.69
A152: C3050 | B152: RETIRADA DE TUBOS DE CONCRETO D=80cm | C152: M | D152: 55.58
A153: C3051 | B153: RETIRADA DE TUBOS DE CONCRETO D=100cm | C153: M | D153: 94.87
A154: C3052 | B154: RETIRADA DE TUBOS DE CONCRETO D=120cm | C154: M | D154: 135.54
A155: C3053 | B155: RETIRADA DE TUBOS DE CONCRETO D=150cm | C155: M | D155: 199.22
A156: C3377 | B156: RETIRADA DE TUBOS E CONEXÕES EM PVC JE DN 50MM | C156: M | D156: 1.48
A157: C3378 | B157: RETIRADA DE TUBOS E CONEXÕES EM PVC JE DN 75MM | C157: M | D157: 1.79
A158: C3379 | B158: RETIRADA DE TUBOS E CONEXÕES EM PVC JE DN 100MM | C158: M | D158: 2.39
A159: C3380 | B159: RETIRADA DE TUBOS E CONEXÕES EM PVC JE DN 125MM | C159: M | D159: 3.00
A160: C3381 | B160: RETIRADA DE TUBOS E CONEXÕES EM PVC JE DN 150MM | C160: M | D160: 3.43
A161: C3382 | B161: RETIRADA DE TUBOS E CONEXÕES EM PVC JE DN 200MM | C161: M | D161: 4.48
A162: C3383 | B162: RETIRADA DE TUBOS E CONEXÕES EM PVC JE DN 250MM | C162: M | D162: 5.02
A163: C3384 | B163: RETIRADA DE TUBOS E CONEXÕES EM PVC JE DN 300MM | C163: M | D163: 7.13
A164: C3385 | B164: RETIRADA DE TUBOS E CONEXÕES EM PVC JE DN 350MM | C164: M | D164: 7.91
A165: C3386 | B165: RETIRADA DE TUBOS E CONEXÕES EM PVC JE DN 400MM | C165: M | D165: 8.94
A166: C3387 | B166: RETIRADA DE TUBOS, PEÇAS E CONEXÕES EM FoFo JE DN 50MM | C166: M | D166: 3.84
A167: C3388 | B167: RETIRADA DE TUBOS, PEÇAS E CONEXÕES EM FoFo JE DN 75MM | C167: M | D167: 4.65
A168: C3389 | B168: RETIRADA DE TUBOS, PEÇAS E CONEXÕES EM FoFo JE DN 100MM | C168: M | D168: 7.64
A169: C3390 | B169: RETIRADA DE TUBOS, PEÇAS E CONEXÕES EM FoFo JE DN 150MM | C169: M | D169: 10.63
A170: C3391 | B170: RETIRADA DE TUBOS, PEÇAS E CONEXÕES EM FoFo JE DN 200MM | C170: M | D170: 12.21
A171: C3392 | B171: RETIRADA DE TUBOS, PEÇAS E CONEXÕES EM FoFo JE DN 250MM | C171: M | D171: 15.32
A172: C3393 | B172: RETIRADA DE TUBOS, PEÇAS E CONEXÕES EM FoFo JE DN 300MM | C172: M | D172: 19.41
A173: C3394 | B173: RETIRADA DE TUBOS, PEÇAS E CONEXÕES EM FoFo JE DN 350MM | C173: M | D173: 23.21
A174: C3395 | B174: RETIRADA DE TUBOS, PEÇAS E CONEXÕES EM FoFo JE DN 400MM | C174: M | D174: 26.62
A175: C3396 | B175: RETIRADA DE TUBOS, PEÇAS E CONEXÕES EM FoFo JE DN 450MM | C175: M | D175: 34.10
A176: C3397 | B176: RETIRADA DE TUBOS, PEÇAS E CONEXÕES EM FoFo JE DN 500MM | C176: M | D176: 41.59
A177: C3398 | B177: RETIRADA DE TUBOS, PEÇAS E CONEXÕES EM FoFo JE DN 600MM | C177: M | D177: 48.75
A178: C3399 | B178: RETIRADA DE TUBOS, PEÇAS E CONEXÕES EM FoFo JE DN 700MM | C178: M | D178: 62.51
A179: C2211 | B179: RETIRADA DE VIDROS C/ REAPROVEITAMENTO | C179: M2 | D179: 23.16
A180: TRÂNSITO E SEGURANÇA | D180: 310.38
A181: C0375 | B181: BARREIRA DE CONCRETO (NEW JERSEY) SIMPLES | C181: M | D181: 250.43
A182: C2891 | B182: PASSADIÇOS COM CHAPAS DE AÇO | C182: M2 | D182: 9.03
A183: C2892 | B183: PASSADIÇOS COM PRANCHAS DE MADEIRA | C183: M2 | D183: 28.78
A184: C2947 | B184: SINALIZAÇÃO DE ADVERTÊNCIA | C184: UN | D184: 9.52
A185: C2948 | B185: SINALIZAÇÃO DE TRÂNSITO COM BARREIRAS | C185: M | D185: 3.35
A186: C2949 | B186: SINALIZAÇÃO DE TRÂNSITO NOTURNA | C186: M | D186: 1.71
A187: C2950 | B187: SINALIZAÇÃO EM TAPUME COM INDICATIVO DE FLUXO | C187: M2 | D187: 4.68
A188: C2978 | B188: SINALIZAÇÃO EM TAPUME DE PROTEÇÃO COM CHAPAS COMPENSADAS E= 12mm | C188: M | D188: 2.86
A189: MOVIMENTO DE TERRA | D189: 15,279.09
A190: ESCAVAÇÕES EM CAMPO ABERTO | D190: 1,755.74
A191: C2779 | B191: ESCAVAÇÃO EM S.Q.N SATURADO, PROF.2.0 a 12.0m (POÇO AMAZONAS) | C191: M3 | D191: 103.31
A192: C1263 | B192: ESCAVAÇÃO MANUAL CAMPO ABERTO EM ROCHA C/EXPLOS.PERF.MAN. ATÉ 2M | C192: M3 | D192: 189.98
A193: C1260 | B193: ESCAVAÇÃO MANUAL CAMPO ABERTO EM ROCHA C/EXPLOS.PERF.MAN. - 2,01 A 4,00M | C193: M3 | D193: 202.30
A194: C1261 | B194: ESCAVAÇÃO MANUAL CAMPO ABERTO EM ROCHA C/EXPLOS.PERF.MAN. - 4,01 A 6,00M | C194: M3 | D194: 214.62
A195: C1262 | B195: ESCAVAÇÃO MANUAL CAMPO ABERTO EM ROCHA C/EXPLOS.PERF.MAN. - 6,01 A 8,00M | C195: M3 | D195: 226.94
A196: C1266 | B196: ESCAVAÇÃO MANUAL CAMPO ABERTO EM ROCHA C/EXPLOS.PERF.MEC. ATÉ 2M | C196: M3 | D196: 147.93
A197: C1264 | B197: ESCAVAÇÃO MANUAL CAMPO ABERTO EM ROCHA C/EXPLOS.PERF.MEC. - 2,01 A 4,00M | C197: M3 | D197: 160.71
A198: C1265 | B198: ESCAVAÇÃO MANUAL CAMPO ABERTO EM ROCHA C/EXPLOS.PERF.MEC. - 4,01 A 6,00M | C198: M3 | D198: 173.48
A199: C1254 | B199: ESCAVAÇÃO MANUAL CAMPO ABERTO EM ROCHA C/EXPLOS.PERF.MEC. - 6,01 A 8,00M | C199: M3 | D199: 186.26
A200: C1256 | B200: ESCAVAÇÃO MANUAL CAMPO ABERTO EM TERRA ATÉ 2M | C200: M3 | D200: 26.74
A201: C1257 | B201: ESCAVAÇÃO MANUAL CAMPO ABERTO EM TERRA, DE 2,01 A 4,00M | C201: M3 | D201: 31.85
A202: C1258 | B202: ESCAVAÇÃO MANUAL CAMPO ABERTO EM TERRA, DE 4,00 A 6,00M | C202: M3 | D202: 36.96
A203: C1259 | B203: ESCAVAÇÃO MANUAL CAMPO ABERTO EM TERRA, DE 6,00 A 8,00M | C203: M3 | D203: 42.62
A204: C1267 | B204: ESCAVAÇÃO MECAN. CAMPO ABERTO EM TERRA EXCETO ROCHA ATÉ 2M | C204: M3 | D204: 2.30
A205: C1268 | B205: ESCAVAÇÃO MECAN. CAMPO ABERTO EM TERRA EXCETO ROCHA ATÉ 4M | C205: M3 | D205: 2.64
A206: C1269 | B206: ESCAVAÇÃO MECAN. CAMPO ABERTO EM TERRA EXCETO ROCHA ATÉ 6M | C206: M3 | D206: 3.24
A207: C1270 | B207: ESCAVAÇÃO MECAN. CAMPO ABERTO EM TERRA EXCETO ROCHA ATÉ 8M | C207: M3 | D207: 3.84
... 4238 more rows

Sheet Insumos.SE (hidden)
A1: Tabela de Preço de Insumos
A2: 024.1
A3: Insumo | B3: Descrição | C3: Unidade | D3: SEM ENCARGOS | E3: COM ENCARGOS
A4: I7501 | B4: 10 SLOTS CHASSIS MODULAR HARDWARE STYLE , MOD. 1746-A10AB | C4: UN | D4: 1,537.41
A5: I7447 | B5: 5/03 RS-232 ROGRAMMER CABLE 3m, MOD. 1747-CP3 AB | C5: UN | D5: 67.26
A6: I8222 | B6: ABÓBADA DE POLICARBONATO TRANSPARENTE | C6: M2 | D6: 597.48
A7: I6472 | B7: ABRAÇADEIRA PARA POSTE DE CONCRETO DUPLO "T" | C7: UN | D7: 6.01
A8: I6700 | B8: ABRAÇADEIRAS EM FERRO BARRA CHATA 1/4" PINTURA EPOXI C/PARAFUSOS | C8: UN | D8: 36.40
A9: I0003 | B9: ABRIGO P/ HIDRANTE 60 X 90 X 17CM | C9: UN | D9: 296.67
A10: I0004 | B10: ABRIGO PRÉ-MOLDADO CONCRETO (FORNECIMENTO/ASSENTAMENTO) | C10: UN | D10: 4,685.00
A11: I7443 | B11: AC INPUT MODULE FOR PLC, MOD. 1746-IA16 AB WITH16 CHANNELS | C11: UN | D11: 916.71
A12: I8560 | B12: ACELERADOR DE COBALTO 6% | C12: L | D12: 57.60
A13: I7438 | B13: ACESSÓRIOS DE BAIXA TENSÃO | C13: CJ | D13: 357.45
A14: I7428 | B14: ACESSÓRIOS DE MÉDIA TENSÃO | C14: CJ | D14: 3,717.53
A15: I8198 | B15: ACESSÓRIOS P/ TRILHO -100 | C15: KG | D15: 6.79
A16: I8258 | B16: ACESSÓRIOS PARA UNIDADE DE PESAGEM (FAROL LUMINOSO, SENSORES DE POSIÇÃO, SOFTWARE DE CONFIGURAÇÃO, CABOS, ETC) | C16: CJ | D16: 21,963.05
A17: I7469 | B17: ACETILENO | C17: KG | D17: 37.74
A18: I0154 | B18: ÁCIDO MURIÁTICO | C18: L | D18: 3.12
A19: I0005 | B19: ACIONAD.MANUAL, TIPO QUEBRE O VIDRO, MOD. EUROTRON | C19: UN | D19: 35.37
A20: I0157 | B20: AÇO CA-25 | C20: KG | D20: 4.06
A21: I0163 | B21: AÇO CA-50 | C21: KG | D21: 3.96
A22: I7952 | B22: AÇO CA-50/60 | C22: KG | D22: 4.05
A23: I0169 | B23: AÇO CA-60 | C23: KG | D23: 4.14
A24: I0006 | B24: ADAPTADOR - 65X65MM (2 1/2X2 1/2'') | C24: UN | D24: 60.87
A25: I2898 | B25: ADAPTADOR PARA POLIETILENO 20 x 1/2" | C25: UN | D25: 2.41
A26: I2899 | B26: ADAPTADOR PARA POLIETILENO 20 x 3/4" | C26: UN | D26: 2.49
A27: I2900 | B27: ADAPTADOR PARA POLIETILENO 32 x 1" | C27: UN | D27: 4.61
A28: I3082 | B28: ADAPTADOR PBA PONTA / ROSCA DN 75 | C28: UN | D28: 20.06
A29: I3085 | B29: ADAPTADOR PBA / BOLSA DEFoFo JE DN 100 | C29: UN | D29: 55.34
A30: I3083 | B30: ADAPTADOR PBA / BOLSA DEFoFo JE DN 50 | C30: UN | D30: 14.60
A31: I3084 | B31: ADAPTADOR PBA / BOLSA DEFoFo JE DN 75 | C31: UN | D31: 32.39
A32: I3088 | B32: ADAPTADOR PBA / LUVA DE FIBROCIMENTO DN 100 | C32: UN | D32: 38.33
A33: I3086 | B33: ADAPTADOR PBA / LUVA DE FIBROCIMENTO DN 50 | C33: UN | D33: 28.50
A34: I3087 | B34: ADAPTADOR PBA / LUVA DE FIBROCIMENTO DN 75 | C34: UN | D34: 43.00
A35: I3078 | B35: ADAPTADOR PBA BOLSA / ROSCA DN 50 | C35: UN | D35: 9.70
A36: I3079 | B36: ADAPTADOR PBA BOLSA / ROSCA DN 75 | C36: UN | D36: 26.00
A37: I3080 | B37: ADAPTADOR PBA BOLSA/ ROSCA DN 100 | C37: UN | D37: 40.00
A38: I3081 | B38: ADAPTADOR PBA PONTA / ROSCA DN 50 | C38: UN | D38: 9.47
A39: I6846 | B39: ADAPTADOR PBS BOLSA ROSCA 150mm x 6' | C39: UN | D39: 110.32
A40: I0007 | B40: ADAPTADOR PVC P/SIFÃO 1 1/4''X40MM | C40: UN | D40: 1.60
A41: I6722 | B41: ADAPTADOR PVC REGISTRO 25MM (3/4") | C41: UN | D41: 1.00
A42: I6723 | B42: ADAPTADOR PVC REGISTRO 32MM (1") | C42: UN | D42: 1.58
A43: I6724 | B43: ADAPTADOR PVC REGISTRO 40MM (1 1/4") | C43: UN | D43: 3.05
A44: I6725 | B44: ADAPTADOR PVC REGISTRO 50MM (1 1/2") | C44: UN | D44: 3.51
A45: I6726 | B45: ADAPTADOR PVC REGISTRO 60MM (2") | C45: UN | D45: 9.24
A46: I0008 | B46: ADAPTADOR PVC REGISTRO 75MM (2 1/2'') | C46: UN | D46: 14.80
A47: I0009 | B47: ADAPTADOR PVC REGISTRO 85MM (3'') | C47: UN | D47: 24.00
A48: I0010 | B48: ADAPTADOR PVC SOLD. FLANGES LIVRES P/CX. D'ÁGUA 110MM | C48: UN | D48: 246.63
A49: I0011 | B49: ADAPTADOR PVC SOLD. FLANGES LIVRES P/CX. D'ÁGUA 20MM | C49: UN | D49: 8.80
A50: I0012 | B50: ADAPTADOR PVC SOLD. FLANGES LIVRES P/CX. D'ÁGUA 25MM | C50: UN | D50: 10.93
A51: I0013 | B51: ADAPTADOR PVC SOLD. FLANGES LIVRES P/CX. D'ÁGUA 32MM | C51: UN | D51: 14.70
A52: I0014 | B52: ADAPTADOR PVC SOLD. FLANGES LIVRES P/CX. D'ÁGUA 40MM | C52: UN | D52: 22.00
A53: I0015 | B53: ADAPTADOR PVC SOLD. FLANGES LIVRES P/CX. D'ÁGUA 50MM | C53: UN | D53: 24.49
A54: I0016 | B54: ADAPTADOR PVC SOLD. FLANGES LIVRES P/CX. D'ÁGUA 60MM | C54: UN | D54: 36.32
A55: I0017 | B55: ADAPTADOR PVC SOLD. FLANGES LIVRES P/CX. D'ÁGUA 75MM | C55: UN | D55: 132.90
A56: I0018 | B56: ADAPTADOR PVC SOLD. FLANGES LIVRES P/CX. D'ÁGUA 85MM | C56: UN | D56: 200.00
A57: I0019 | B57: ADAPTADOR PVC SOLDAVEL CURTO LR P/REG. 25x3/4" | C57: UN | D57: 1.00
A58: I6267 | B58: ADAPTADOR SOLDÁVEL BOLSA/ROSCA DN 60mmX2" | C58: UN | D58: 5.60
A59: I0020 | B59: ADAPTADOR SOLDAVEL C/FLANGE P/CX D'ÁGUA 32x1" | C59: UN | D59: 14.41
A60: I8367 | B60: ADAPTER CABLE, CAT. "6" DE 2,50m | C60: UN | D60: 9.53
A61: I0021 | B61: ADESIVO 90ML | C61: UN | D61: 3.60
A62: I0022 | B62: ADESIVO A BASE ASF.E ELAST.EMULS.P/ ADER.MANTAS | C62: KG | D62: 8.09
A63: I0023 | B63: ADESIVO AUTO VULCANIZANTE | C63: L | D63: 26.87
A64: I0024 | B64: ADESIVO DE CONTATO | C64: KG | D64: 8.60
A65: I0025 | B65: ADESIVO HIDRO-ASFALTICO | C65: L | D65: 3.84
A66: I0026 | B66: ADESIVO PARA TUBO DE PVC RIGIDO | C66: KG | D66: 38.25
A67: I0027 | B67: ADITIVO EXPANSOR | C67: L | D67: 12.10
A68: I0028 | B68: ADITIVO HIDROFUGO | C68: KG | D68: 3.83
A69: I8423 | B69: ADITIVO LÍQUIDO CONTROLADOR DE RUPTURA | C69: KG | D69: 4.32
A70: I6801 | B70: ADITIVO PLASTIFICANTE DENSIFICADOR E RETARDADOR DE PEGA | C70: KG | D70: 5.31
A71: I0029 | B71: ADITIVO PLASTIMENT BV-40 | C71: L | D71: 4.85
A72: I0030 | B72: ADUBO MINERAL (10-10-10NPK) | C72: KG | D72: 3.00
A73: I0031 | B73: ADUBO ORGANICO CURTIDO (ESTERCO) | C73: M3 | D73: 142.00
A74: I6310 | B74: AERADOR DE BANDEJAS EM FYBERGLASS CAPACIDADE DE 11,1 à 19,0 l/s | C74: UN | D74: 66,944.24
A75: I6311 | B75: AERADOR DE BANDEJAS EM FYBERGLASS CAPACIDADE DE 19,1 à 32,0 l/s | C75: UN | D75: 88,877.69
A76: I6312 | B76: AERADOR DE BANDEJAS EM FYBERGLASS CAPACIDADE DE 32,1 à 50,0 l/s | C76: UN | D76: 110,780.09
A77: I6309 | B77: AERADOR DE BANDEJAS EM FYBERGLASS CAPACIDADE DE 5,1 à 11,0 l/s | C77: UN | D77: 56,741.84
A78: I6313 | B78: AERADOR DE BANDEJAS EM FYBERGLASS CAPACIDADE DE 50,10 à 72,0 l/s | C78: UN | D78: 133,793.00
A79: I6308 | B79: AERADOR DE BANDEJAS EM FYBERGLASS CAPACIDADE DE ATÉ 5,0 l/s | C79: UN | D79: 36,268.66
A80: I0032 | B80: AFASTADOR FIBROCIMENTO (CANALETE 90) | C80: UN | D80: 3.98
A81: I0033 | B81: AGLUTINANTE ORGANO-SINTETICO | C81: L | D81: 9.18
A82: I0034 | B82: AGREGADO DE ALTA RESISTÊNCIA PARA PISOS | C82: KG | D82: 0.41
A83: I2294 | B83: ÁGUA | C83: M3 | D83: 4.20
A84: I0035 | B84: AGUARRAZ MINERAL | C84: L | D84: 10.46
A85: I0036 | B85: AGULHA 125 PARA SACO | C85: UN | D85: 0.85
A86: I0037 | B86: AJUDANTE | C86: H | D86: 5.60 | E86: 10.47
A87: I0039 | B87: AJUDANTE DE APLICADOR DE IMPERMEABILIZAÇÃO | C87: H | D87: 5.60 | E87: 10.47
A88: I0040 | B88: AJUDANTE DE ARMADOR/FERREIRO | C88: H | D88: 5.60 | E88: 10.47
A89: I0041 | B89: AJUDANTE DE CARPINTEIRO | C89: H | D89: 5.60 | E89: 10.47
A90: I0042 | B90: AJUDANTE DE ELETRICISTA | C90: H | D90: 5.60 | E90: 10.47
A91: I0043 | B91: AJUDANTE DE ENCANADOR | C91: H | D91: 5.60 | E91: 10.47
A92: I0044 | B92: AJUDANTE DE GRANITEIRO/MARMORISTA | C92: H | D92: 5.60 | E92: 10.47
A93: I0045 | B93: AJUDANTE DE PINTOR | C93: H | D93: 5.60 | E93: 10.47
A94: I0046 | B94: AJUDANTE DE SERRALHEIRO | C94: H | D94: 5.60 | E94: 10.47
A95: I0047 | B95: AJUDANTE DE TELHADISTA | C95: H | D95: 5.60 | E95: 10.47
A96: I7452 | B96: ALARME SONORO/VISUAL, SIRENE 120 dB, COM ACIONADOR MANUAL, ALIMENTAÇÃO 220 VAC | C96: UN | D96: 224.40
A97: I8212 | B97: ALÇA PREFORMADA DE DISTRIBUIÇÃO PARA CONDUTOR DE ALUMÍNIO 2,0 AWG | C97: UN | D97: 3.95
A98: I8213 | B98: ALÇA PREFORMADA DE DISTRIBUIÇÃO PARA CONDUTOR DE COBRE 2,0 AWG | C98: UN | D98: 21.49
A99: I0048 | B99: ALFANGISTA | C99: H | D99: 4.88 | E99: 9.13
A100: I8268 | B100: ALIZAR DE MADEIRA L = 5 cm | C100: M | D100: 3.00
A101: I8600 | B101: ALMOXARIFE (COM ENCARGOS INCLUSOS) | C101: HxMÊS | E101: 3,225.41
A102: I8973 | B102: ALUGUEL DE EQUIPAMENTO PARA COLETA DE DADOS, DO TIPO "TABLET", COM SISTEMA OPERACIONAL ANDROID 4.2 OU VERSÃO SUPERIOR | C102: H | D102: 0.49
A103: I6787 | B103: ALUMINIO CORRUGADO | C103: M2 | D103: 14.39
A104: I0050 | B104: ALUMINIO ESTRUTURAL USINADO PARA ESTRUTURA | C104: KG | D104: 23.20
A105: I0052 | B105: AMONIA | C105: L | D105: 3.00
A106: I0053 | B106: AMPERIMETRO ( 72 X 72 )MM - ESC. 0 - 250A | C106: UN | D106: 86.40
A107: I0054 | B107: AMPERIMETRO (144 X 144)MM - ESC. 0 - 100A | C107: UN | D107: 190.80
A108: I0055 | B108: AMPERIMETRO (96 X 96)MM - ESC. 0 A 500A | C108: UN | D108: 119.11
A109: I7448 | B109: ANALOG INPUT 4 CHANNEL CARD FOR PLC, MOD. 1746-N14 AB | C109: UN | D109: 1,876.42
A110: I0056 | B110: ANCORAGEM ATIVA PARA CABO COM 1 CORDOALHA DE 12.7mm | C110: UN | D110: 41.99
A111: I0057 | B111: ANCORAGEM ATIVA PARA CABO COM 12 CORDOALHA DE 12.7mm | C111: UN | D111: 434.51
A112: I0058 | B112: ANCORAGEM ATIVA PARA CABO COM 2 CORDOALHAS DE 12,7mm | C112: UN | D112: 66.58
A113: I0059 | B113: ANCORAGEM ATIVA PARA CABO COM 4 CORDOALHA DE 12,7mm | C113: UN | D113: 122.51
A114: I0060 | B114: ANCORAGEM ATIVA PARA CABO COM 6 CORDOALHA DE 12.7mm | C114: UN | D114: 204.62
A115: I0061 | B115: ANCORAGEM ATIVA PARA CABO COM 7 CORDOALHA DE 12.7mm | C115: UN | D115: 237.50
A116: I0062 | B116: ANCORAGEM PASSIVA PARA CABO COM 1 CORDOALHA DE 12.7mm | C116: UN | D116: 11.67
A117: I0063 | B117: ANCORAGEM PASSIVA PARA CABO COM 12 CORDOALHA DE 12.7mm | C117: UN | D117: 101.50
A118: I0064 | B118: ANCORAGEM PASSIVA PARA CABO COM 2 CORDOALHA DE 12.7mm | C118: UN | D118: 11.67
A119: I0065 | B119: ANCORAGEM PASSIVA PARA CABO COM 4 CORDOALHA DE 12.7mm | C119: UN | D119: 29.00
A120: I0066 | B120: ANCORAGEM PASSIVA PARA CABO COM 6 CORDOALHA DE 12.7mm | C120: UN | D120: 48.33
A121: I0067 | B121: ANCORAGEM PASSIVA PARA CABO COM 7 CORDOALHA DE 12.7mm | C121: UN | D121: 72.49
A122: I7947 | B122: ANDAIME METÁLICO DE ENCAIXE | C122: M3xMÊS | D122: 2.00
A123: I0068 | B123: ANDAIME METALICO DE FACHADA - LOCAÇÃO | C123: M2 | D123: 5.77
A124: I8216 | B124: ANEL BORRACHA P/ FoFo JUNTA ELÁSTICA DN 100 P/ ÁGUA | C124: UN | D124: 13.96
A125: I4159 | B125: ANEL BORRACHA P/ FoFo JUNTA ELÁSTICA DN 100 P/ ESGOTO | C125: UN | D125: 24.55
A126: I6409 | B126: ANEL BORRACHA P/ FoFo JUNTA ELÁSTICA DN 1000 P/ ÁGUA | C126: UN | D126: 434.88
A127: I4172 | B127: ANEL BORRACHA P/ FoFo JUNTA ELÁSTICA DN 1000 P/ ESGOTO | C127: UN | D127: 1,024.72
A128: I6417 | B128: ANEL BORRACHA P/ FoFo JUNTA ELÁSTICA DN 1200 P/ ÁGUA | C128: UN | D128: 698.40
A129: I4173 | B129: ANEL BORRACHA P/ FoFo JUNTA ELÁSTICA DN 1200 P/ ESGOTO | C129: UN | D129: 2,062.27
A130: I8217 | B130: ANEL BORRACHA P/ FoFo JUNTA ELÁSTICA DN 150 P/ ÁGUA | C130: UN | D130: 19.23
A131: I4160 | B131: ANEL BORRACHA P/ FoFo JUNTA ELÁSTICA DN 150 P/ ESGOTO | C131: UN | D131: 46.90
A132: I8218 | B132: ANEL BORRACHA P/ FoFo JUNTA ELÁSTICA DN 200 P/ ÁGUA | C132: UN | D132: 24.53
A133: I4161 | B133: ANEL BORRACHA P/ FoFo JUNTA ELÁSTICA DN 200 P/ ESGOTO | C133: UN | D133: 92.10
A134: I8219 | B134: ANEL BORRACHA P/ FoFo JUNTA ELÁSTICA DN 250 P/ ÁGUA | C134: UN | D134: 31.77
A135: I4162 | B135: ANEL BORRACHA P/ FoFo JUNTA ELÁSTICA DN 250 P/ ESGOTO | C135: UN | D135: 113.52
A136: I8220 | B136: ANEL BORRACHA P/ FoFo JUNTA ELÁSTICA DN 300 P/ ÁGUA | C136: UN | D136: 45.36
A137: I4163 | B137: ANEL BORRACHA P/ FoFo JUNTA ELÁSTICA DN 300 P/ ESGOTO | C137: UN | D137: 127.10
A138: I8221 | B138: ANEL BORRACHA P/ FoFo JUNTA ELÁSTICA DN 350 P/ ÁGUA | C138: UN | D138: 71.33
A139: I4164 | B139: ANEL BORRACHA P/ FoFo JUNTA ELÁSTICA DN 350 P/ ESGOTO | C139: UN | D139: 134.16
A140: I6400 | B140: ANEL BORRACHA P/ FoFo JUNTA ELÁSTICA DN 400 P/ ÁGUA | C140: UN | D140: 62.47
A141: I4165 | B141: ANEL BORRACHA P/ FoFo JUNTA ELÁSTICA DN 400 P/ ESGOTO | C141: UN | D141: 162.63
A142: I6402 | B142: ANEL BORRACHA P/ FoFo JUNTA ELÁSTICA DN 450 P/ ÁGUA | C142: UN | D142: 97.90
A143: I4166 | B143: ANEL BORRACHA P/ FoFo JUNTA ELÁSTICA DN 450 P/ ESGOTO | C143: UN | D143: 195.56
A144: I4157 | B144: ANEL BORRACHA P/ FoFo JUNTA ELÁSTICA DN 50 P/ ESGOTO | C144: UN | D144: 2.17
A145: I6403 | B145: ANEL BORRACHA P/ FoFo JUNTA ELÁSTICA DN 500 P/ ÁGUA | C145: UN | D145: 93.88
A146: I4167 | B146: ANEL BORRACHA P/ FoFo JUNTA ELÁSTICA DN 500 P/ ESGOTO | C146: UN | D146: 256.46
A147: I6404 | B147: ANEL BORRACHA P/ FoFo JUNTA ELÁSTICA DN 600 P/ ÁGUA | C147: UN | D147: 123.16
A148: I4168 | B148: ANEL BORRACHA P/ FoFo JUNTA ELÁSTICA DN 600 P/ ESGOTO | C148: UN | D148: 293.40
A149: I6405 | B149: ANEL BORRACHA P/ FoFo JUNTA ELÁSTICA DN 700 P/ ÁGUA | C149: UN | D149: 258.58
A150: I4169 | B150: ANEL BORRACHA P/ FoFo JUNTA ELÁSTICA DN 700 P/ ESGOTO | C150: UN | D150: 681.13
A151: I8215 | B151: ANEL BORRACHA P/ FoFo JUNTA ELÁSTICA DN 80 P/ ÁGUA | C151: UN | D151: 8.10
A152: I7095 | B152: ANEL BORRACHA P/ FoFo JUNTA ELÁSTICA DN 80 P/ ESGOTO | C152: UN | D152: 18.92
A153: I6406 | B153: ANEL BORRACHA P/ FoFo JUNTA ELÁSTICA DN 800 P/ ÁGUA | C153: UN | D153: 299.15
A154: I4170 | B154: ANEL BORRACHA P/ FoFo JUNTA ELÁSTICA DN 800 P/ ESGOTO | C154: UN | D154: 783.74
A155: I6407 | B155: ANEL BORRACHA P/ FoFo JUNTA ELÁSTICA DN 900 P/ ÁGUA | C155: UN | D155: 353.11
A156: I4171 | B156: ANEL BORRACHA P/ FoFo JUNTA ELÁSTICA DN 900 P/ ESGOTO | C156: UN | D156: 929.20
A157: I2965 | B157: ANEL DE BORRACHA OCRE DN 100 | C157: UN | D157: 1.40
A158: I2966 | B158: ANEL DE BORRACHA OCRE DN 125 | C158: UN | D158: 5.29
A159: I2967 | B159: ANEL DE BORRACHA OCRE DN 150 | C159: UN | D159: 3.74
A160: I2968 | B160: ANEL DE BORRACHA OCRE DN 200 | C160: UN | D160: 5.15
A161: I2969 | B161: ANEL DE BORRACHA OCRE DN 250 | C161: UN | D161: 10.65
A162: I2970 | B162: ANEL DE BORRACHA OCRE DN 300 | C162: UN | D162: 26.75
A163: I2971 | B163: ANEL DE BORRACHA OCRE DN 350 | C163: UN | D163: 53.00
A164: I2972 | B164: ANEL DE BORRACHA OCRE DN 400 | C164: UN | D164: 59.00
A165: I3094 | B165: ANEL DE BORRACHA P/ TUBO DE FoFo 1MPa DN 100 | C165: UN | D165: 6.80
A166: I3095 | B166: ANEL DE BORRACHA P/ TUBO DE FoFo 1MPa DN 150 | C166: UN | D166: 9.50
A167: I3096 | B167: ANEL DE BORRACHA P/ TUBO DE FoFo 1MPa DN 200 | C167: UN | D167: 15.40
A168: I3097 | B168: ANEL DE BORRACHA P/ TUBO DE FoFo 1MPa DN 250 | C168: UN | D168: 48.88
A169: I3098 | B169: ANEL DE BORRACHA P/ TUBO DE FoFo 1MPa DN 300 | C169: UN | D169: 60.09
A170: I3091 | B170: ANEL DE BORRACHA P/ TUBO PBA DN 100 | C170: UN | D170: 2.42
A171: I3089 | B171: ANEL DE BORRACHA P/ TUBO PBA DN 50 | C171: UN | D171: 0.95
A172: I3090 | B172: ANEL DE BORRACHA P/ TUBO PBA DN 75 | C172: UN | D172: 1.47
A173: I0069 | B173: ANEL DE BORRACHA P/ TUBOS E CONEXÕES F.F. 100M | C173: UN | D173: 22.07
A174: I0070 | B174: ANEL DE BORRACHA P/ TUBOS E CONEXÕES F.F. 150MM | C174: UN | D174: 28.69
A175: I0071 | B175: ANEL DE BORRACHA P/ TUBOS E CONEXÕES F.F. 50MM | C175: UN | D175: 18.70
A176: I0072 | B176: ANEL DE BORRACHA P/ TUBOS E CONEXÕES F.F. 75MM | C176: UN | D176: 19.20
A177: I0073 | B177: ANEL DE BORRACHA P/TUBO PVC 100MM (4'') | C177: UN | D177: 1.34
A178: I0074 | B178: ANEL DE BORRACHA P/TUBO PVC 150MM (6'') | C178: UN | D178: 4.01
A179: I0075 | B179: ANEL DE BORRACHA P/TUBO PVC 40MM | C179: UN | D179: 0.80
A180: I0076 | B180: ANEL DE BORRACHA P/TUBO PVC 50MM (2'') | C180: UN | D180: 0.91
A181: I0077 | B181: ANEL DE BORRACHA P/TUBO PVC 75MM (3'') | C181: UN | D181: 1.09
A182: I0078 | B182: ANEL DE BORRACHA P/TUBO PVC REFORÇADO DE 100MM | C182: UN | D182: 1.75
A183: I0079 | B183: ANEL DE BORRACHA P/TUBO PVC REFORÇADO DE 150MM | C183: UN | D183: 5.31
A184: I0080 | B184: ANEL DE BORRACHA P/TUBO PVC REFORÇADO DE 50MM | C184: UN | D184: 1.30
A185: I0081 | B185: ANEL DE BORRACHA P/TUBO PVC REFORÇADO DE 75MM | C185: UN | D185: 1.40
A186: I2964 | B186: ANEL DE BORRACHA P/TUBO VFORT.PAREDE DUPLA DN 150 | C186: UN | D186: 10.44
A187: I6847 | B187: ANEL DE BORRACHA TIL REDE 150 | C187: UN | D187: 52.13
A188: I6848 | B188: ANEL DE BORRACHA TIL REDE 300 | C188: UN | D188: 130.67
A189: I7412 | B189: ANEL DE PROTEÇÃO DIAZED | C189: UN | D189: 2.44
A190: I0082 | B190: ANEL DE VEDAÇÃO PARA BACIA | C190: UN | D190: 7.00
A191: I5803 | B191: ANEL EDUTOR O-RING DN 40 | C191: UN | D191: 0.48
A192: I5804 | B192: ANEL EDUTOR O-RING DN 50 | C192: UN | D192: 0.87
A193: I5805 | B193: ANEL EDUTOR O-RING DN 65 | C193: UN | D193: 1.42
A194: I0083 | B194: ANEL PRE-MOLDADO DE CONCRETO D=0.60M, h = 0.80M | C194: UN | D194: 69.98
A195: I7964 | B195: ANEL PRE-MOLDADO DE CONCRETO D=1,20M, h=0,50M | C195: UN | D195: 120.00
A196: I6244 | B196: ANEL PRÉ-MOLDADO DE CONCRETO, D=1,50M, H = 0.50M | C196: UN | D196: 201.60
A197: I6410 | B197: ANEL PRÉ-MOLDADO DE CONCRETO, D=4,00M, ESP=12CM | C197: UN | D197: 627.78
A198: I6063 | B198: ANEL PRE-MOLDADO DE CONCRETO, D = 0,60M (LIGA. PREDIAL) | C198: UN | D198: 44.00
A199: I6061 | B199: ANEL PRE-MOLDADO DE CONCRETO, D = 0,60M, H = 0,50M | C199: UN | D199: 57.05
A200: I6062 | B200: ANEL PRE-MOLDADO DE CONCRETO, D = 0,60M, H = 0,70M | C200: UN | D200: 51.00
... 7187 more rows
